Organisation Name,Organisation Code,Effective Date,Directorate  Where Expenditure Incurred,Supplier Name,Payment Date,Transaction Number,Gross Amount,Purpose of Spend,Merchant Category,Card Transaction
WALSALL COUNCIL,HTTP://OPENDATACOMMUNITIES.ORG/ID/METROPOLITAN-DISTRICT-COUNCIL/WALSALL,30/09/2018,CHILDRENS SERVICES - SCHOOLS,AMAZON UK MARKETPLACE,01/07/2018,H59620180703CBXSBRKVN-1,29.98,"ALUMWELL JUNIOR-REPAIRS,ALTERATIONS & MAINTENA",BOOK STORES,GPC
WALSALL COUNCIL,HTTP://OPENDATACOMMUNITIES.ORG/ID/METROPOLITAN-DISTRICT-COUNCIL/WALSALL,30/09/2018,CHILDRENS SERVICES,AMAZON UK RETAIL,01/07/2018,H59620180703DMIQTIJLZ-1,17.98,ICT LEARNING RESOURCES-GENERAL MATERIALS,OTHER DIRECT MARKETING-OTHER DIRECT MARKETERS,GPC
WALSALL COUNCIL,HTTP://OPENDATACOMMUNITIES.ORG/ID/METROPOLITAN-DISTRICT-COUNCIL/WALSALL,30/09/2018,CHILDRENS SERVICES,PGL,01/07/2018,H59620180703HDJWHBMLN-1,87.00,ADMINISTRATIVE SUPPLIES-GENERAL MATERIALS,"EATING PLACES, RESTAURANTS",GPC
WALSALL COUNCIL,HTTP://OPENDATACOMMUNITIES.ORG/ID/METROPOLITAN-DISTRICT-COUNCIL/WALSALL,30/09/2018,CHILDRENS SERVICES,ALDI 1 772,01/07/2018,H59620180703JXCSSSOXB-1,57.01,SPINDLETREE-FOOD AND BEVERAGES-PROVISIONS,GROCERY STORES AND SUPERMARKETS,GPC
WALSALL COUNCIL,HTTP://OPENDATACOMMUNITIES.ORG/ID/METROPOLITAN-DISTRICT-COUNCIL/WALSALL,30/09/2018,CHILDRENS SERVICES,ALDI 1 772,01/07/2018,H59620180703JXCSSSOXB-2,8.79,SPINDLETREE-FOOD AND BEVERAGES-PROVISIONS,GROCERY STORES AND SUPERMARKETS,GPC
WALSALL COUNCIL,HTTP://OPENDATACOMMUNITIES.ORG/ID/METROPOLITAN-DISTRICT-COUNCIL/WALSALL,30/09/2018,ADULT SOCIAL CARE,AMAZON UK MARKETPLACE,01/07/2018,H59620180703KKUCABTIM-1,129.44,EAST LOCALITY TEAM-COMPUTER EQUIPMENT AND SUPPLIE,BOOK STORES,GPC
WALSALL COUNCIL,HTTP://OPENDATACOMMUNITIES.ORG/ID/METROPOLITAN-DISTRICT-COUNCIL/WALSALL,30/09/2018,CHILDRENS SERVICES - SCHOOLS,123 REG R/T,01/07/2018,H59620180703KUVZYONDY-1,11.99,ADMINISTRATIVE SUPPLIES-GENERAL MATERIALS,DIRECT MARKETING CONTINUITY SUBSCRIPTION MERCHANTS,GPC
WALSALL COUNCIL,HTTP://OPENDATACOMMUNITIES.ORG/ID/METROPOLITAN-DISTRICT-COUNCIL/WALSALL,30/09/2018,RESOURCES & TRANSFORMATION,TWITTER ONLINE ADS,01/07/2018,H59620180703LDPIQCNDU-1,3.00,SCHOOL HR TRANSACTIONAL TEAM-ADVERTISING STAFF VACANCIES,ADVERTISING SERVICES,GPC
WALSALL COUNCIL,HTTP://OPENDATACOMMUNITIES.ORG/ID/METROPOLITAN-DISTRICT-COUNCIL/WALSALL,30/09/2018,CHILDRENS SERVICES,AMAZON UK RETAIL,01/07/2018,H59620180703MBCLWWUVZ-1,23.99,ICT (COMPUTING)-GENERAL MATERIALS,OTHER DIRECT MARKETING-OTHER DIRECT MARKETERS,GPC
WALSALL COUNCIL,HTTP://OPENDATACOMMUNITIES.ORG/ID/METROPOLITAN-DISTRICT-COUNCIL/WALSALL,30/09/2018,CHILDRENS SERVICES - SCHOOLS,AMAZON UK MARKETPLACE,01/07/2018,H59620180703MOWOKWHLC-1,64.89,"ALUMWELL JUNIOR-REPAIRS,ALTERATIONS & MAINTENA",BOOK STORES,GPC
WALSALL COUNCIL,HTTP://OPENDATACOMMUNITIES.ORG/ID/METROPOLITAN-DISTRICT-COUNCIL/WALSALL,30/09/2018,ECONOMY & ENVIRONMENT,TESCO DIRECT,01/07/2018,H59620180703OGQJOXOVD-1,35.75,YEI ESF FUNDING-PROFESSIONAL FEES AND SERVICES,MISCELLANEOUS AND SPECIALTY RETAIL STORES,GPC
WALSALL COUNCIL,HTTP://OPENDATACOMMUNITIES.ORG/ID/METROPOLITAN-DISTRICT-COUNCIL/WALSALL,30/09/2018,ECONOMY & ENVIRONMENT,TESCO DIRECT,01/07/2018,H59620180703OGQJOXOVD-2,35.75,YEI (IMPACT) PROGRAMME-PROFESSIONAL FEES AND SERVICES,MISCELLANEOUS AND SPECIALTY RETAIL STORES,GPC
WALSALL COUNCIL,HTTP://OPENDATACOMMUNITIES.ORG/ID/METROPOLITAN-DISTRICT-COUNCIL/WALSALL,30/09/2018,CHILDRENS SERVICES,AMAZON UK RETAIL,01/07/2018,H59620180703TLLYBFXEC-1,27.89,SPINDLETREE-MISCELLANEOUS SUPPLIES,OTHER DIRECT MARKETING-OTHER DIRECT MARKETERS,GPC
WALSALL COUNCIL,HTTP://OPENDATACOMMUNITIES.ORG/ID/METROPOLITAN-DISTRICT-COUNCIL/WALSALL,30/09/2018,CHILDRENS SERVICES - SCHOOLS,AMAZON SVCS EU-UK AMAZON.,01/07/2018,H59620180704DDTDHTWCV-1,14.49,ICT LEARNING RESOURCES-GENERAL MATERIALS,BOOK STORES,GPC
WALSALL COUNCIL,HTTP://OPENDATACOMMUNITIES.ORG/ID/METROPOLITAN-DISTRICT-COUNCIL/WALSALL,30/09/2018,CHILDRENS SERVICES,VIRGIN TRAINS,02/07/2018,H59620180704AHKCQUFNQ-1,72.20,RECRUITMENT TEAM-OFFICER/STAFF-PUBLIC TRANSPORT,PASSENGER RAILWAYS,GPC
WALSALL COUNCIL,HTTP://OPENDATACOMMUNITIES.ORG/ID/METROPOLITAN-DISTRICT-COUNCIL/WALSALL,30/09/2018,CHILDRENS SERVICES,"BOOTS,WALSALL",02/07/2018,H59620180704AKELPSUQE-1,12.00,57 LICHFIELD ROAD-RESIDENTS PERSONAL EXPENSES-AL,"DRUG STORES, PHARMACIES",GPC
WALSALL COUNCIL,HTTP://OPENDATACOMMUNITIES.ORG/ID/METROPOLITAN-DISTRICT-COUNCIL/WALSALL,30/09/2018,CHILDRENS SERVICES,WALSALL COUNCIL,02/07/2018,H59620180704AMGELAWAT-1,46.34,ST JOHNS C.E. PRIMARY SCHOOL-POLICE CHECKS-EMPLOYEES,GOVERNMENT SERVICES,GPC
WALSALL COUNCIL,HTTP://OPENDATACOMMUNITIES.ORG/ID/METROPOLITAN-DISTRICT-COUNCIL/WALSALL,30/09/2018,RESOURCES & TRANSFORMATION,BLAKEMORE FOODSERVICE,02/07/2018,H59620180704BMERKKDFF-1,-40.27,CA BLUE COAT C OF E PERFORMING-DRY FOODS-PROVISIONS,CATERERS,GPC
WALSALL COUNCIL,HTTP://OPENDATACOMMUNITIES.ORG/ID/METROPOLITAN-DISTRICT-COUNCIL/WALSALL,30/09/2018,CHILDRENS SERVICES,BANNER GROUP LTD,02/07/2018,H59620180704BOCEHLTWT-1,161.21,LOOKED AFTER CHILDRENS SOCIAL -STATIONERY & GENERAL SUPPLIES-,"OFFICE, SCHOOL SUPPLY, AND STATIONERY STORES",GPC
WALSALL COUNCIL,HTTP://OPENDATACOMMUNITIES.ORG/ID/METROPOLITAN-DISTRICT-COUNCIL/WALSALL,30/09/2018,ECONOMY & ENVIRONMENT,WALSALL WOOD,02/07/2018,H59620180704BQFUUPTSD-1,169.99,WALSALL OUTDOOR ADVENTURE CENT-GENERAL MATERIALS,LUMBER & BUILDING MATERIALS STORES,GPC
WALSALL COUNCIL,HTTP://OPENDATACOMMUNITIES.ORG/ID/METROPOLITAN-DISTRICT-COUNCIL/WALSALL,30/09/2018,RESOURCES & TRANSFORMATION,BLAKEMORE FOODSERVICE,02/07/2018,H59620180704CJWBPPDMQ-1,327.30,CA CROFT COMMUNITY PRIMARY SCH-CATERING,CATERERS,GPC
WALSALL COUNCIL,HTTP://OPENDATACOMMUNITIES.ORG/ID/METROPOLITAN-DISTRICT-COUNCIL/WALSALL,30/09/2018,RESOURCES & TRANSFORMATION,BLAKEMORE FOODSERVICE,02/07/2018,H59620180704CPFEQWLEO-1,228.58,CA LINDENS PRIMARY SCHOOL-DRY FOODS-PROVISIONS,CATERERS,GPC
WALSALL COUNCIL,HTTP://OPENDATACOMMUNITIES.ORG/ID/METROPOLITAN-DISTRICT-COUNCIL/WALSALL,30/09/2018,RESOURCES & TRANSFORMATION,BLAKEMORE FOODSERVICE,02/07/2018,H59620180704CPFEQWLEO-2,201.60,CA LINDENS PRIMARY SCHOOL-DRY FOODS-PROVISIONS,CATERERS,GPC
WALSALL COUNCIL,HTTP://OPENDATACOMMUNITIES.ORG/ID/METROPOLITAN-DISTRICT-COUNCIL/WALSALL,30/09/2018,CHILDRENS SERVICES,B & M RETAIL,02/07/2018,H59620180704DCIFRCPQW-1,5.62,SPINDLETREE-FOOD AND BEVERAGES-PROVISIONS,DISCOUNT STORES,GPC
WALSALL COUNCIL,HTTP://OPENDATACOMMUNITIES.ORG/ID/METROPOLITAN-DISTRICT-COUNCIL/WALSALL,30/09/2018,CHILDRENS SERVICES,B & M RETAIL,02/07/2018,H59620180704DCIFRCPQW-2,2.89,SPINDLETREE-FOOD AND BEVERAGES-PROVISIONS,DISCOUNT STORES,GPC
WALSALL COUNCIL,HTTP://OPENDATACOMMUNITIES.ORG/ID/METROPOLITAN-DISTRICT-COUNCIL/WALSALL,30/09/2018,RESOURCES & TRANSFORMATION,BLAKEMORE FOODSERVICE,02/07/2018,H59620180704DNOJUMEMV-1,240.42,CA BARCROFT D/C-FROZEN FOODS-PROVISIONS,CATERERS,GPC
WALSALL COUNCIL,HTTP://OPENDATACOMMUNITIES.ORG/ID/METROPOLITAN-DISTRICT-COUNCIL/WALSALL,30/09/2018,RESOURCES & TRANSFORMATION,BLAKEMORE FOODSERVICE,02/07/2018,H59620180704DNOJUMEMV-2,24.98,CA BARCROFT D/C-FROZEN FOODS-PROVISIONS,CATERERS,GPC
WALSALL COUNCIL,HTTP://OPENDATACOMMUNITIES.ORG/ID/METROPOLITAN-DISTRICT-COUNCIL/WALSALL,30/09/2018,CHILDRENS SERVICES,WWW.ARGOS.CO.UK,02/07/2018,H59620180704DSBLQCUPB-1,92.98,SAFEGUARDING & FAMILY SUPPORT-BEDDING & LINEN-MATERIALS,DISCOUNT STORES,GPC
WALSALL COUNCIL,HTTP://OPENDATACOMMUNITIES.ORG/ID/METROPOLITAN-DISTRICT-COUNCIL/WALSALL,30/09/2018,CHILDRENS SERVICES,WWW.ARGOS.CO.UK,02/07/2018,H59620180704DSBLQCUPB-2,3.95,SAFEGUARDING & FAMILY SUPPORT-POSTAGES AND COURIER SERVICES,DISCOUNT STORES,GPC
WALSALL COUNCIL,HTTP://OPENDATACOMMUNITIES.ORG/ID/METROPOLITAN-DISTRICT-COUNCIL/WALSALL,30/09/2018,RESOURCES & TRANSFORMATION,BLAKEMORE FOODSERVICE,02/07/2018,H59620180704EBCFAEKJF-1,16.16,CA JANE LANE SPECIAL SCHOOL-FROZEN FOODS-PROVISIONS,CATERERS,GPC
WALSALL COUNCIL,HTTP://OPENDATACOMMUNITIES.ORG/ID/METROPOLITAN-DISTRICT-COUNCIL/WALSALL,30/09/2018,RESOURCES & TRANSFORMATION,BLAKEMORE FOODSERVICE,02/07/2018,H59620180704EDRHQTGOY-1,-28.34,CA BUSILL JONES PRIMARY SCHOOL-FROZEN FOODS-PROVISIONS,CATERERS,GPC
WALSALL COUNCIL,HTTP://OPENDATACOMMUNITIES.ORG/ID/METROPOLITAN-DISTRICT-COUNCIL/WALSALL,30/09/2018,ECONOMY & ENVIRONMENT,ARGOS RETAIL GROUP,02/07/2018,H59620180704FGUUEPVLY-1,23.99,LOCAL HISTORY CENTRE-STATIONERY & GENERAL SUPPLIES-,DISCOUNT STORES,GPC
WALSALL COUNCIL,HTTP://OPENDATACOMMUNITIES.ORG/ID/METROPOLITAN-DISTRICT-COUNCIL/WALSALL,30/09/2018,RESOURCES & TRANSFORMATION,BLAKEMORE FOODSERVICE,02/07/2018,H59620180704FOVIDNUKR-1,366.21,CA ST MICHAELS C.E. PRIMARY SC-DRY FOODS-PROVISIONS,CATERERS,GPC
WALSALL COUNCIL,HTTP://OPENDATACOMMUNITIES.ORG/ID/METROPOLITAN-DISTRICT-COUNCIL/WALSALL,30/09/2018,RESOURCES & TRANSFORMATION,BLAKEMORE FOODSERVICE,02/07/2018,H59620180704FOVIDNUKR-2,23.04,CA ST MICHAELS C.E. PRIMARY SC-DRY FOODS-PROVISIONS,CATERERS,GPC
WALSALL COUNCIL,HTTP://OPENDATACOMMUNITIES.ORG/ID/METROPOLITAN-DISTRICT-COUNCIL/WALSALL,30/09/2018,RESOURCES & TRANSFORMATION,BLAKEMORE FOODSERVICE,02/07/2018,H59620180704GGEHZYRYD-1,115.77,CA CASTLEFORT JMI SCHOOL-DRY FOODS-PROVISIONS,CATERERS,GPC
WALSALL COUNCIL,HTTP://OPENDATACOMMUNITIES.ORG/ID/METROPOLITAN-DISTRICT-COUNCIL/WALSALL,30/09/2018,CHILDRENS SERVICES,W M MORRISON PLC,02/07/2018,H59620180704GJWYMLYSQ-1,50.43,PELSALL VILLAGE SCHOOL-FOOD AND BEVERAGES-PROVISIONS,GROCERY STORES AND SUPERMARKETS,GPC
WALSALL COUNCIL,HTTP://OPENDATACOMMUNITIES.ORG/ID/METROPOLITAN-DISTRICT-COUNCIL/WALSALL,30/09/2018,CHILDRENS SERVICES,W M MORRISON PLC,02/07/2018,H59620180704GJWYMLYSQ-2,1.80,PELSALL VILLAGE SCHOOL-FOOD AND BEVERAGES-PROVISIONS,GROCERY STORES AND SUPERMARKETS,GPC
WALSALL COUNCIL,HTTP://OPENDATACOMMUNITIES.ORG/ID/METROPOLITAN-DISTRICT-COUNCIL/WALSALL,30/09/2018,CHILDRENS SERVICES,AMAZON UK MARKETPLACE,02/07/2018,H59620180704GMBPYZSNS-1,7.79,BLUEBELLS-RESIDENTS PERSONAL EXPENSES-AL,BOOK STORES,GPC
WALSALL COUNCIL,HTTP://OPENDATACOMMUNITIES.ORG/ID/METROPOLITAN-DISTRICT-COUNCIL/WALSALL,30/09/2018,RESOURCES & TRANSFORMATION,BLAKEMORE FOODSERVICE,02/07/2018,H59620180704GNFOMKUXX-1,21.42,CA BLUE COAT C OF E PERFORMING-FROZEN FOODS-PROVISIONS,CATERERS,GPC
WALSALL COUNCIL,HTTP://OPENDATACOMMUNITIES.ORG/ID/METROPOLITAN-DISTRICT-COUNCIL/WALSALL,30/09/2018,RESOURCES & TRANSFORMATION,BLAKEMORE FOODSERVICE,02/07/2018,H59620180704GNFOMKUXX-2,53.88,CA BLUE COAT C OF E PERFORMING-FROZEN FOODS-PROVISIONS,CATERERS,GPC
WALSALL COUNCIL,HTTP://OPENDATACOMMUNITIES.ORG/ID/METROPOLITAN-DISTRICT-COUNCIL/WALSALL,30/09/2018,RESOURCES & TRANSFORMATION,BLAKEMORE FOODSERVICE,02/07/2018,H59620180704GNMSMIKPU-1,304.69,CA ST JOHNS C.E. PRIMARY SCHOO-FROZEN FOODS-PROVISIONS,CATERERS,GPC
WALSALL COUNCIL,HTTP://OPENDATACOMMUNITIES.ORG/ID/METROPOLITAN-DISTRICT-COUNCIL/WALSALL,30/09/2018,ECONOMY & ENVIRONMENT,BOC TEL ORDER,02/07/2018,H59620180704HQHMXGKRV-1,13.56,WALSALL TOWN HALL-CHEMICALS & SCIENTIFIC MATS-MA,OTHER CHEMICALS AND ALLIED PRODUCTS,GPC
WALSALL COUNCIL,HTTP://OPENDATACOMMUNITIES.ORG/ID/METROPOLITAN-DISTRICT-COUNCIL/WALSALL,30/09/2018,RESOURCES & TRANSFORMATION,BLAKEMORE FOODSERVICE,02/07/2018,H59620180704IUTNLUEUL-1,108.66,CA MOORCROFT WOOD-FROZEN FOODS-PROVISIONS,CATERERS,GPC
WALSALL COUNCIL,HTTP://OPENDATACOMMUNITIES.ORG/ID/METROPOLITAN-DISTRICT-COUNCIL/WALSALL,30/09/2018,RESOURCES & TRANSFORMATION,BLAKEMORE FOODSERVICE,02/07/2018,H59620180704IUTNLUEUL-2,16.66,CA MOORCROFT WOOD-FROZEN FOODS-PROVISIONS,CATERERS,GPC
WALSALL COUNCIL,HTTP://OPENDATACOMMUNITIES.ORG/ID/METROPOLITAN-DISTRICT-COUNCIL/WALSALL,30/09/2018,RESOURCES & TRANSFORMATION,BLAKEMORE FOODSERVICE,02/07/2018,H59620180704JGPENIYSO-1,364.66,CA RADLEYS PRIMARY SCHOOL-DRY FOODS-PROVISIONS,CATERERS,GPC
WALSALL COUNCIL,HTTP://OPENDATACOMMUNITIES.ORG/ID/METROPOLITAN-DISTRICT-COUNCIL/WALSALL,30/09/2018,RESOURCES & TRANSFORMATION,BLAKEMORE FOODSERVICE,02/07/2018,H59620180704JGPENIYSO-2,126.20,CA RADLEYS PRIMARY SCHOOL-DRY FOODS-PROVISIONS,CATERERS,GPC
WALSALL COUNCIL,HTTP://OPENDATACOMMUNITIES.ORG/ID/METROPOLITAN-DISTRICT-COUNCIL/WALSALL,30/09/2018,RESOURCES & TRANSFORMATION,BLAKEMORE FOODSERVICE,02/07/2018,H59620180704JNFCXXSYL-1,206.05,CA RADLEYS PRIMARY SCHOOL-FROZEN FOODS-PROVISIONS,CATERERS,GPC
WALSALL COUNCIL,HTTP://OPENDATACOMMUNITIES.ORG/ID/METROPOLITAN-DISTRICT-COUNCIL/WALSALL,30/09/2018,CHILDRENS SERVICES,HERON FOODS LTD,02/07/2018,H59620180704JPIKPIIMP-1,9.09,PARENTING TEAM-FOOD AND BEVERAGES-PROVISIONS,MISCELLANEOUS FOOD STORES & CONVENIENCE STORES,GPC
WALSALL COUNCIL,HTTP://OPENDATACOMMUNITIES.ORG/ID/METROPOLITAN-DISTRICT-COUNCIL/WALSALL,30/09/2018,CHILDRENS SERVICES,THE WALSALL BOX COMPAN,02/07/2018,H59620180704KTRUUBRKE-1,124.50,EDUCATION BUSINESS PARTNERSHIP-STATIONERY & GENERAL SUPPLIES-,"OFFICE, SCHOOL SUPPLY, AND STATIONERY STORES",GPC
WALSALL COUNCIL,HTTP://OPENDATACOMMUNITIES.ORG/ID/METROPOLITAN-DISTRICT-COUNCIL/WALSALL,30/09/2018,ECONOMY & ENVIRONMENT,TRINITY MIRROR PUBLISH,02/07/2018,H59620180704LBHOYPSXW-1,153.12,DEVELOPMENT MANAGEMENT-PUBLICITY & ADVERTISING (NOT S,ADVERTISING SERVICES,GPC
WALSALL COUNCIL,HTTP://OPENDATACOMMUNITIES.ORG/ID/METROPOLITAN-DISTRICT-COUNCIL/WALSALL,30/09/2018,RESOURCES & TRANSFORMATION,BLAKEMORE FOODSERVICE,02/07/2018,H59620180704LIKGWINIM-1,8.30,CA ST MICHAELS C.E. PRIMARY SC-DRY FOODS-PROVISIONS,CATERERS,GPC
WALSALL COUNCIL,HTTP://OPENDATACOMMUNITIES.ORG/ID/METROPOLITAN-DISTRICT-COUNCIL/WALSALL,30/09/2018,CHILDRENS SERVICES,BANNER GROUP LTD,02/07/2018,H59620180704LJDQUSSJG-1,27.24,BIRCHILLS CHILDCARE SERVICES-CLEANING MATERIALS,"OFFICE, SCHOOL SUPPLY, AND STATIONERY STORES",GPC
WALSALL COUNCIL,HTTP://OPENDATACOMMUNITIES.ORG/ID/METROPOLITAN-DISTRICT-COUNCIL/WALSALL,30/09/2018,RESOURCES & TRANSFORMATION,BLAKEMORE FOODSERVICE,02/07/2018,H59620180704LNXWMUGRR-1,58.85,CA MOORCROFT WOOD-DRY FOODS-PROVISIONS,CATERERS,GPC
WALSALL COUNCIL,HTTP://OPENDATACOMMUNITIES.ORG/ID/METROPOLITAN-DISTRICT-COUNCIL/WALSALL,30/09/2018,CHILDRENS SERVICES,VISTAPRINT,02/07/2018,H59620180704LSSYTGJBJ-1,111.99,ADMINISTRATIVE SUPPLIES-GENERAL MATERIALS,MISCELLANEOUS PUBLISHING AND PRINTING,GPC
WALSALL COUNCIL,HTTP://OPENDATACOMMUNITIES.ORG/ID/METROPOLITAN-DISTRICT-COUNCIL/WALSALL,30/09/2018,RESOURCES & TRANSFORMATION,TRAINLINE,02/07/2018,H59620180704MKIDSWNOM-1,95.10,LITIGATION-TRAVEL ALLOWANCE-ALLOWANCES TO,PASSENGER RAILWAYS,GPC
WALSALL COUNCIL,HTTP://OPENDATACOMMUNITIES.ORG/ID/METROPOLITAN-DISTRICT-COUNCIL/WALSALL,30/09/2018,CHILDRENS SERVICES,W M MORRISONS.COM,02/07/2018,H59620180704MTXKJMEUA-1,32.34,57 LICHFIELD ROAD-FOOD AND BEVERAGES-PROVISIONS,GROCERY STORES AND SUPERMARKETS,GPC
WALSALL COUNCIL,HTTP://OPENDATACOMMUNITIES.ORG/ID/METROPOLITAN-DISTRICT-COUNCIL/WALSALL,30/09/2018,CHILDRENS SERVICES,W M MORRISONS.COM,02/07/2018,H59620180704MTXKJMEUA-2,95.97,57 LICHFIELD ROAD-FOOD AND BEVERAGES-PROVISIONS,GROCERY STORES AND SUPERMARKETS,GPC
WALSALL COUNCIL,HTTP://OPENDATACOMMUNITIES.ORG/ID/METROPOLITAN-DISTRICT-COUNCIL/WALSALL,30/09/2018,ECONOMY & ENVIRONMENT,THE BEST FUN LIMIT,02/07/2018,H59620180704MVRUDHCUP-1,272.00,ACTIVE ENGLAND-FURNITURE & EQUIPMENT,OTHER RECREATION SERVICES,GPC
WALSALL COUNCIL,HTTP://OPENDATACOMMUNITIES.ORG/ID/METROPOLITAN-DISTRICT-COUNCIL/WALSALL,30/09/2018,RESOURCES & TRANSFORMATION,BLAKEMORE FOODSERVICE,02/07/2018,H59620180704NCQXZHNEL-1,199.05,CA LEIGHSWOOD PRIMARY SCHOOL-DRY FOODS-PROVISIONS,CATERERS,GPC
WALSALL COUNCIL,HTTP://OPENDATACOMMUNITIES.ORG/ID/METROPOLITAN-DISTRICT-COUNCIL/WALSALL,30/09/2018,RESOURCES & TRANSFORMATION,BLAKEMORE FOODSERVICE,02/07/2018,H59620180704NCQXZHNEL-2,171.16,CA LEIGHSWOOD PRIMARY SCHOOL-DRY FOODS-PROVISIONS,CATERERS,GPC
WALSALL COUNCIL,HTTP://OPENDATACOMMUNITIES.ORG/ID/METROPOLITAN-DISTRICT-COUNCIL/WALSALL,30/09/2018,CHILDRENS SERVICES,HM PASSPORT OFFICE,02/07/2018,H59620180704NLUOTYDPJ-1,58.50,LOOKED AFTER CHILDRENS SOCIAL -MISC FEES AND EXPENSES,GOVERNMENT SERVICES,GPC
WALSALL COUNCIL,HTTP://OPENDATACOMMUNITIES.ORG/ID/METROPOLITAN-DISTRICT-COUNCIL/WALSALL,30/09/2018,RESOURCES & TRANSFORMATION,BLAKEMORE FOODSERVICE,02/07/2018,H59620180704NNWGGPVNE-1,150.48,CA CROFT COMMUNITY PRIMARY SCH-FROZEN FOODS-PROVISIONS,CATERERS,GPC
WALSALL COUNCIL,HTTP://OPENDATACOMMUNITIES.ORG/ID/METROPOLITAN-DISTRICT-COUNCIL/WALSALL,30/09/2018,RESOURCES & TRANSFORMATION,BLAKEMORE FOODSERVICE,02/07/2018,H59620180704NNWGGPVNE-2,16.66,CA CROFT COMMUNITY PRIMARY SCH-FROZEN FOODS-PROVISIONS,CATERERS,GPC
WALSALL COUNCIL,HTTP://OPENDATACOMMUNITIES.ORG/ID/METROPOLITAN-DISTRICT-COUNCIL/WALSALL,30/09/2018,RESOURCES & TRANSFORMATION,BLAKEMORE FOODSERVICE,02/07/2018,H59620180704OJXRWIBXF-1,154.88,CA JANE LANE SPECIAL SCHOOL-FROZEN FOODS-PROVISIONS,CATERERS,GPC
WALSALL COUNCIL,HTTP://OPENDATACOMMUNITIES.ORG/ID/METROPOLITAN-DISTRICT-COUNCIL/WALSALL,30/09/2018,RESOURCES & TRANSFORMATION,BLAKEMORE FOODSERVICE,02/07/2018,H59620180704OPFBHISIX-1,532.49,CA ST JOHNS C.E. PRIMARY SCHOO-DRY FOODS-PROVISIONS,CATERERS,GPC
WALSALL COUNCIL,HTTP://OPENDATACOMMUNITIES.ORG/ID/METROPOLITAN-DISTRICT-COUNCIL/WALSALL,30/09/2018,RESOURCES & TRANSFORMATION,BLAKEMORE FOODSERVICE,02/07/2018,H59620180704OPFBHISIX-2,103.68,CA ST JOHNS C.E. PRIMARY SCHOO-DRY FOODS-PROVISIONS,CATERERS,GPC
WALSALL COUNCIL,HTTP://OPENDATACOMMUNITIES.ORG/ID/METROPOLITAN-DISTRICT-COUNCIL/WALSALL,30/09/2018,CHILDRENS SERVICES,ASDA GROCERIES ONLINE,02/07/2018,H59620180704PEEYHHTXJ-1,6.70,ADMINISTRATIVE SUPPLIES-GENERAL MATERIALS,GROCERY STORES AND SUPERMARKETS,GPC
WALSALL COUNCIL,HTTP://OPENDATACOMMUNITIES.ORG/ID/METROPOLITAN-DISTRICT-COUNCIL/WALSALL,30/09/2018,CHILDRENS SERVICES,ASDA GROCERIES ONLINE,02/07/2018,H59620180704PEEYHHTXJ-2,57.68,ADMINISTRATIVE SUPPLIES-GENERAL MATERIALS,GROCERY STORES AND SUPERMARKETS,GPC
WALSALL COUNCIL,HTTP://OPENDATACOMMUNITIES.ORG/ID/METROPOLITAN-DISTRICT-COUNCIL/WALSALL,30/09/2018,RESOURCES & TRANSFORMATION,BLAKEMORE FOODSERVICE,02/07/2018,H59620180704PEWTILKUE-1,209.25,CA COOPER JORDAN CE PRIMARY SC-DRY FOODS-PROVISIONS,CATERERS,GPC
WALSALL COUNCIL,HTTP://OPENDATACOMMUNITIES.ORG/ID/METROPOLITAN-DISTRICT-COUNCIL/WALSALL,30/09/2018,RESOURCES & TRANSFORMATION,BLAKEMORE FOODSERVICE,02/07/2018,H59620180704PEWTILKUE-2,23.04,CA COOPER JORDAN CE PRIMARY SC-DRY FOODS-PROVISIONS,CATERERS,GPC
WALSALL COUNCIL,HTTP://OPENDATACOMMUNITIES.ORG/ID/METROPOLITAN-DISTRICT-COUNCIL/WALSALL,30/09/2018,CHILDRENS SERVICES,HM PASSPORT OFFICE,02/07/2018,H59620180704PGDNKPTEN-1,58.50,LOOKED AFTER CHILDRENS SOCIAL -MISC FEES AND EXPENSES,GOVERNMENT SERVICES,GPC
WALSALL COUNCIL,HTTP://OPENDATACOMMUNITIES.ORG/ID/METROPOLITAN-DISTRICT-COUNCIL/WALSALL,30/09/2018,RESOURCES & TRANSFORMATION,BLAKEMORE FOODSERVICE,02/07/2018,H59620180704PYOXFWYLY-1,129.02,CA BEACON PRIMARY SCHOOL-FROZEN FOODS-PROVISIONS,CATERERS,GPC
WALSALL COUNCIL,HTTP://OPENDATACOMMUNITIES.ORG/ID/METROPOLITAN-DISTRICT-COUNCIL/WALSALL,30/09/2018,RESOURCES & TRANSFORMATION,BLAKEMORE FOODSERVICE,02/07/2018,H59620180704PYOXFWYLY-2,16.66,CA BEACON PRIMARY SCHOOL-FROZEN FOODS-PROVISIONS,CATERERS,GPC
WALSALL COUNCIL,HTTP://OPENDATACOMMUNITIES.ORG/ID/METROPOLITAN-DISTRICT-COUNCIL/WALSALL,30/09/2018,RESOURCES & TRANSFORMATION,BLAKEMORE FOODSERVICE,02/07/2018,H59620180704QAXPMNRQQ-1,-58.85,CA MOORCROFT WOOD-DRY FOODS-PROVISIONS,CATERERS,GPC
WALSALL COUNCIL,HTTP://OPENDATACOMMUNITIES.ORG/ID/METROPOLITAN-DISTRICT-COUNCIL/WALSALL,30/09/2018,CHILDRENS SERVICES,WWW.MY.MORRISONS.C,02/07/2018,H59620180704QMHOXHFKB-1,20.00,ADMINISTRATIVE SUPPLIES-FOOD AND BEVERAGES-PROVISIONS,GROCERY STORES AND SUPERMARKETS,GPC
WALSALL COUNCIL,HTTP://OPENDATACOMMUNITIES.ORG/ID/METROPOLITAN-DISTRICT-COUNCIL/WALSALL,30/09/2018,RESOURCES & TRANSFORMATION,BLAKEMORE FOODSERVICE,02/07/2018,H59620180704RZKROSMDB-1,165.56,CA KINGSHILL SCHOOL-FROZEN FOODS-PROVISIONS,CATERERS,GPC
WALSALL COUNCIL,HTTP://OPENDATACOMMUNITIES.ORG/ID/METROPOLITAN-DISTRICT-COUNCIL/WALSALL,30/09/2018,ECONOMY & ENVIRONMENT,WWW.TROPICANAFITNESS.C,02/07/2018,H59620180704SCFGZCHSK-1,141.93,OAK PARK-DRINKS-PROVISIONS,MISCELLANEOUS FOOD STORES & CONVENIENCE STORES,GPC
WALSALL COUNCIL,HTTP://OPENDATACOMMUNITIES.ORG/ID/METROPOLITAN-DISTRICT-COUNCIL/WALSALL,30/09/2018,ECONOMY & ENVIRONMENT,EDEN FARM,02/07/2018,H59620180704SCKRRBGWO-1,800.32,OAK PARK-DRINKS-PROVISIONS,MISCELLANEOUS FOOD STORES & CONVENIENCE STORES,GPC
WALSALL COUNCIL,HTTP://OPENDATACOMMUNITIES.ORG/ID/METROPOLITAN-DISTRICT-COUNCIL/WALSALL,30/09/2018,ECONOMY & ENVIRONMENT,DVSA MOT COMP 2,02/07/2018,H59620180704SIDGWFKEC-1,820.00,FLEET-VEHICLE TESTING STATION-MATERI,GOVERNMENT SERVICES,GPC
WALSALL COUNCIL,HTTP://OPENDATACOMMUNITIES.ORG/ID/METROPOLITAN-DISTRICT-COUNCIL/WALSALL,30/09/2018,RESOURCES & TRANSFORMATION,BLAKEMORE FOODSERVICE,02/07/2018,H59620180704SJMMWYMWP-1,44.21,CA LEIGHSWOOD PRIMARY SCHOOL-DRY FOODS-PROVISIONS,CATERERS,GPC
WALSALL COUNCIL,HTTP://OPENDATACOMMUNITIES.ORG/ID/METROPOLITAN-DISTRICT-COUNCIL/WALSALL,30/09/2018,ECONOMY & ENVIRONMENT,WWW.STA.CO.UK,02/07/2018,H59620180704SNZQYREYG-1,350.00,DARLASTON LEISURE CENTRE-FEES & LICENCES-SERVICES,OTHER RECREATION SERVICES,GPC
WALSALL COUNCIL,HTTP://OPENDATACOMMUNITIES.ORG/ID/METROPOLITAN-DISTRICT-COUNCIL/WALSALL,30/09/2018,CHILDRENS SERVICES,REGISTRATION SERVICES,02/07/2018,H59620180704STMHMNOFV-1,20.00,LOOKED AFTER CHILDRENS SOCIAL -MISC FEES AND EXPENSES,OTHER RECREATION SERVICES,GPC
WALSALL COUNCIL,HTTP://OPENDATACOMMUNITIES.ORG/ID/METROPOLITAN-DISTRICT-COUNCIL/WALSALL,30/09/2018,CHILDRENS SERVICES,ONE STOP 6322,02/07/2018,H59620180704SYFANNPJC-1,4.00,LOCALITY FAMILY SUPPORT-WEST-FOOD AND BEVERAGES-PROVISIONS,GROCERY STORES AND SUPERMARKETS,GPC
WALSALL COUNCIL,HTTP://OPENDATACOMMUNITIES.ORG/ID/METROPOLITAN-DISTRICT-COUNCIL/WALSALL,30/09/2018,CHILDRENS SERVICES,ASDA STORES,02/07/2018,H59620180704TOYMVZFEF-1,36.14,LOCALITY FAMILY SUPPORT-WEST-FOOD AND BEVERAGES-PROVISIONS,GROCERY STORES AND SUPERMARKETS,GPC
WALSALL COUNCIL,HTTP://OPENDATACOMMUNITIES.ORG/ID/METROPOLITAN-DISTRICT-COUNCIL/WALSALL,30/09/2018,CHILDRENS SERVICES,ASDA STORES,02/07/2018,H59620180704TOYMVZFEF-2,0.36,LOCALITY FAMILY SUPPORT-WEST-MISCELLANEOUS SUPPLIES,GROCERY STORES AND SUPERMARKETS,GPC
WALSALL COUNCIL,HTTP://OPENDATACOMMUNITIES.ORG/ID/METROPOLITAN-DISTRICT-COUNCIL/WALSALL,30/09/2018,CHILDRENS SERVICES,ASDA STORES,02/07/2018,H59620180704TOYMVZFEF-3,1.00,LOCALITY FAMILY SUPPORT-WEST-CLEANING MATERIALS,GROCERY STORES AND SUPERMARKETS,GPC
WALSALL COUNCIL,HTTP://OPENDATACOMMUNITIES.ORG/ID/METROPOLITAN-DISTRICT-COUNCIL/WALSALL,30/09/2018,ECONOMY & ENVIRONMENT,BANNER GROUP LTD,02/07/2018,H59620180704TWRQYHGKL-1,28.66,CENTRALISED STATIONARY-STATIONERY & GENERAL SUPPLIES-,"OFFICE, SCHOOL SUPPLY, AND STATIONERY STORES",GPC
WALSALL COUNCIL,HTTP://OPENDATACOMMUNITIES.ORG/ID/METROPOLITAN-DISTRICT-COUNCIL/WALSALL,30/09/2018,CHILDRENS SERVICES,B&M RETAIL LTD,02/07/2018,H59620180704UBMUWBCMQ-1,6.99,LEARNING ENVIRONMENT-GENERAL MATERIALS,DISCOUNT STORES,GPC
WALSALL COUNCIL,HTTP://OPENDATACOMMUNITIES.ORG/ID/METROPOLITAN-DISTRICT-COUNCIL/WALSALL,30/09/2018,CHILDRENS SERVICES,APL*/CITYCABS,02/07/2018,H59620180704UFUOFZSQJ-1,9.00,DIRECTLY COMMISSIONED NURSING -TRAVEL ALLOWANCE-ALLOWANCES TO,TAXI SERVICES,GPC
WALSALL COUNCIL,HTTP://OPENDATACOMMUNITIES.ORG/ID/METROPOLITAN-DISTRICT-COUNCIL/WALSALL,30/09/2018,ECONOMY & ENVIRONMENT,WWW.STA.CO.UK,02/07/2018,H59620180704VLDAXFULR-1,47.00,OAK PARK-FEES & LICENCES-SERVICES,OTHER RECREATION SERVICES,GPC
WALSALL COUNCIL,HTTP://OPENDATACOMMUNITIES.ORG/ID/METROPOLITAN-DISTRICT-COUNCIL/WALSALL,30/09/2018,CHILDRENS SERVICES,BANNER GROUP LTD,02/07/2018,H59620180704WTQTGYQSK-1,82.46,SAFEGUARDING & FAMILY SUPPORT-STATIONERY & GENERAL SUPPLIES-,"OFFICE, SCHOOL SUPPLY, AND STATIONERY STORES",GPC
WALSALL COUNCIL,HTTP://OPENDATACOMMUNITIES.ORG/ID/METROPOLITAN-DISTRICT-COUNCIL/WALSALL,30/09/2018,RESOURCES & TRANSFORMATION,BLAKEMORE FOODSERVICE,02/07/2018,H59620180704WWKSVPNEV-1,206.73,CA BUSILL JONES PRIMARY SCHOOL-FROZEN FOODS-PROVISIONS,CATERERS,GPC
WALSALL COUNCIL,HTTP://OPENDATACOMMUNITIES.ORG/ID/METROPOLITAN-DISTRICT-COUNCIL/WALSALL,30/09/2018,ECONOMY & ENVIRONMENT,CARTRIDGE SAVE,02/07/2018,H59620180704WWPYDYXMV-1,379.10,LICENSING ADMINISTRATION-STATIONERY & GENERAL SUPPLIES-,"STATIONERY, OFFICE SUPPLIES AND WRITING PAPER",GPC
WALSALL COUNCIL,HTTP://OPENDATACOMMUNITIES.ORG/ID/METROPOLITAN-DISTRICT-COUNCIL/WALSALL,30/09/2018,CHILDRENS SERVICES,AMAZON UK MARKETPLACE,02/07/2018,H59620180704YKYWTZQMS-1,77.98,ICT (COMPUTING)-GENERAL MATERIALS,BOOK STORES,GPC
WALSALL COUNCIL,HTTP://OPENDATACOMMUNITIES.ORG/ID/METROPOLITAN-DISTRICT-COUNCIL/WALSALL,30/09/2018,CHILDRENS SERVICES,BANNER GROUP LTD,02/07/2018,H59620180704YLQJSIWQY-1,36.10,SEN ASSESSMENT-STATIONERY & GENERAL SUPPLIES-,"OFFICE, SCHOOL SUPPLY, AND STATIONERY STORES",GPC
WALSALL COUNCIL,HTTP://OPENDATACOMMUNITIES.ORG/ID/METROPOLITAN-DISTRICT-COUNCIL/WALSALL,30/09/2018,RESOURCES & TRANSFORMATION,BLAKEMORE FOODSERVICE,02/07/2018,H59620180704YWXJIKFCB-1,271.70,CA BIRCHILLS CE PRIMARY COMMUN-FROZEN FOODS-PROVISIONS,CATERERS,GPC
WALSALL COUNCIL,HTTP://OPENDATACOMMUNITIES.ORG/ID/METROPOLITAN-DISTRICT-COUNCIL/WALSALL,30/09/2018,CHILDRENS SERVICES - SCHOOLS,AMAZON UK MARKETPLACE,02/07/2018,H59620180704ZLOJLHKKV-1,23.17,E19-GENERAL MATERIALS,BOOK STORES,GPC
WALSALL COUNCIL,HTTP://OPENDATACOMMUNITIES.ORG/ID/METROPOLITAN-DISTRICT-COUNCIL/WALSALL,30/09/2018,ECONOMY & ENVIRONMENT,L & S ENGINEERS LTD,02/07/2018,H59620180704ZQFHGGPLM-1,14.16,INFRASTRUCTURE MAINTENANCE-GENERAL MATERIALS,HARDWARE STORES,GPC
WALSALL COUNCIL,HTTP://OPENDATACOMMUNITIES.ORG/ID/METROPOLITAN-DISTRICT-COUNCIL/WALSALL,30/09/2018,CHILDRENS SERVICES,AMAZON UK MARKETPLACE,02/07/2018,H59620180705HDTOVPIHH-1,14.97,EARLY YEARS DEPARTMENT-GENERAL MATERIALS,BOOK STORES,GPC
WALSALL COUNCIL,HTTP://OPENDATACOMMUNITIES.ORG/ID/METROPOLITAN-DISTRICT-COUNCIL/WALSALL,30/09/2018,RESOURCES & TRANSFORMATION,TWITTER ONLINE ADS,02/07/2018,H59620180705IEQNCMVQG-1,3.00,SCHOOL HR TRANSACTIONAL TEAM-ADVERTISING STAFF VACANCIES,ADVERTISING SERVICES,GPC
WALSALL COUNCIL,HTTP://OPENDATACOMMUNITIES.ORG/ID/METROPOLITAN-DISTRICT-COUNCIL/WALSALL,30/09/2018,RESOURCES & TRANSFORMATION,AMAZON UK MARKETPLACE,02/07/2018,H59620180705KFOXSPBJM-1,28.95,DATA CENTRES-COMPUTER EQUIPMENT AND SUPPLIE,BOOK STORES,GPC
WALSALL COUNCIL,HTTP://OPENDATACOMMUNITIES.ORG/ID/METROPOLITAN-DISTRICT-COUNCIL/WALSALL,30/09/2018,RESOURCES & TRANSFORMATION,PREMIER INN 44536490,02/07/2018,H59620180705OJMSJXHFU-1,516.00,WELFARE RIGHTS-HOTEL ACCOMMODATION-EMPLOYEES,"EATING PLACES, RESTAURANTS",GPC
WALSALL COUNCIL,HTTP://OPENDATACOMMUNITIES.ORG/ID/METROPOLITAN-DISTRICT-COUNCIL/WALSALL,30/09/2018,CHILDRENS SERVICES,AMAZON UK MARKETPLACE,02/07/2018,H59620180705OLBELDFHV-1,41.18,EARLY YEARS DEPARTMENT-GENERAL MATERIALS,BOOK STORES,GPC
WALSALL COUNCIL,HTTP://OPENDATACOMMUNITIES.ORG/ID/METROPOLITAN-DISTRICT-COUNCIL/WALSALL,30/09/2018,CHILDRENS SERVICES,AMAZON UK MARKETPLACE,02/07/2018,H59620180705OLBELDFHV-2,8.99,EARLY YEARS DEPARTMENT-GENERAL MATERIALS,BOOK STORES,GPC
WALSALL COUNCIL,HTTP://OPENDATACOMMUNITIES.ORG/ID/METROPOLITAN-DISTRICT-COUNCIL/WALSALL,30/09/2018,CHILDRENS SERVICES,WM MORRISON FOOD.COM,02/07/2018,H59620180705OTJMWXQBG-1,20.28,BIRCHILLS CHILDCARE SERVICES-FOOD AND BEVERAGES-PROVISIONS,GROCERY STORES AND SUPERMARKETS,GPC
WALSALL COUNCIL,HTTP://OPENDATACOMMUNITIES.ORG/ID/METROPOLITAN-DISTRICT-COUNCIL/WALSALL,30/09/2018,CHILDRENS SERVICES,WM MORRISON FOOD.COM,02/07/2018,H59620180705OTJMWXQBG-2,142.98,BIRCHILLS CHILDCARE SERVICES-FOOD AND BEVERAGES-PROVISIONS,GROCERY STORES AND SUPERMARKETS,GPC
WALSALL COUNCIL,HTTP://OPENDATACOMMUNITIES.ORG/ID/METROPOLITAN-DISTRICT-COUNCIL/WALSALL,30/09/2018,CHILDRENS SERVICES,AMAZON UK MARKETPLACE,02/07/2018,H59620180705UCFGUPOQH-1,18.99,FSA EQUIPMENT-GENERAL MATERIALS,BOOK STORES,GPC
WALSALL COUNCIL,HTTP://OPENDATACOMMUNITIES.ORG/ID/METROPOLITAN-DISTRICT-COUNCIL/WALSALL,30/09/2018,RESOURCES & TRANSFORMATION,WWW.SCC.COM,02/07/2018,H59620180803NPPHTFYMP-1,402.50,RECHARGEABLE EQUIPMENT-COMPUTER EQUIPMENT AND SUPPLIE,"COMPUTERS, COMPUTER PERIPHERAL EQUIPMENT, SOFTWARE",GPC
WALSALL COUNCIL,HTTP://OPENDATACOMMUNITIES.ORG/ID/METROPOLITAN-DISTRICT-COUNCIL/WALSALL,30/09/2018,RESOURCES & TRANSFORMATION,SAINSBURYS S/MKTS,03/07/2018,H59620180705AXHGPWUVY-1,6.20,TOWN HALL RESTAURANT BISTRO-FRUIT & VEGETABLES OTHER-PROVI,GROCERY STORES AND SUPERMARKETS,GPC
WALSALL COUNCIL,HTTP://OPENDATACOMMUNITIES.ORG/ID/METROPOLITAN-DISTRICT-COUNCIL/WALSALL,30/09/2018,CHILDRENS SERVICES,DART-CHARGE,03/07/2018,H59620180705BIUYWZWKT-1,70.00,LOOKED AFTER CHILDRENS SOCIAL -OTHER-TRAVEL ALLOWANCES,BRIDGE/ROAD FEES & TOLLS,GPC
WALSALL COUNCIL,HTTP://OPENDATACOMMUNITIES.ORG/ID/METROPOLITAN-DISTRICT-COUNCIL/WALSALL,30/09/2018,RESOURCES & TRANSFORMATION,WP ENGINE,03/07/2018,H59620180705BSTJNNYEQ-1,227.84,ICT INCOME-COMPUTER EQUIPMENT AND SUPPLIE,"COMPUTER PROGRAM, SYSTEM DESIGN",GPC
WALSALL COUNCIL,HTTP://OPENDATACOMMUNITIES.ORG/ID/METROPOLITAN-DISTRICT-COUNCIL/WALSALL,30/09/2018,CHILDRENS SERVICES,REGISTRATION SERVICES,03/07/2018,H59620180705CKDPKGQIO-1,10.00,LOOKED AFTER CHILDRENS SOCIAL -MISC FEES AND EXPENSES,OTHER RECREATION SERVICES,GPC
WALSALL COUNCIL,HTTP://OPENDATACOMMUNITIES.ORG/ID/METROPOLITAN-DISTRICT-COUNCIL/WALSALL,30/09/2018,CHILDRENS SERVICES,WM MORRISONS,03/07/2018,H59620180705CLFXBGEGO-1,2.02,57 LICHFIELD ROAD-FOOD AND BEVERAGES-PROVISIONS,GROCERY STORES AND SUPERMARKETS,GPC
WALSALL COUNCIL,HTTP://OPENDATACOMMUNITIES.ORG/ID/METROPOLITAN-DISTRICT-COUNCIL/WALSALL,30/09/2018,CHILDRENS SERVICES,WM MORRISONS,03/07/2018,H59620180705CLFXBGEGO-2,5.38,57 LICHFIELD ROAD-FOOD AND BEVERAGES-PROVISIONS,GROCERY STORES AND SUPERMARKETS,GPC
WALSALL COUNCIL,HTTP://OPENDATACOMMUNITIES.ORG/ID/METROPOLITAN-DISTRICT-COUNCIL/WALSALL,30/09/2018,CHILDRENS SERVICES,TRAINLINE,03/07/2018,H59620180705CPFCGSXME-1,81.80,FOSTERING SUPPORT TEAM-OFFICER/STAFF-PUBLIC TRANSPORT,PASSENGER RAILWAYS,GPC
WALSALL COUNCIL,HTTP://OPENDATACOMMUNITIES.ORG/ID/METROPOLITAN-DISTRICT-COUNCIL/WALSALL,30/09/2018,RESOURCES & TRANSFORMATION,GRO HM PASSPORT OFFICE,03/07/2018,H59620180705CTSMABORE-1,9.25,TENANCY SERVICE-MISC FEES AND EXPENSES,GOVERNMENT SERVICES,GPC
WALSALL COUNCIL,HTTP://OPENDATACOMMUNITIES.ORG/ID/METROPOLITAN-DISTRICT-COUNCIL/WALSALL,30/09/2018,RESOURCES & TRANSFORMATION,JOHAL CONV STORE 71872,03/07/2018,H59620180705DCEMQIPIV-1,30.00,TENANCY SERVICE-ELECTRICITY-ENERGY COSTS,GROCERY STORES AND SUPERMARKETS,GPC
WALSALL COUNCIL,HTTP://OPENDATACOMMUNITIES.ORG/ID/METROPOLITAN-DISTRICT-COUNCIL/WALSALL,30/09/2018,RESOURCES & TRANSFORMATION,CHICKEN JOES LTD,03/07/2018,H59620180705DJKMWRVIC-1,103.05,CA RADLEYS PRIMARY SCHOOL-FROZEN FOODS-PROVISIONS,CATERERS,GPC
WALSALL COUNCIL,HTTP://OPENDATACOMMUNITIES.ORG/ID/METROPOLITAN-DISTRICT-COUNCIL/WALSALL,30/09/2018,RESOURCES & TRANSFORMATION,CHICKEN JOES LTD,03/07/2018,H59620180705EDFUTMUWG-1,46.76,CA MEADOW VIEW JMI PRIMARY SCH-FROZEN FOODS-PROVISIONS,CATERERS,GPC
WALSALL COUNCIL,HTTP://OPENDATACOMMUNITIES.ORG/ID/METROPOLITAN-DISTRICT-COUNCIL/WALSALL,30/09/2018,CHILDRENS SERVICES,THE BOOK PEOPLE,03/07/2018,H59620180705EQETBFNLJ-1,119.60,ENGLISH-LIBRARY BOOKS,BOOK STORES,GPC
WALSALL COUNCIL,HTTP://OPENDATACOMMUNITIES.ORG/ID/METROPOLITAN-DISTRICT-COUNCIL/WALSALL,30/09/2018,ECONOMY & ENVIRONMENT,WEST COAST TRAINS,03/07/2018,H59620180705EWLGLOOTV-1,18.00,NEW ART GALLERY - ADMIN-OFFICER/STAFF-PUBLIC TRANSPORT,PASSENGER RAILWAYS,GPC
WALSALL COUNCIL,HTTP://OPENDATACOMMUNITIES.ORG/ID/METROPOLITAN-DISTRICT-COUNCIL/WALSALL,30/09/2018,CHILDRENS SERVICES,EXPEDIA 7363434692276,03/07/2018,H59620180705FSOQXRVLL-1,180.00,INITIAL RESPONSE SERVICE-HOTEL ACCOMMODATION-EMPLOYEES,TRAVEL AGENCIES AND TOUR OPERATORS,GPC
WALSALL COUNCIL,HTTP://OPENDATACOMMUNITIES.ORG/ID/METROPOLITAN-DISTRICT-COUNCIL/WALSALL,30/09/2018,CHILDRENS SERVICES,SAINSBURYS S/MKTS,03/07/2018,H59620180705FWGQMSUOS-1,9.50,"43A HILTON ROAD, WILLENHALL-RESIDENTS PERSONAL EXPENSES-AL",GROCERY STORES AND SUPERMARKETS,GPC
WALSALL COUNCIL,HTTP://OPENDATACOMMUNITIES.ORG/ID/METROPOLITAN-DISTRICT-COUNCIL/WALSALL,30/09/2018,CHILDRENS SERVICES,NCP LIMITED,03/07/2018,H59620180705GEEQQMWIM-1,1.00,REDRUTH ROAD-OFFICERS/STAFF-CAR ALLOWANCES,AUTOMOBILE PARKING LOTS AND GARAGES,GPC
WALSALL COUNCIL,HTTP://OPENDATACOMMUNITIES.ORG/ID/METROPOLITAN-DISTRICT-COUNCIL/WALSALL,30/09/2018,RESOURCES & TRANSFORMATION,JOHAL CONV STORE 71872,03/07/2018,H59620180705GMTQOWLUL-1,15.00,TENANCY SERVICE-ELECTRICITY-ENERGY COSTS,GROCERY STORES AND SUPERMARKETS,GPC
WALSALL COUNCIL,HTTP://OPENDATACOMMUNITIES.ORG/ID/METROPOLITAN-DISTRICT-COUNCIL/WALSALL,30/09/2018,RESOURCES & TRANSFORMATION,JOHAL CONV STORE 71872,03/07/2018,H59620180705IHVYIIBXE-1,15.00,TENANCY SERVICE-ELECTRICITY-ENERGY COSTS,GROCERY STORES AND SUPERMARKETS,GPC
WALSALL COUNCIL,HTTP://OPENDATACOMMUNITIES.ORG/ID/METROPOLITAN-DISTRICT-COUNCIL/WALSALL,30/09/2018,CHILDRENS SERVICES,AMAZON UK MARKETPLACE,03/07/2018,H59620180705IIIJNNQSR-1,8.08,ENGLISH-GENERAL MATERIALS,BOOK STORES,GPC
WALSALL COUNCIL,HTTP://OPENDATACOMMUNITIES.ORG/ID/METROPOLITAN-DISTRICT-COUNCIL/WALSALL,30/09/2018,RESOURCES & TRANSFORMATION,NOBISCO LIMITED,03/07/2018,H59620180705ISZXZGZRE-1,353.85,TOWN HALL RESTAURANT BISTRO-DISPOSABLES-PROVISIONS,OTHER INDUSTRIAL SUPPLIES,GPC
WALSALL COUNCIL,HTTP://OPENDATACOMMUNITIES.ORG/ID/METROPOLITAN-DISTRICT-COUNCIL/WALSALL,30/09/2018,RESOURCES & TRANSFORMATION,CHICKEN JOES LTD,03/07/2018,H59620180705JCMJTOGUQ-1,59.81,CA BROWNHILLS WEST PRIMARY SCH-FROZEN FOODS-PROVISIONS,CATERERS,GPC
WALSALL COUNCIL,HTTP://OPENDATACOMMUNITIES.ORG/ID/METROPOLITAN-DISTRICT-COUNCIL/WALSALL,30/09/2018,CHILDRENS SERVICES,WEST MID TRAVEL,03/07/2018,H59620180705JDRVTHCOD-1,115.00,SAFEGUARDING & FAMILY SUPPORT-OFFICER/STAFF-PUBLIC TRANSPORT,BUS LINES,GPC
WALSALL COUNCIL,HTTP://OPENDATACOMMUNITIES.ORG/ID/METROPOLITAN-DISTRICT-COUNCIL/WALSALL,30/09/2018,CHILDRENS SERVICES,WEST MID TRAVEL,03/07/2018,H59620180705JDRVTHCOD-2,6.25,SAFEGUARDING & FAMILY SUPPORT-POSTAGES AND COURIER SERVICES,BUS LINES,GPC
WALSALL COUNCIL,HTTP://OPENDATACOMMUNITIES.ORG/ID/METROPOLITAN-DISTRICT-COUNCIL/WALSALL,30/09/2018,CHILDRENS SERVICES,W M MORRISONS.COM,03/07/2018,H59620180705JNTXNTOYL-1,12.12,BLUEBELLS-FOOD AND BEVERAGES-PROVISIONS,GROCERY STORES AND SUPERMARKETS,GPC
WALSALL COUNCIL,HTTP://OPENDATACOMMUNITIES.ORG/ID/METROPOLITAN-DISTRICT-COUNCIL/WALSALL,30/09/2018,CHILDRENS SERVICES,W M MORRISONS.COM,03/07/2018,H59620180705JNTXNTOYL-2,45.55,BLUEBELLS-FOOD AND BEVERAGES-PROVISIONS,GROCERY STORES AND SUPERMARKETS,GPC
WALSALL COUNCIL,HTTP://OPENDATACOMMUNITIES.ORG/ID/METROPOLITAN-DISTRICT-COUNCIL/WALSALL,30/09/2018,RESOURCES & TRANSFORMATION,CHICKEN JOES LTD,03/07/2018,H59620180705JPFQDSNSN-1,43.96,CA RUSHALL JMI SCHOOL-FROZEN FOODS-PROVISIONS,CATERERS,GPC
WALSALL COUNCIL,HTTP://OPENDATACOMMUNITIES.ORG/ID/METROPOLITAN-DISTRICT-COUNCIL/WALSALL,30/09/2018,CHILDRENS SERVICES,AMZ*STRINGSDIRECT-AM,03/07/2018,H59620180705KMCFRTFIK-1,35.90,ST FRANCIS OF ASSISI CATHOLIC -GENERAL MATERIALS,COMPUTER NETWORK/INFORMATION SERVICES,GPC
WALSALL COUNCIL,HTTP://OPENDATACOMMUNITIES.ORG/ID/METROPOLITAN-DISTRICT-COUNCIL/WALSALL,30/09/2018,RESOURCES & TRANSFORMATION,CHICKEN JOES LTD,03/07/2018,H59620180705KOXQPVYNM-1,43.96,CA LEIGHSWOOD PRIMARY SCHOOL-FROZEN FOODS-PROVISIONS,CATERERS,GPC
WALSALL COUNCIL,HTTP://OPENDATACOMMUNITIES.ORG/ID/METROPOLITAN-DISTRICT-COUNCIL/WALSALL,30/09/2018,CHILDRENS SERVICES,AMAZON UK MARKETPLACE,03/07/2018,H59620180705LJMWDUXRV-1,77.98,EARLY YEARS DEPARTMENT-GENERAL MATERIALS,BOOK STORES,GPC
WALSALL COUNCIL,HTTP://OPENDATACOMMUNITIES.ORG/ID/METROPOLITAN-DISTRICT-COUNCIL/WALSALL,30/09/2018,RESOURCES & TRANSFORMATION,NOBISCO LIMITED,03/07/2018,H59620180705LKCAKYSYY-1,107.26,CA BLUE COAT C OF E PERFORMING-DISPOSABLES-PROVISIONS,OTHER INDUSTRIAL SUPPLIES,GPC
WALSALL COUNCIL,HTTP://OPENDATACOMMUNITIES.ORG/ID/METROPOLITAN-DISTRICT-COUNCIL/WALSALL,30/09/2018,RESOURCES & TRANSFORMATION,CHICKEN JOES LTD,03/07/2018,H59620180705LWOIBINUP-1,55.65,CA ST MICHAELS C.E. PRIMARY SC-FROZEN FOODS-PROVISIONS,CATERERS,GPC
WALSALL COUNCIL,HTTP://OPENDATACOMMUNITIES.ORG/ID/METROPOLITAN-DISTRICT-COUNCIL/WALSALL,30/09/2018,RESOURCES & TRANSFORMATION,CHICKEN JOES LTD,03/07/2018,H59620180705MCLPMOIGS-1,62.02,CA LINDENS PRIMARY SCHOOL-FROZEN FOODS-PROVISIONS,CATERERS,GPC
WALSALL COUNCIL,HTTP://OPENDATACOMMUNITIES.ORG/ID/METROPOLITAN-DISTRICT-COUNCIL/WALSALL,30/09/2018,CHILDRENS SERVICES,J D SPORTS 595,03/07/2018,H59620180705MPSPXNQXF-1,30.00,"43A HILTON ROAD, WILLENHALL-RESIDENTS PERSONAL EXPENSES-AL",SPORTING GOODS STORES,GPC
WALSALL COUNCIL,HTTP://OPENDATACOMMUNITIES.ORG/ID/METROPOLITAN-DISTRICT-COUNCIL/WALSALL,30/09/2018,CHILDRENS SERVICES,ASDA SUPERSTORE,03/07/2018,H59620180705NDIDBHMJL-1,8.34,LOCALITY FAMILY SUPPORT-NORTH-FOOD AND BEVERAGES-PROVISIONS,GROCERY STORES AND SUPERMARKETS,GPC
WALSALL COUNCIL,HTTP://OPENDATACOMMUNITIES.ORG/ID/METROPOLITAN-DISTRICT-COUNCIL/WALSALL,30/09/2018,CHILDRENS SERVICES,TESCO STORES 6161,03/07/2018,H59620180705NGOVHQVNR-1,8.50,SPINDLETREE-RESIDENTS PERSONAL EXPENSES-AL,GROCERY STORES AND SUPERMARKETS,GPC
WALSALL COUNCIL,HTTP://OPENDATACOMMUNITIES.ORG/ID/METROPOLITAN-DISTRICT-COUNCIL/WALSALL,30/09/2018,CHILDRENS SERVICES,WALSALL COUNCIL,03/07/2018,H59620180705NHSKXNDVK-1,-44.00,ST JOHNS C.E. PRIMARY SCHOOL-POLICE CHECKS-EMPLOYEES,GOVERNMENT SERVICES,GPC
WALSALL COUNCIL,HTTP://OPENDATACOMMUNITIES.ORG/ID/METROPOLITAN-DISTRICT-COUNCIL/WALSALL,30/09/2018,RESOURCES & TRANSFORMATION,CHICKEN JOES LTD,03/07/2018,H59620180705NJSZSTPNL-1,65.34,CA WATLING STREET PRIMARY SCHO-FROZEN FOODS-PROVISIONS,CATERERS,GPC
WALSALL COUNCIL,HTTP://OPENDATACOMMUNITIES.ORG/ID/METROPOLITAN-DISTRICT-COUNCIL/WALSALL,30/09/2018,ECONOMY & ENVIRONMENT,WWW.UKSAFETYFOOTWEAR.C,03/07/2018,H59620180705NOOEIITSO-1,49.90,FLEET-GENERAL MATERIALS,"MEN'S, WOMEN'S, AND CHILDREN'S UNIFORMS",GPC
WALSALL COUNCIL,HTTP://OPENDATACOMMUNITIES.ORG/ID/METROPOLITAN-DISTRICT-COUNCIL/WALSALL,30/09/2018,RESOURCES & TRANSFORMATION,NOBISCO LIMITED,03/07/2018,H59620180705NXTUPWZYY-1,29.88,CA RUSHALL JMI SCHOOL-DISPOSABLES-PROVISIONS,OTHER INDUSTRIAL SUPPLIES,GPC
WALSALL COUNCIL,HTTP://OPENDATACOMMUNITIES.ORG/ID/METROPOLITAN-DISTRICT-COUNCIL/WALSALL,30/09/2018,CHILDRENS SERVICES,WALSALL COUNCIL,03/07/2018,H59620180705OBFANAVCE-1,46.34,ST FRANCIS OF ASSISI CATHOLIC -MISC FEES AND EXPENSES,GOVERNMENT SERVICES,GPC
WALSALL COUNCIL,HTTP://OPENDATACOMMUNITIES.ORG/ID/METROPOLITAN-DISTRICT-COUNCIL/WALSALL,30/09/2018,ECONOMY & ENVIRONMENT,B & Q 1276,03/07/2018,H59620180705PFFXBTIJW-1,15.14,COUNTRYSIDE MANAGEMENT - OTHER-GENERAL MATERIALS,LUMBER & BUILDING MATERIALS STORES,GPC
WALSALL COUNCIL,HTTP://OPENDATACOMMUNITIES.ORG/ID/METROPOLITAN-DISTRICT-COUNCIL/WALSALL,30/09/2018,CHILDRENS SERVICES,AMAZON UK MARKETPLACE,03/07/2018,H59620180705PKFUTDAKH-1,4.99,EARLY YEARS DEPARTMENT-LIBRARY BOOKS,BOOK STORES,GPC
WALSALL COUNCIL,HTTP://OPENDATACOMMUNITIES.ORG/ID/METROPOLITAN-DISTRICT-COUNCIL/WALSALL,30/09/2018,CHILDRENS SERVICES - SCHOOLS,AMAZON UK MARKETPLACE,03/07/2018,H59620180705PMQTMKEZX-1,3.44,E19-GENERAL MATERIALS,BOOK STORES,GPC
WALSALL COUNCIL,HTTP://OPENDATACOMMUNITIES.ORG/ID/METROPOLITAN-DISTRICT-COUNCIL/WALSALL,30/09/2018,RESOURCES & TRANSFORMATION,CHICKEN JOES LTD,03/07/2018,H59620180705PMQZIVQNM-1,97.05,CA BUSILL JONES PRIMARY SCHOOL-FROZEN FOODS-PROVISIONS,CATERERS,GPC
WALSALL COUNCIL,HTTP://OPENDATACOMMUNITIES.ORG/ID/METROPOLITAN-DISTRICT-COUNCIL/WALSALL,30/09/2018,CHILDRENS SERVICES - SCHOOLS,AMAZON UK MARKETPLACE,03/07/2018,H59620180705PVNGKYRTK-1,11.97,E19-GENERAL MATERIALS,BOOK STORES,GPC
WALSALL COUNCIL,HTTP://OPENDATACOMMUNITIES.ORG/ID/METROPOLITAN-DISTRICT-COUNCIL/WALSALL,30/09/2018,RESOURCES & TRANSFORMATION,CHICKEN JOES LTD,03/07/2018,H59620180705QCGSBGRDE-1,97.61,CA BARCROFT D/C-FROZEN FOODS-PROVISIONS,CATERERS,GPC
WALSALL COUNCIL,HTTP://OPENDATACOMMUNITIES.ORG/ID/METROPOLITAN-DISTRICT-COUNCIL/WALSALL,30/09/2018,RESOURCES & TRANSFORMATION,123-REG.CO.UK,03/07/2018,H59620180705QNJJHMEUG-1,73.16,NETWORKS-RECHARGE FOR MAINTENANCE/APPLI,COMPUTER NETWORK/INFORMATION SERVICES,GPC
WALSALL COUNCIL,HTTP://OPENDATACOMMUNITIES.ORG/ID/METROPOLITAN-DISTRICT-COUNCIL/WALSALL,30/09/2018,RESOURCES & TRANSFORMATION,CHICKEN JOES LTD,03/07/2018,H59620180705QRDCEMNHR-1,79.11,CA ELMORE GREEN PRIMARY SCHOOL-FROZEN FOODS-PROVISIONS,CATERERS,GPC
WALSALL COUNCIL,HTTP://OPENDATACOMMUNITIES.ORG/ID/METROPOLITAN-DISTRICT-COUNCIL/WALSALL,30/09/2018,CHILDRENS SERVICES,FLYBE.COM G961XL,03/07/2018,H59620180705QTCZVYVTE-1,257.00,CHILD PROTECTION & REVIEW SERV-OTHER-TRAVEL ALLOWANCES,AIRLINES AND AIR CARRIERS,GPC
WALSALL COUNCIL,HTTP://OPENDATACOMMUNITIES.ORG/ID/METROPOLITAN-DISTRICT-COUNCIL/WALSALL,30/09/2018,RESOURCES & TRANSFORMATION,BRITISH HEART FOUNDATI,03/07/2018,H59620180705QYHJXJSYY-1,80.00,WALSALL CRISIS SUPPORT SCHEME-CRISIS SUPPORT PAYMENTS,"ORGANIZATIONS, CHARITABLE AND SOCIAL SERVICE",GPC
WALSALL COUNCIL,HTTP://OPENDATACOMMUNITIES.ORG/ID/METROPOLITAN-DISTRICT-COUNCIL/WALSALL,30/09/2018,RESOURCES & TRANSFORMATION,BRITISH HEART FOUNDATI,03/07/2018,H59620180705QYHJXJSYY-2,15.00,WALSALL CRISIS SUPPORT SCHEME-CRISIS SUPPORT PAYMENTS,"ORGANIZATIONS, CHARITABLE AND SOCIAL SERVICE",GPC
WALSALL COUNCIL,HTTP://OPENDATACOMMUNITIES.ORG/ID/METROPOLITAN-DISTRICT-COUNCIL/WALSALL,30/09/2018,CHILDRENS SERVICES,REGISTRATION SERVICES,03/07/2018,H59620180705RIPFZYRSE-1,10.00,TRANSITION AND LEAVING CARE PL-MISC FEES AND EXPENSES,OTHER RECREATION SERVICES,GPC
WALSALL COUNCIL,HTTP://OPENDATACOMMUNITIES.ORG/ID/METROPOLITAN-DISTRICT-COUNCIL/WALSALL,30/09/2018,CHILDRENS SERVICES,TRAINLINE,03/07/2018,H59620180705RPDUNYHKU-1,134.70,SAFEGUARDING & FAMILY SUPPORT-OTHER-TRAVEL ALLOWANCES,PASSENGER RAILWAYS,GPC
WALSALL COUNCIL,HTTP://OPENDATACOMMUNITIES.ORG/ID/METROPOLITAN-DISTRICT-COUNCIL/WALSALL,30/09/2018,CHILDRENS SERVICES,TRAINLINE,03/07/2018,H59620180705RVBZUSQGC-1,9.85,DIRECTLY COMMISSIONED NURSING -TRAVEL ALLOWANCE-ALLOWANCES TO,PASSENGER RAILWAYS,GPC
WALSALL COUNCIL,HTTP://OPENDATACOMMUNITIES.ORG/ID/METROPOLITAN-DISTRICT-COUNCIL/WALSALL,30/09/2018,RESOURCES & TRANSFORMATION,ASDA,03/07/2018,H59620180705RYKEPKOSO-1,11.53,YOUNG PERSONS HOMELESS SERVICE-FOOD AND BEVERAGES-PROVISIONS,GROCERY STORES AND SUPERMARKETS,GPC
WALSALL COUNCIL,HTTP://OPENDATACOMMUNITIES.ORG/ID/METROPOLITAN-DISTRICT-COUNCIL/WALSALL,30/09/2018,RESOURCES & TRANSFORMATION,YOURS CLOTHING,03/07/2018,H59620180705SDRPKCDGG-1,89.02,YOUNG PERSONS HOMELESS SERVICE-CLOTHING & LAUNDRY,WOMENS READY TO WEAR STORES,GPC
WALSALL COUNCIL,HTTP://OPENDATACOMMUNITIES.ORG/ID/METROPOLITAN-DISTRICT-COUNCIL/WALSALL,30/09/2018,RESOURCES & TRANSFORMATION,CHICKEN JOES LTD,03/07/2018,H59620180705SMCKHJWTV-1,35.07,CA COOPER JORDAN CE PRIMARY SC-FROZEN FOODS-PROVISIONS,CATERERS,GPC
WALSALL COUNCIL,HTTP://OPENDATACOMMUNITIES.ORG/ID/METROPOLITAN-DISTRICT-COUNCIL/WALSALL,30/09/2018,ECONOMY & ENVIRONMENT,CO-OPERATIVE FOOD,03/07/2018,H59620180705SSTMHTJOW-1,7.23,CENTRAL SUPPORT SERVICES LEISU-FOOD AND BEVERAGES-PROVISIONS,GROCERY STORES AND SUPERMARKETS,GPC
WALSALL COUNCIL,HTTP://OPENDATACOMMUNITIES.ORG/ID/METROPOLITAN-DISTRICT-COUNCIL/WALSALL,30/09/2018,ECONOMY & ENVIRONMENT,WWW.JACKSONART.CO.UK,03/07/2018,H59620180705TBNIFWBCD-1,66.39,EXHIBITION NO.3-GENERAL MATERIALS,"ARTIST SUPPLY STORES, CRAFT SHOPS",GPC
WALSALL COUNCIL,HTTP://OPENDATACOMMUNITIES.ORG/ID/METROPOLITAN-DISTRICT-COUNCIL/WALSALL,30/09/2018,RESOURCES & TRANSFORMATION,CHICKEN JOES LTD,03/07/2018,H59620180705TFHCHUKIE-1,67.34,CA MOORCROFT WOOD-FROZEN FOODS-PROVISIONS,CATERERS,GPC
WALSALL COUNCIL,HTTP://OPENDATACOMMUNITIES.ORG/ID/METROPOLITAN-DISTRICT-COUNCIL/WALSALL,30/09/2018,CHILDRENS SERVICES,DECATHLON,03/07/2018,H59620180705TYLAXVTBY-1,13.98,SPINDLETREE-RESIDENTS PERSONAL EXPENSES-AL,SPORTING GOODS STORES,GPC
WALSALL COUNCIL,HTTP://OPENDATACOMMUNITIES.ORG/ID/METROPOLITAN-DISTRICT-COUNCIL/WALSALL,30/09/2018,CHILDRENS SERVICES,WALSALL COUNCIL,03/07/2018,H59620180705UCJZHBGWD-1,46.34,ST FRANCIS OF ASSISI CATHOLIC -MISC FEES AND EXPENSES,GOVERNMENT SERVICES,GPC
WALSALL COUNCIL,HTTP://OPENDATACOMMUNITIES.ORG/ID/METROPOLITAN-DISTRICT-COUNCIL/WALSALL,30/09/2018,RESOURCES & TRANSFORMATION,CHICKEN JOES LTD,03/07/2018,H59620180705UNPHSZGUJ-1,76.68,CA ST JOHNS C.E. PRIMARY SCHOO-FROZEN FOODS-PROVISIONS,CATERERS,GPC
WALSALL COUNCIL,HTTP://OPENDATACOMMUNITIES.ORG/ID/METROPOLITAN-DISTRICT-COUNCIL/WALSALL,30/09/2018,CHILDRENS SERVICES - SCHOOLS,AMAZON UK MARKETPLACE,03/07/2018,H59620180705WELIHAYYU-1,19.78,E19-GENERAL MATERIALS,BOOK STORES,GPC
WALSALL COUNCIL,HTTP://OPENDATACOMMUNITIES.ORG/ID/METROPOLITAN-DISTRICT-COUNCIL/WALSALL,30/09/2018,CHILDRENS SERVICES - SCHOOLS,AMAZON UK MARKETPLACE,03/07/2018,H59620180705WELIHAYYU-2,35.80,E19-GENERAL MATERIALS,BOOK STORES,GPC
WALSALL COUNCIL,HTTP://OPENDATACOMMUNITIES.ORG/ID/METROPOLITAN-DISTRICT-COUNCIL/WALSALL,30/09/2018,RESOURCES & TRANSFORMATION,CHICKEN JOES LTD,03/07/2018,H59620180705XADDPEJUM-1,62.54,CA BEACON PRIMARY SCHOOL-FROZEN FOODS-PROVISIONS,CATERERS,GPC
WALSALL COUNCIL,HTTP://OPENDATACOMMUNITIES.ORG/ID/METROPOLITAN-DISTRICT-COUNCIL/WALSALL,30/09/2018,CHILDRENS SERVICES,AMAZON EU AMAZON.CO.UK,03/07/2018,H59620180705XGWXQSQDT-1,10.17,CURRICULUM STOCK-GENERAL MATERIALS,MISCELLANEOUS AND SPECIALTY RETAIL STORES,GPC
WALSALL COUNCIL,HTTP://OPENDATACOMMUNITIES.ORG/ID/METROPOLITAN-DISTRICT-COUNCIL/WALSALL,30/09/2018,RESOURCES & TRANSFORMATION,NOBISCO LIMITED,03/07/2018,H59620180705XQNQCRXGN-1,80.20,CA KINGSHILL SCHOOL-DISPOSABLES-PROVISIONS,OTHER INDUSTRIAL SUPPLIES,GPC
WALSALL COUNCIL,HTTP://OPENDATACOMMUNITIES.ORG/ID/METROPOLITAN-DISTRICT-COUNCIL/WALSALL,30/09/2018,RESOURCES & TRANSFORMATION,CHICKEN JOES LTD,03/07/2018,H59620180705YPMBDXWJS-1,34.35,CA CASTLEFORT JMI SCHOOL-FROZEN FOODS-PROVISIONS,CATERERS,GPC
WALSALL COUNCIL,HTTP://OPENDATACOMMUNITIES.ORG/ID/METROPOLITAN-DISTRICT-COUNCIL/WALSALL,30/09/2018,RESOURCES & TRANSFORMATION,NOBISCO LIMITED,03/07/2018,H59620180705ZCXBIYDQO-1,256.60,TOWN HALL RESTAURANT BISTRO-DISPOSABLES-PROVISIONS,OTHER INDUSTRIAL SUPPLIES,GPC
WALSALL COUNCIL,HTTP://OPENDATACOMMUNITIES.ORG/ID/METROPOLITAN-DISTRICT-COUNCIL/WALSALL,30/09/2018,CHILDRENS SERVICES,AMAZON EU AMAZON.CO.UK,03/07/2018,H59620180706EGQIOREUR-1,20.34,CURRICULUM STOCK-GENERAL MATERIALS,MISCELLANEOUS AND SPECIALTY RETAIL STORES,GPC
WALSALL COUNCIL,HTTP://OPENDATACOMMUNITIES.ORG/ID/METROPOLITAN-DISTRICT-COUNCIL/WALSALL,30/09/2018,RESOURCES & TRANSFORMATION,TVLICENSING.CO.UK,03/07/2018,H59620180706ICLBJHOKV-1,150.50,CHARGING & PAYMENTS-MISCELLANEOUS SUPPLIES,"CONSULTING, MANAGEMENT, AND PR SERVICES",GPC
WALSALL COUNCIL,HTTP://OPENDATACOMMUNITIES.ORG/ID/METROPOLITAN-DISTRICT-COUNCIL/WALSALL,30/09/2018,RESOURCES & TRANSFORMATION,TVLICENSING.CO.UK,03/07/2018,H59620180706KXEDLTWLD-1,150.50,CHARGING & PAYMENTS-MISCELLANEOUS SUPPLIES,"CONSULTING, MANAGEMENT, AND PR SERVICES",GPC
WALSALL COUNCIL,HTTP://OPENDATACOMMUNITIES.ORG/ID/METROPOLITAN-DISTRICT-COUNCIL/WALSALL,30/09/2018,CHILDRENS SERVICES - SCHOOLS,BIRMINGHAM,03/07/2018,H59620180706PWBXQYFTT-1,16.00,PUPIL PREMIUM-GENERAL MATERIALS,TOURIST ATTRACTIONS AND EXHIBITS,GPC
WALSALL COUNCIL,HTTP://OPENDATACOMMUNITIES.ORG/ID/METROPOLITAN-DISTRICT-COUNCIL/WALSALL,30/09/2018,ECONOMY & ENVIRONMENT,WWW.GREATART.CO.UK,03/07/2018,H59620180706XTGGLWMCT-1,12.55,EXHIBITION NO.3-GENERAL MATERIALS,"ARTIST SUPPLY STORES, CRAFT SHOPS",GPC
WALSALL COUNCIL,HTTP://OPENDATACOMMUNITIES.ORG/ID/METROPOLITAN-DISTRICT-COUNCIL/WALSALL,30/09/2018,RESOURCES & TRANSFORMATION,PREMIER INN44533745,03/07/2018,H59620180706ZPTFTRTYB-1,273.00,BED & BREAKFAST PAYMENTS-BED & BREAKFAST PAYMENTS,PREMIER INN,GPC
WALSALL COUNCIL,HTTP://OPENDATACOMMUNITIES.ORG/ID/METROPOLITAN-DISTRICT-COUNCIL/WALSALL,30/09/2018,RESOURCES & TRANSFORMATION,OXLEY GLASS,03/07/2018,H59620180708STBOFGANQ-1,316.80,"TENANCY SERVICE-REPAIRS,ALTERATIONS & MAINTENA",SPECIAL TRADE CONTRACTORS,GPC
WALSALL COUNCIL,HTTP://OPENDATACOMMUNITIES.ORG/ID/METROPOLITAN-DISTRICT-COUNCIL/WALSALL,30/09/2018,ECONOMY & ENVIRONMENT,GILMORE BUILDING S,03/07/2018,H59620180708TSXDRTQLI-1,23.70,INFRASTRUCTURE MAINTENANCE-GENERAL MATERIALS,LUMBER & BUILDING MATERIALS STORES,GPC
WALSALL COUNCIL,HTTP://OPENDATACOMMUNITIES.ORG/ID/METROPOLITAN-DISTRICT-COUNCIL/WALSALL,30/09/2018,RESOURCES & TRANSFORMATION,ARTHUR BRETT CATER,03/07/2018,H59620180714BDSESRHEJ-1,-3.90,CA ELMORE GREEN PRIMARY SCHOOL-FRUIT & VEGETABLES OTHER-PROVI,MISCELLANEOUS FOOD STORES & CONVENIENCE STORES,GPC
WALSALL COUNCIL,HTTP://OPENDATACOMMUNITIES.ORG/ID/METROPOLITAN-DISTRICT-COUNCIL/WALSALL,30/09/2018,RESOURCES & TRANSFORMATION,ARTHUR BRETT CATER,03/07/2018,H59620180714FOYJCYAHY-1,84.71,CA BUSILL JONES PRIMARY SCHOOL-FRUIT & VEGETABLES OTHER-PROVI,MISCELLANEOUS FOOD STORES & CONVENIENCE STORES,GPC
WALSALL COUNCIL,HTTP://OPENDATACOMMUNITIES.ORG/ID/METROPOLITAN-DISTRICT-COUNCIL/WALSALL,30/09/2018,RESOURCES & TRANSFORMATION,ARTHUR BRETT CATER,03/07/2018,H59620180714HPQKCOLKO-1,9.60,CA BEACON PRIMARY SCHOOL-FRUIT & VEGETABLES OTHER-PROVI,MISCELLANEOUS FOOD STORES & CONVENIENCE STORES,GPC
WALSALL COUNCIL,HTTP://OPENDATACOMMUNITIES.ORG/ID/METROPOLITAN-DISTRICT-COUNCIL/WALSALL,30/09/2018,RESOURCES & TRANSFORMATION,ARTHUR BRETT CATER,03/07/2018,H59620180714HRIXVANTC-1,28.93,CA BLOXWICH C.E. JMI PRIMARY S-FRUIT & VEGETABLES OTHER-PROVI,MISCELLANEOUS FOOD STORES & CONVENIENCE STORES,GPC
WALSALL COUNCIL,HTTP://OPENDATACOMMUNITIES.ORG/ID/METROPOLITAN-DISTRICT-COUNCIL/WALSALL,30/09/2018,RESOURCES & TRANSFORMATION,ARTHUR BRETT CATER,03/07/2018,H59620180714KALQCQPFD-1,72.88,CA BEACON PRIMARY SCHOOL-FRUIT & VEGETABLES OTHER-PROVI,MISCELLANEOUS FOOD STORES & CONVENIENCE STORES,GPC
WALSALL COUNCIL,HTTP://OPENDATACOMMUNITIES.ORG/ID/METROPOLITAN-DISTRICT-COUNCIL/WALSALL,30/09/2018,RESOURCES & TRANSFORMATION,ARTHUR BRETT CATER,03/07/2018,H59620180714MPQHCNFUO-1,81.41,CA BIRCHILLS CE PRIMARY COMMUN-FRUIT & VEGETABLES OTHER-PROVI,MISCELLANEOUS FOOD STORES & CONVENIENCE STORES,GPC
WALSALL COUNCIL,HTTP://OPENDATACOMMUNITIES.ORG/ID/METROPOLITAN-DISTRICT-COUNCIL/WALSALL,30/09/2018,RESOURCES & TRANSFORMATION,ARTHUR BRETT CATER,03/07/2018,H59620180714QADLCRBNN-1,128.16,CA BARCROFT D/C-FRUIT & VEGETABLES OTHER-PROVI,MISCELLANEOUS FOOD STORES & CONVENIENCE STORES,GPC
WALSALL COUNCIL,HTTP://OPENDATACOMMUNITIES.ORG/ID/METROPOLITAN-DISTRICT-COUNCIL/WALSALL,30/09/2018,RESOURCES & TRANSFORMATION,ARTHUR BRETT CATER,03/07/2018,H59620180714TQCVYFQWK-1,55.23,CA BROWNHILLS WEST PRIMARY SCH-FRUIT & VEGETABLES OTHER-PROVI,MISCELLANEOUS FOOD STORES & CONVENIENCE STORES,GPC
WALSALL COUNCIL,HTTP://OPENDATACOMMUNITIES.ORG/ID/METROPOLITAN-DISTRICT-COUNCIL/WALSALL,30/09/2018,RESOURCES & TRANSFORMATION,ARTHUR BRETT CATER,03/07/2018,H59620180714YXMGWCVWL-1,44.29,CA BLUE COAT C OF E PERFORMING-FRUIT & VEGETABLES OTHER-PROVI,MISCELLANEOUS FOOD STORES & CONVENIENCE STORES,GPC
WALSALL COUNCIL,HTTP://OPENDATACOMMUNITIES.ORG/ID/METROPOLITAN-DISTRICT-COUNCIL/WALSALL,30/09/2018,RESOURCES & TRANSFORMATION,ARTHUR BRETT CATER,03/07/2018,H59620180717AVUHWSTFK-1,74.90,CA LEIGHSWOOD PRIMARY SCHOOL-FRUIT & VEGETABLES OTHER-PROVI,MISCELLANEOUS FOOD STORES & CONVENIENCE STORES,GPC
WALSALL COUNCIL,HTTP://OPENDATACOMMUNITIES.ORG/ID/METROPOLITAN-DISTRICT-COUNCIL/WALSALL,30/09/2018,RESOURCES & TRANSFORMATION,ARTHUR BRETT CATER,03/07/2018,H59620180717BOYCEIKHV-1,45.82,CA CASTLEFORT JMI SCHOOL-FRUIT & VEGETABLES OTHER-PROVI,MISCELLANEOUS FOOD STORES & CONVENIENCE STORES,GPC
WALSALL COUNCIL,HTTP://OPENDATACOMMUNITIES.ORG/ID/METROPOLITAN-DISTRICT-COUNCIL/WALSALL,30/09/2018,RESOURCES & TRANSFORMATION,ARTHUR BRETT CATER,03/07/2018,H59620180717BZTYGNXHZ-1,43.65,CA ST MICHAELS C.E. PRIMARY SC-FRUIT & VEGETABLES OTHER-PROVI,MISCELLANEOUS FOOD STORES & CONVENIENCE STORES,GPC
WALSALL COUNCIL,HTTP://OPENDATACOMMUNITIES.ORG/ID/METROPOLITAN-DISTRICT-COUNCIL/WALSALL,30/09/2018,RESOURCES & TRANSFORMATION,ARTHUR BRETT CATER,03/07/2018,H59620180717DSCUYCUEW-1,51.20,CA ABBEY PRIMARY SCHOOL-FRUIT & VEGETABLES OTHER-PROVI,MISCELLANEOUS FOOD STORES & CONVENIENCE STORES,GPC
WALSALL COUNCIL,HTTP://OPENDATACOMMUNITIES.ORG/ID/METROPOLITAN-DISTRICT-COUNCIL/WALSALL,30/09/2018,RESOURCES & TRANSFORMATION,ARTHUR BRETT CATER,03/07/2018,H59620180717DSRGSINEU-1,42.12,CA ST FRANCIS CATHOLIC PRIMARY-FRUIT & VEGETABLES OTHER-PROVI,MISCELLANEOUS FOOD STORES & CONVENIENCE STORES,GPC
WALSALL COUNCIL,HTTP://OPENDATACOMMUNITIES.ORG/ID/METROPOLITAN-DISTRICT-COUNCIL/WALSALL,30/09/2018,RESOURCES & TRANSFORMATION,ARTHUR BRETT CATER,03/07/2018,H59620180717DUJGXUPHE-1,50.78,CA LINDENS PRIMARY SCHOOL-FRUIT & VEGETABLES OTHER-PROVI,MISCELLANEOUS FOOD STORES & CONVENIENCE STORES,GPC
WALSALL COUNCIL,HTTP://OPENDATACOMMUNITIES.ORG/ID/METROPOLITAN-DISTRICT-COUNCIL/WALSALL,30/09/2018,RESOURCES & TRANSFORMATION,ARTHUR BRETT CATER,03/07/2018,H59620180717HLJUQDCJG-1,46.49,CA ELMWOOD SPECIAL SCHOOL-FRUIT & VEGETABLES OTHER-PROVI,MISCELLANEOUS FOOD STORES & CONVENIENCE STORES,GPC
WALSALL COUNCIL,HTTP://OPENDATACOMMUNITIES.ORG/ID/METROPOLITAN-DISTRICT-COUNCIL/WALSALL,30/09/2018,RESOURCES & TRANSFORMATION,ARTHUR BRETT CATER,03/07/2018,H59620180717KTHIYOLYT-1,49.64,CA OLD HALL SPECIAL SCHOOL-FRUIT & VEGETABLES OTHER-PROVI,MISCELLANEOUS FOOD STORES & CONVENIENCE STORES,GPC
WALSALL COUNCIL,HTTP://OPENDATACOMMUNITIES.ORG/ID/METROPOLITAN-DISTRICT-COUNCIL/WALSALL,30/09/2018,RESOURCES & TRANSFORMATION,ARTHUR BRETT CATER,03/07/2018,H59620180717NJGBRMCFM-1,86.05,CA CROFT COMMUNITY PRIMARY SCH-FRUIT & VEGETABLES OTHER-PROVI,MISCELLANEOUS FOOD STORES & CONVENIENCE STORES,GPC
WALSALL COUNCIL,HTTP://OPENDATACOMMUNITIES.ORG/ID/METROPOLITAN-DISTRICT-COUNCIL/WALSALL,30/09/2018,RESOURCES & TRANSFORMATION,ARTHUR BRETT CATER,03/07/2018,H59620180717NNVJLPOIG-1,43.13,CA OAKWOOD SPECIAL SCHOOL-FRUIT & VEGETABLES OTHER-PROVI,MISCELLANEOUS FOOD STORES & CONVENIENCE STORES,GPC
WALSALL COUNCIL,HTTP://OPENDATACOMMUNITIES.ORG/ID/METROPOLITAN-DISTRICT-COUNCIL/WALSALL,30/09/2018,RESOURCES & TRANSFORMATION,ARTHUR BRETT CATER,03/07/2018,H59620180717QXZLUKXRP-1,90.13,CA MOORCROFT WOOD-FRUIT & VEGETABLES OTHER-PROVI,MISCELLANEOUS FOOD STORES & CONVENIENCE STORES,GPC
WALSALL COUNCIL,HTTP://OPENDATACOMMUNITIES.ORG/ID/METROPOLITAN-DISTRICT-COUNCIL/WALSALL,30/09/2018,RESOURCES & TRANSFORMATION,ARTHUR BRETT CATER,03/07/2018,H59620180717TDDKQRKXM-1,63.35,CA WATLING STREET PRIMARY SCHO-FRUIT & VEGETABLES OTHER-PROVI,MISCELLANEOUS FOOD STORES & CONVENIENCE STORES,GPC
WALSALL COUNCIL,HTTP://OPENDATACOMMUNITIES.ORG/ID/METROPOLITAN-DISTRICT-COUNCIL/WALSALL,30/09/2018,RESOURCES & TRANSFORMATION,ARTHUR BRETT CATER,03/07/2018,H59620180717TMXHORDCV-1,37.04,CA ST BERNADETTES CATHOLIC PRI-FRUIT & VEGETABLES OTHER-PROVI,MISCELLANEOUS FOOD STORES & CONVENIENCE STORES,GPC
WALSALL COUNCIL,HTTP://OPENDATACOMMUNITIES.ORG/ID/METROPOLITAN-DISTRICT-COUNCIL/WALSALL,30/09/2018,RESOURCES & TRANSFORMATION,ARTHUR BRETT CATER,03/07/2018,H59620180717UDXZRQROC-1,29.97,CA JANE LANE SPECIAL SCHOOL-FRUIT & VEGETABLES OTHER-PROVI,MISCELLANEOUS FOOD STORES & CONVENIENCE STORES,GPC
WALSALL COUNCIL,HTTP://OPENDATACOMMUNITIES.ORG/ID/METROPOLITAN-DISTRICT-COUNCIL/WALSALL,30/09/2018,RESOURCES & TRANSFORMATION,ARTHUR BRETT CATER,03/07/2018,H59620180717UIVTWIVYJ-1,134.82,CA ST JOHNS C.E. PRIMARY SCHOO-FRUIT & VEGETABLES OTHER-PROVI,MISCELLANEOUS FOOD STORES & CONVENIENCE STORES,GPC
WALSALL COUNCIL,HTTP://OPENDATACOMMUNITIES.ORG/ID/METROPOLITAN-DISTRICT-COUNCIL/WALSALL,30/09/2018,RESOURCES & TRANSFORMATION,ARTHUR BRETT CATER,03/07/2018,H59620180717VEYYMHXPT-1,38.96,CA LITTLE BLOXWICH CE PRIMARY -FOOD AND BEVERAGES-PROVISIONS,MISCELLANEOUS FOOD STORES & CONVENIENCE STORES,GPC
WALSALL COUNCIL,HTTP://OPENDATACOMMUNITIES.ORG/ID/METROPOLITAN-DISTRICT-COUNCIL/WALSALL,30/09/2018,RESOURCES & TRANSFORMATION,ARTHUR BRETT CATER,03/07/2018,H59620180717VOUAWQOZE-1,102.40,CA ELMORE GREEN PRIMARY SCHOOL-FRUIT & VEGETABLES OTHER-PROVI,MISCELLANEOUS FOOD STORES & CONVENIENCE STORES,GPC
WALSALL COUNCIL,HTTP://OPENDATACOMMUNITIES.ORG/ID/METROPOLITAN-DISTRICT-COUNCIL/WALSALL,30/09/2018,RESOURCES & TRANSFORMATION,ARTHUR BRETT CATER,03/07/2018,H59620180717WCXFZNHPB-1,77.69,CA KINGSHILL SCHOOL-FRUIT & VEGETABLES OTHER-PROVI,MISCELLANEOUS FOOD STORES & CONVENIENCE STORES,GPC
WALSALL COUNCIL,HTTP://OPENDATACOMMUNITIES.ORG/ID/METROPOLITAN-DISTRICT-COUNCIL/WALSALL,30/09/2018,RESOURCES & TRANSFORMATION,ARTHUR BRETT CATER,03/07/2018,H59620180717WPAFMEUHO-1,40.45,CA LEAMORE PRIMARY SCHOOL-FRUIT & VEGETABLES OTHER-PROVI,MISCELLANEOUS FOOD STORES & CONVENIENCE STORES,GPC
WALSALL COUNCIL,HTTP://OPENDATACOMMUNITIES.ORG/ID/METROPOLITAN-DISTRICT-COUNCIL/WALSALL,30/09/2018,RESOURCES & TRANSFORMATION,ARTHUR BRETT CATER,03/07/2018,H59620180717XHXGCSVTM-1,62.09,CA RADLEYS PRIMARY SCHOOL-FRUIT & VEGETABLES OTHER-PROVI,MISCELLANEOUS FOOD STORES & CONVENIENCE STORES,GPC
WALSALL COUNCIL,HTTP://OPENDATACOMMUNITIES.ORG/ID/METROPOLITAN-DISTRICT-COUNCIL/WALSALL,30/09/2018,RESOURCES & TRANSFORMATION,ARTHUR BRETT CATER,03/07/2018,H59620180717YTCSJPQAD-1,47.96,CA ST GILES C.E. PRIMARY SCHOO-FRUIT & VEGETABLES OTHER-PROVI,MISCELLANEOUS FOOD STORES & CONVENIENCE STORES,GPC
WALSALL COUNCIL,HTTP://OPENDATACOMMUNITIES.ORG/ID/METROPOLITAN-DISTRICT-COUNCIL/WALSALL,30/09/2018,RESOURCES & TRANSFORMATION,ARTHUR BRETT CATER,03/07/2018,H59620180717ZLFZQBTKN-1,30.15,CA WALSALL WOOD PRIMARY SCHOOL-FRUIT & VEGETABLES OTHER-PROVI,MISCELLANEOUS FOOD STORES & CONVENIENCE STORES,GPC
WALSALL COUNCIL,HTTP://OPENDATACOMMUNITIES.ORG/ID/METROPOLITAN-DISTRICT-COUNCIL/WALSALL,30/09/2018,RESOURCES & TRANSFORMATION,FOREIGN EXCHANGE FEE,04/07/2018,H59620180705VBJYVSCBE-1,6.27,ICT INCOME-COMPUTER EQUIPMENT AND SUPPLIE,,GPC
WALSALL COUNCIL,HTTP://OPENDATACOMMUNITIES.ORG/ID/METROPOLITAN-DISTRICT-COUNCIL/WALSALL,30/09/2018,CHILDRENS SERVICES,D. GILL BUILDING SUPPL,04/07/2018,H59620180706AGABFKRLU-1,42.00,PELSALL VILLAGE SCHOOL-OTHER-OP MTCE,LUMBER & BUILDING MATERIALS STORES,GPC
WALSALL COUNCIL,HTTP://OPENDATACOMMUNITIES.ORG/ID/METROPOLITAN-DISTRICT-COUNCIL/WALSALL,30/09/2018,RESOURCES & TRANSFORMATION,JOHAL DAIRIES LTD,04/07/2018,H59620180706AMFYXNKPC-1,20.64,CA ST JOHNS C.E. PRIMARY SCHOO-MISC DAIRY PRODUCTS-PROVISIONS,OTHER NONDURABLE GOODS,GPC
WALSALL COUNCIL,HTTP://OPENDATACOMMUNITIES.ORG/ID/METROPOLITAN-DISTRICT-COUNCIL/WALSALL,30/09/2018,RESOURCES & TRANSFORMATION,BLAKEMORE FOODSERVICE,04/07/2018,H59620180706AUQTRPUIH-1,28.19,CA BIRCHILLS CE PRIMARY COMMUN-MISC DAIRY PRODUCTS-PROVISIONS,CATERERS,GPC
WALSALL COUNCIL,HTTP://OPENDATACOMMUNITIES.ORG/ID/METROPOLITAN-DISTRICT-COUNCIL/WALSALL,30/09/2018,RESOURCES & TRANSFORMATION,BLAKEMORE FOODSERVICE,04/07/2018,H59620180706AUQTRPUIH-2,229.56,CA BIRCHILLS CE PRIMARY COMMUN-MISC DAIRY PRODUCTS-PROVISIONS,CATERERS,GPC
WALSALL COUNCIL,HTTP://OPENDATACOMMUNITIES.ORG/ID/METROPOLITAN-DISTRICT-COUNCIL/WALSALL,30/09/2018,RESOURCES & TRANSFORMATION,JOHAL DAIRIES LTD,04/07/2018,H59620180706AWQOHBTDY-1,19.62,CA ST BERNADETTES CATHOLIC PRI-MISC DAIRY PRODUCTS-PROVISIONS,OTHER NONDURABLE GOODS,GPC
WALSALL COUNCIL,HTTP://OPENDATACOMMUNITIES.ORG/ID/METROPOLITAN-DISTRICT-COUNCIL/WALSALL,30/09/2018,RESOURCES & TRANSFORMATION,JOHAL DAIRIES LTD,04/07/2018,H59620180706BCFEUGVFE-1,8.60,CA ST FRANCIS CATHOLIC PRIMARY-MISC DAIRY PRODUCTS-PROVISIONS,OTHER NONDURABLE GOODS,GPC
WALSALL COUNCIL,HTTP://OPENDATACOMMUNITIES.ORG/ID/METROPOLITAN-DISTRICT-COUNCIL/WALSALL,30/09/2018,RESOURCES & TRANSFORMATION,BLAKEMORE FOODSERVICE,04/07/2018,H59620180706BJGMJHFEG-1,125.44,CA OLD HALL SPECIAL SCHOOL-FROZEN FOODS-PROVISIONS,CATERERS,GPC
WALSALL COUNCIL,HTTP://OPENDATACOMMUNITIES.ORG/ID/METROPOLITAN-DISTRICT-COUNCIL/WALSALL,30/09/2018,RESOURCES & TRANSFORMATION,BLAKEMORE FOODSERVICE,04/07/2018,H59620180706BJGMJHFEG-2,9.72,CA OLD HALL SPECIAL SCHOOL-FROZEN FOODS-PROVISIONS,CATERERS,GPC
WALSALL COUNCIL,HTTP://OPENDATACOMMUNITIES.ORG/ID/METROPOLITAN-DISTRICT-COUNCIL/WALSALL,30/09/2018,CHILDRENS SERVICES - SCHOOLS,AMAZON UK MARKETPLACE,04/07/2018,H59620180706BJKNDHETI-1,3.92,E19-GENERAL MATERIALS,BOOK STORES,GPC
WALSALL COUNCIL,HTTP://OPENDATACOMMUNITIES.ORG/ID/METROPOLITAN-DISTRICT-COUNCIL/WALSALL,30/09/2018,RESOURCES & TRANSFORMATION,BLAKEMORE FOODSERVICE,04/07/2018,H59620180706BLKQGWBJK-1,194.03,CA ST JOHNS C.E. PRIMARY SCHOO-FROZEN FOODS-PROVISIONS,CATERERS,GPC
WALSALL COUNCIL,HTTP://OPENDATACOMMUNITIES.ORG/ID/METROPOLITAN-DISTRICT-COUNCIL/WALSALL,30/09/2018,RESOURCES & TRANSFORMATION,BLAKEMORE FOODSERVICE,04/07/2018,H59620180706BLKQGWBJK-2,41.64,CA ST JOHNS C.E. PRIMARY SCHOO-FROZEN FOODS-PROVISIONS,CATERERS,GPC
WALSALL COUNCIL,HTTP://OPENDATACOMMUNITIES.ORG/ID/METROPOLITAN-DISTRICT-COUNCIL/WALSALL,30/09/2018,CHILDRENS SERVICES,HM PASSPORT OFFICE,04/07/2018,H59620180706BRIFUGVQD-1,85.00,EARLY YEARS AND DISABILITIES S-MISC FEES AND EXPENSES,GOVERNMENT SERVICES,GPC
WALSALL COUNCIL,HTTP://OPENDATACOMMUNITIES.ORG/ID/METROPOLITAN-DISTRICT-COUNCIL/WALSALL,30/09/2018,CHILDRENS SERVICES,REGISTRARS OFFICE,04/07/2018,H59620180706CPDSHODBZ-1,11.00,LOOKED AFTER CHILDRENS SOCIAL -MISC FEES AND EXPENSES,OTHER SCHOOLS AND EDUCATIONAL SERVICES,GPC
WALSALL COUNCIL,HTTP://OPENDATACOMMUNITIES.ORG/ID/METROPOLITAN-DISTRICT-COUNCIL/WALSALL,30/09/2018,RESOURCES & TRANSFORMATION,BLAKEMORE FOODSERVICE,04/07/2018,H59620180706CTQELYLRM-1,225.78,CA ELMORE GREEN PRIMARY SCHOOL-DRY FOODS-PROVISIONS,CATERERS,GPC
WALSALL COUNCIL,HTTP://OPENDATACOMMUNITIES.ORG/ID/METROPOLITAN-DISTRICT-COUNCIL/WALSALL,30/09/2018,RESOURCES & TRANSFORMATION,BLAKEMORE FOODSERVICE,04/07/2018,H59620180706CTQELYLRM-2,69.12,CA ELMORE GREEN PRIMARY SCHOOL-DRY FOODS-PROVISIONS,CATERERS,GPC
WALSALL COUNCIL,HTTP://OPENDATACOMMUNITIES.ORG/ID/METROPOLITAN-DISTRICT-COUNCIL/WALSALL,30/09/2018,RESOURCES & TRANSFORMATION,BLAKEMORE FOODSERVICE,04/07/2018,H59620180706CYXMSHXYE-1,108.02,CA JANE LANE SPECIAL SCHOOL-DISPOSABLES-PROVISIONS,CATERERS,GPC
WALSALL COUNCIL,HTTP://OPENDATACOMMUNITIES.ORG/ID/METROPOLITAN-DISTRICT-COUNCIL/WALSALL,30/09/2018,RESOURCES & TRANSFORMATION,JOHAL DAIRIES LTD,04/07/2018,H59620180706DLWTAULVX-1,31.87,CA ELMORE GREEN PRIMARY SCHOOL-MISC DAIRY PRODUCTS-PROVISIONS,OTHER NONDURABLE GOODS,GPC
WALSALL COUNCIL,HTTP://OPENDATACOMMUNITIES.ORG/ID/METROPOLITAN-DISTRICT-COUNCIL/WALSALL,30/09/2018,RESOURCES & TRANSFORMATION,BLAKEMORE FOODSERVICE,04/07/2018,H59620180706DMERYTHOB-1,247.19,CA BLUE COAT C OF E PERFORMING-DRY FOODS-PROVISIONS,CATERERS,GPC
WALSALL COUNCIL,HTTP://OPENDATACOMMUNITIES.ORG/ID/METROPOLITAN-DISTRICT-COUNCIL/WALSALL,30/09/2018,RESOURCES & TRANSFORMATION,BLAKEMORE FOODSERVICE,04/07/2018,H59620180706DMERYTHOB-2,109.49,CA BLUE COAT C OF E PERFORMING-DRY FOODS-PROVISIONS,CATERERS,GPC
WALSALL COUNCIL,HTTP://OPENDATACOMMUNITIES.ORG/ID/METROPOLITAN-DISTRICT-COUNCIL/WALSALL,30/09/2018,RESOURCES & TRANSFORMATION,NOBISCO LIMITED,04/07/2018,H59620180706DQMCNSLLS-1,44.50,CA OAKWOOD SPECIAL SCHOOL-DISPOSABLES-PROVISIONS,OTHER INDUSTRIAL SUPPLIES,GPC
WALSALL COUNCIL,HTTP://OPENDATACOMMUNITIES.ORG/ID/METROPOLITAN-DISTRICT-COUNCIL/WALSALL,30/09/2018,CHILDRENS SERVICES,AMAZON UK MARKETPLACE,04/07/2018,H59620180706DTFPTTXYO-1,260.30,YEAR 5 / 6-GENERAL MATERIALS,BOOK STORES,GPC
WALSALL COUNCIL,HTTP://OPENDATACOMMUNITIES.ORG/ID/METROPOLITAN-DISTRICT-COUNCIL/WALSALL,30/09/2018,ECONOMY & ENVIRONMENT,T R MUSIC,04/07/2018,H59620180706EGJIVNEGS-1,36.00,OAK PARK-MAINTENANCE-FURNITURE & EQUIPM,MUSIC STORES & MUSICAL INSTRUMENTS,GPC
WALSALL COUNCIL,HTTP://OPENDATACOMMUNITIES.ORG/ID/METROPOLITAN-DISTRICT-COUNCIL/WALSALL,30/09/2018,RESOURCES & TRANSFORMATION,JOHAL DAIRIES LTD,04/07/2018,H59620180706EGMVZWMCI-1,15.09,CA JANE LANE SPECIAL SCHOOL-MISC DAIRY PRODUCTS-PROVISIONS,OTHER NONDURABLE GOODS,GPC
WALSALL COUNCIL,HTTP://OPENDATACOMMUNITIES.ORG/ID/METROPOLITAN-DISTRICT-COUNCIL/WALSALL,30/09/2018,CHILDRENS SERVICES,WWW.HIVE.CO.UK,04/07/2018,H59620180706EIHLCYVHP-1,11.49,CHILDRENS TAXI BUDGET-LIBRARY BOOKS,BOOK STORES,GPC
WALSALL COUNCIL,HTTP://OPENDATACOMMUNITIES.ORG/ID/METROPOLITAN-DISTRICT-COUNCIL/WALSALL,30/09/2018,CHILDRENS SERVICES,TESCO STORES 6161,04/07/2018,H59620180706EMEDXAEZK-1,20.60,SPINDLETREE-RESIDENTS PERSONAL EXPENSES-AL,GROCERY STORES AND SUPERMARKETS,GPC
WALSALL COUNCIL,HTTP://OPENDATACOMMUNITIES.ORG/ID/METROPOLITAN-DISTRICT-COUNCIL/WALSALL,30/09/2018,RESOURCES & TRANSFORMATION,A F BLAKEMORE CASH&CARRY,04/07/2018,H59620180706ENHCIKRCR-1,50.33,TOWN HALL RESTAURANT BISTRO-DRY FOODS-PROVISIONS,GROCERY STORES AND SUPERMARKETS,GPC
WALSALL COUNCIL,HTTP://OPENDATACOMMUNITIES.ORG/ID/METROPOLITAN-DISTRICT-COUNCIL/WALSALL,30/09/2018,RESOURCES & TRANSFORMATION,A F BLAKEMORE CASH&CARRY,04/07/2018,H59620180706ENHCIKRCR-2,647.04,TOWN HALL RESTAURANT BISTRO-DRY FOODS-PROVISIONS,GROCERY STORES AND SUPERMARKETS,GPC
WALSALL COUNCIL,HTTP://OPENDATACOMMUNITIES.ORG/ID/METROPOLITAN-DISTRICT-COUNCIL/WALSALL,30/09/2018,RESOURCES & TRANSFORMATION,BLAKEMORE FOODSERVICE,04/07/2018,H59620180706EPPHNLWBT-1,75.33,CA LEIGHSWOOD PRIMARY SCHOOL-FROZEN FOODS-PROVISIONS,CATERERS,GPC
WALSALL COUNCIL,HTTP://OPENDATACOMMUNITIES.ORG/ID/METROPOLITAN-DISTRICT-COUNCIL/WALSALL,30/09/2018,RESOURCES & TRANSFORMATION,BLAKEMORE FOODSERVICE,04/07/2018,H59620180706EPPHNLWBT-2,33.31,CA LEIGHSWOOD PRIMARY SCHOOL-FROZEN FOODS-PROVISIONS,CATERERS,GPC
WALSALL COUNCIL,HTTP://OPENDATACOMMUNITIES.ORG/ID/METROPOLITAN-DISTRICT-COUNCIL/WALSALL,30/09/2018,CHILDRENS SERVICES,JOHAL DAIRIES LTD,04/07/2018,H59620180706EWBCMPDYN-1,5.70,CONTACT SESSIONAL STAFF-MISC DAIRY PRODUCTS-PROVISIONS,OTHER NONDURABLE GOODS,GPC
WALSALL COUNCIL,HTTP://OPENDATACOMMUNITIES.ORG/ID/METROPOLITAN-DISTRICT-COUNCIL/WALSALL,30/09/2018,RESOURCES & TRANSFORMATION,JOHAL DAIRIES LTD,04/07/2018,H59620180706EWHRHHLYH-1,182.70,CA BIRCHILLS CE PRIMARY COMMUN-MISC DAIRY PRODUCTS-PROVISIONS,OTHER NONDURABLE GOODS,GPC
WALSALL COUNCIL,HTTP://OPENDATACOMMUNITIES.ORG/ID/METROPOLITAN-DISTRICT-COUNCIL/WALSALL,30/09/2018,CHILDRENS SERVICES - SCHOOLS,AMAZON UK MARKETPLACE,04/07/2018,H59620180706EYYXCDDHG-1,1.84,E19-GENERAL MATERIALS,BOOK STORES,GPC
WALSALL COUNCIL,HTTP://OPENDATACOMMUNITIES.ORG/ID/METROPOLITAN-DISTRICT-COUNCIL/WALSALL,30/09/2018,CHILDRENS SERVICES - SCHOOLS,AMAZON UK MARKETPLACE,04/07/2018,H59620180706EZBIRWZNI-1,10.00,E19-GENERAL MATERIALS,BOOK STORES,GPC
WALSALL COUNCIL,HTTP://OPENDATACOMMUNITIES.ORG/ID/METROPOLITAN-DISTRICT-COUNCIL/WALSALL,30/09/2018,ECONOMY & ENVIRONMENT,TOOLSTATION LTD,04/07/2018,H59620180706EZUGJKVXB-1,22.68,INFRASTRUCTURE MAINTENANCE-GENERAL MATERIALS,HARDWARE STORES,GPC
WALSALL COUNCIL,HTTP://OPENDATACOMMUNITIES.ORG/ID/METROPOLITAN-DISTRICT-COUNCIL/WALSALL,30/09/2018,RESOURCES & TRANSFORMATION,BLAKEMORE FOODSERVICE,04/07/2018,H59620180706FDLSRSBMU-1,108.02,CA ELMWOOD SPECIAL SCHOOL-DISPOSABLES-PROVISIONS,CATERERS,GPC
WALSALL COUNCIL,HTTP://OPENDATACOMMUNITIES.ORG/ID/METROPOLITAN-DISTRICT-COUNCIL/WALSALL,30/09/2018,RESOURCES & TRANSFORMATION,AMAZON UK MARKETPLACE,04/07/2018,H59620180706FVPDWXHXL-1,279.60,RECHARGEABLE EQUIPMENT-COMPUTER EQUIPMENT AND SUPPLIE,BOOK STORES,GPC
WALSALL COUNCIL,HTTP://OPENDATACOMMUNITIES.ORG/ID/METROPOLITAN-DISTRICT-COUNCIL/WALSALL,30/09/2018,ECONOMY & ENVIRONMENT,B & M RETAIL,04/07/2018,H59620180706FWCIGBBMB-1,15.92,YEI IMPACT OVERHEADS-MISCELLANEOUS SUPPLIES,DISCOUNT STORES,GPC
WALSALL COUNCIL,HTTP://OPENDATACOMMUNITIES.ORG/ID/METROPOLITAN-DISTRICT-COUNCIL/WALSALL,30/09/2018,ECONOMY & ENVIRONMENT,BANNER GROUP LTD,04/07/2018,H59620180706GFDMRIRFG-1,31.69,CENTRALISED STATIONARY-STATIONERY & GENERAL SUPPLIES-,"OFFICE, SCHOOL SUPPLY, AND STATIONERY STORES",GPC
WALSALL COUNCIL,HTTP://OPENDATACOMMUNITIES.ORG/ID/METROPOLITAN-DISTRICT-COUNCIL/WALSALL,30/09/2018,ECONOMY & ENVIRONMENT,TOOLSTATION LTD,04/07/2018,H59620180706HGIPEDWFK-1,7.37,DEPOT-GENERAL MATERIALS,HARDWARE STORES,GPC
WALSALL COUNCIL,HTTP://OPENDATACOMMUNITIES.ORG/ID/METROPOLITAN-DISTRICT-COUNCIL/WALSALL,30/09/2018,CHILDRENS SERVICES - SCHOOLS,AMAZON UK MARKETPLACE,04/07/2018,H59620180706HLNRKAGDK-1,17.90,E19-GENERAL MATERIALS,BOOK STORES,GPC
WALSALL COUNCIL,HTTP://OPENDATACOMMUNITIES.ORG/ID/METROPOLITAN-DISTRICT-COUNCIL/WALSALL,30/09/2018,RESOURCES & TRANSFORMATION,BLAKEMORE FOODSERVICE,04/07/2018,H59620180706HRETXSKZC-1,220.35,CA KINGSHILL SCHOOL-DRY FOODS-PROVISIONS,CATERERS,GPC
WALSALL COUNCIL,HTTP://OPENDATACOMMUNITIES.ORG/ID/METROPOLITAN-DISTRICT-COUNCIL/WALSALL,30/09/2018,RESOURCES & TRANSFORMATION,BLAKEMORE FOODSERVICE,04/07/2018,H59620180706HUBPFUMZI-1,108.02,CA KINGSHILL SCHOOL-DISPOSABLES-PROVISIONS,CATERERS,GPC
WALSALL COUNCIL,HTTP://OPENDATACOMMUNITIES.ORG/ID/METROPOLITAN-DISTRICT-COUNCIL/WALSALL,30/09/2018,RESOURCES & TRANSFORMATION,BLAKEMORE FOODSERVICE,04/07/2018,H59620180706IFAJOJHYB-1,50.71,CA ELMWOOD SPECIAL SCHOOL-DRY FOODS-PROVISIONS,CATERERS,GPC
WALSALL COUNCIL,HTTP://OPENDATACOMMUNITIES.ORG/ID/METROPOLITAN-DISTRICT-COUNCIL/WALSALL,30/09/2018,RESOURCES & TRANSFORMATION,BLAKEMORE FOODSERVICE,04/07/2018,H59620180706IFAJOJHYB-2,16.66,CA ELMWOOD SPECIAL SCHOOL-DRY FOODS-PROVISIONS,CATERERS,GPC
WALSALL COUNCIL,HTTP://OPENDATACOMMUNITIES.ORG/ID/METROPOLITAN-DISTRICT-COUNCIL/WALSALL,30/09/2018,CHILDRENS SERVICES - SCHOOLS,AMAZON UK MARKETPLACE,04/07/2018,H59620180706IIWMTKUSY-1,4.98,E19-GENERAL MATERIALS,BOOK STORES,GPC
WALSALL COUNCIL,HTTP://OPENDATACOMMUNITIES.ORG/ID/METROPOLITAN-DISTRICT-COUNCIL/WALSALL,30/09/2018,ECONOMY & ENVIRONMENT,CARTRIDGE SAVE,04/07/2018,H59620180706IIZGPLSPK-1,209.24,CENTRALISED STATIONARY-COMPUTER STATIONERY-OFFICE EXP,"STATIONERY, OFFICE SUPPLIES AND WRITING PAPER",GPC
WALSALL COUNCIL,HTTP://OPENDATACOMMUNITIES.ORG/ID/METROPOLITAN-DISTRICT-COUNCIL/WALSALL,30/09/2018,CHILDRENS SERVICES,PGL TRAVEL LIMITED,04/07/2018,H59620180706IKKCHBUHF-1,37.00,FOSTERING SUPPORT TEAM-OTHER-TRAVEL ALLOWANCES,TRAVEL AGENCIES AND TOUR OPERATORS,GPC
WALSALL COUNCIL,HTTP://OPENDATACOMMUNITIES.ORG/ID/METROPOLITAN-DISTRICT-COUNCIL/WALSALL,30/09/2018,CHILDRENS SERVICES,PGL TRAVEL LIMITED,04/07/2018,H59620180706IKKCHBUHF-2,319.50,FOSTERING SUPPORT TEAM-OTHER-TRAVEL ALLOWANCES,TRAVEL AGENCIES AND TOUR OPERATORS,GPC
WALSALL COUNCIL,HTTP://OPENDATACOMMUNITIES.ORG/ID/METROPOLITAN-DISTRICT-COUNCIL/WALSALL,30/09/2018,RESOURCES & TRANSFORMATION,BLAKEMORE FOODSERVICE,04/07/2018,H59620180706IQPKXANFN-1,24.98,CA ELMORE GREEN PRIMARY SCHOOL-FROZEN FOODS-PROVISIONS,CATERERS,GPC
WALSALL COUNCIL,HTTP://OPENDATACOMMUNITIES.ORG/ID/METROPOLITAN-DISTRICT-COUNCIL/WALSALL,30/09/2018,CHILDRENS SERVICES,AMAZON UK MARKETPLACE,04/07/2018,H59620180706JJNNFAUWM-1,3.99,CHILD PROTECTION & REVIEW SERV-LIBRARY BOOKS,BOOK STORES,GPC
WALSALL COUNCIL,HTTP://OPENDATACOMMUNITIES.ORG/ID/METROPOLITAN-DISTRICT-COUNCIL/WALSALL,30/09/2018,RESOURCES & TRANSFORMATION,BLAKEMORE FOODSERVICE,04/07/2018,H59620180706JMDUUGYMV-1,152.54,CA RUSHALL JMI SCHOOL-FROZEN FOODS-PROVISIONS,CATERERS,GPC
WALSALL COUNCIL,HTTP://OPENDATACOMMUNITIES.ORG/ID/METROPOLITAN-DISTRICT-COUNCIL/WALSALL,30/09/2018,RESOURCES & TRANSFORMATION,JOHAL DAIRIES LTD,04/07/2018,H59620180706JQKANERHE-1,12.74,CA CROFT COMMUNITY PRIMARY SCH-MISC DAIRY PRODUCTS-PROVISIONS,OTHER NONDURABLE GOODS,GPC
WALSALL COUNCIL,HTTP://OPENDATACOMMUNITIES.ORG/ID/METROPOLITAN-DISTRICT-COUNCIL/WALSALL,30/09/2018,RESOURCES & TRANSFORMATION,BLAKEMORE FOODSERVICE,04/07/2018,H59620180706JVIHYJLQF-1,160.55,CA CASTLEFORT JMI SCHOOL-FROZEN FOODS-PROVISIONS,CATERERS,GPC
WALSALL COUNCIL,HTTP://OPENDATACOMMUNITIES.ORG/ID/METROPOLITAN-DISTRICT-COUNCIL/WALSALL,30/09/2018,RESOURCES & TRANSFORMATION,BLAKEMORE FOODSERVICE,04/07/2018,H59620180706JVIHYJLQF-2,16.66,CA CASTLEFORT JMI SCHOOL-FROZEN FOODS-PROVISIONS,CATERERS,GPC
WALSALL COUNCIL,HTTP://OPENDATACOMMUNITIES.ORG/ID/METROPOLITAN-DISTRICT-COUNCIL/WALSALL,30/09/2018,RESOURCES & TRANSFORMATION,BLAKEMORE FOODSERVICE,04/07/2018,H59620180706JWTZREBBF-1,6.59,CA ST MICHAELS C.E. PRIMARY SC-FROZEN FOODS-PROVISIONS,CATERERS,GPC
WALSALL COUNCIL,HTTP://OPENDATACOMMUNITIES.ORG/ID/METROPOLITAN-DISTRICT-COUNCIL/WALSALL,30/09/2018,RESOURCES & TRANSFORMATION,JOHAL DAIRIES LTD,04/07/2018,H59620180706JWYRVESQE-1,28.06,CA CASTLEFORT JMI SCHOOL-MISC DAIRY PRODUCTS-PROVISIONS,OTHER NONDURABLE GOODS,GPC
WALSALL COUNCIL,HTTP://OPENDATACOMMUNITIES.ORG/ID/METROPOLITAN-DISTRICT-COUNCIL/WALSALL,30/09/2018,RESOURCES & TRANSFORMATION,JOHAL DAIRIES LTD,04/07/2018,H59620180706JXXPTERVL-1,24.60,CA RUSHALL JMI SCHOOL-MISC DAIRY PRODUCTS-PROVISIONS,OTHER NONDURABLE GOODS,GPC
WALSALL COUNCIL,HTTP://OPENDATACOMMUNITIES.ORG/ID/METROPOLITAN-DISTRICT-COUNCIL/WALSALL,30/09/2018,RESOURCES & TRANSFORMATION,BLAKEMORE FOODSERVICE,04/07/2018,H59620180706KFOKFBGKW-1,267.83,CA ELMORE GREEN PRIMARY SCHOOL-FROZEN FOODS-PROVISIONS,CATERERS,GPC
WALSALL COUNCIL,HTTP://OPENDATACOMMUNITIES.ORG/ID/METROPOLITAN-DISTRICT-COUNCIL/WALSALL,30/09/2018,RESOURCES & TRANSFORMATION,JOHAL DAIRIES LTD,04/07/2018,H59620180706KGYUOLBDU-1,45.30,TOWN HALL RESTAURANT BISTRO-MISC DAIRY PRODUCTS-PROVISIONS,OTHER NONDURABLE GOODS,GPC
WALSALL COUNCIL,HTTP://OPENDATACOMMUNITIES.ORG/ID/METROPOLITAN-DISTRICT-COUNCIL/WALSALL,30/09/2018,ECONOMY & ENVIRONMENT,BANNER GROUP LTD,04/07/2018,H59620180706KOULRIDSQ-1,1.68,PUBLIC HEALTH BUSINESS SUPPORT-STATIONERY & GENERAL SUPPLIES-,"OFFICE, SCHOOL SUPPLY, AND STATIONERY STORES",GPC
WALSALL COUNCIL,HTTP://OPENDATACOMMUNITIES.ORG/ID/METROPOLITAN-DISTRICT-COUNCIL/WALSALL,30/09/2018,RESOURCES & TRANSFORMATION,BLAKEMORE FOODSERVICE,04/07/2018,H59620180706KPVPRUONI-1,297.28,CA BLUE COAT C OF E PERFORMING-FROZEN FOODS-PROVISIONS,CATERERS,GPC
WALSALL COUNCIL,HTTP://OPENDATACOMMUNITIES.ORG/ID/METROPOLITAN-DISTRICT-COUNCIL/WALSALL,30/09/2018,RESOURCES & TRANSFORMATION,BLAKEMORE FOODSERVICE,04/07/2018,H59620180706KPVPRUONI-2,43.10,CA BLUE COAT C OF E PERFORMING-FROZEN FOODS-PROVISIONS,CATERERS,GPC
WALSALL COUNCIL,HTTP://OPENDATACOMMUNITIES.ORG/ID/METROPOLITAN-DISTRICT-COUNCIL/WALSALL,30/09/2018,RESOURCES & TRANSFORMATION,BLAKEMORE FOODSERVICE,04/07/2018,H59620180706KTNZBKFVV-1,28.34,CA BUSILL JONES PRIMARY SCHOOL-FROZEN FOODS-PROVISIONS,CATERERS,GPC
WALSALL COUNCIL,HTTP://OPENDATACOMMUNITIES.ORG/ID/METROPOLITAN-DISTRICT-COUNCIL/WALSALL,30/09/2018,RESOURCES & TRANSFORMATION,BLAKEMORE FOODSERVICE,04/07/2018,H59620180706LDVECPDCG-1,199.44,CA BUSILL JONES PRIMARY SCHOOL-FROZEN FOODS-PROVISIONS,CATERERS,GPC
WALSALL COUNCIL,HTTP://OPENDATACOMMUNITIES.ORG/ID/METROPOLITAN-DISTRICT-COUNCIL/WALSALL,30/09/2018,RESOURCES & TRANSFORMATION,BLAKEMORE FOODSERVICE,04/07/2018,H59620180706LDVECPDCG-2,41.64,CA BUSILL JONES PRIMARY SCHOOL-FROZEN FOODS-PROVISIONS,CATERERS,GPC
WALSALL COUNCIL,HTTP://OPENDATACOMMUNITIES.ORG/ID/METROPOLITAN-DISTRICT-COUNCIL/WALSALL,30/09/2018,RESOURCES & TRANSFORMATION,JOHAL DAIRIES LTD,04/07/2018,H59620180706LGNXEMXGX-1,10.32,CA KINGSHILL SCHOOL-MISC DAIRY PRODUCTS-PROVISIONS,OTHER NONDURABLE GOODS,GPC
WALSALL COUNCIL,HTTP://OPENDATACOMMUNITIES.ORG/ID/METROPOLITAN-DISTRICT-COUNCIL/WALSALL,30/09/2018,CHILDRENS SERVICES - SCHOOLS,AMAZON UK MARKETPLACE,04/07/2018,H59620180706LHZBQXNBH-1,9.99,E19-GENERAL MATERIALS,BOOK STORES,GPC
WALSALL COUNCIL,HTTP://OPENDATACOMMUNITIES.ORG/ID/METROPOLITAN-DISTRICT-COUNCIL/WALSALL,30/09/2018,RESOURCES & TRANSFORMATION,JOHAL DAIRIES LTD,04/07/2018,H59620180706LPQWHDEHE-1,45.02,CA MOORCROFT WOOD-MISC DAIRY PRODUCTS-PROVISIONS,OTHER NONDURABLE GOODS,GPC
WALSALL COUNCIL,HTTP://OPENDATACOMMUNITIES.ORG/ID/METROPOLITAN-DISTRICT-COUNCIL/WALSALL,30/09/2018,RESOURCES & TRANSFORMATION,NOBISCO LIMITED,04/07/2018,H59620180706LTPFTYFWM-1,38.57,CA ST MICHAELS C.E. PRIMARY SC-DISPOSABLES-PROVISIONS,OTHER INDUSTRIAL SUPPLIES,GPC
WALSALL COUNCIL,HTTP://OPENDATACOMMUNITIES.ORG/ID/METROPOLITAN-DISTRICT-COUNCIL/WALSALL,30/09/2018,CHILDRENS SERVICES - SCHOOLS,AMAZON UK MARKETPLACE,04/07/2018,H59620180706LTVAWCJSE-1,2.55,E19-GENERAL MATERIALS,BOOK STORES,GPC
WALSALL COUNCIL,HTTP://OPENDATACOMMUNITIES.ORG/ID/METROPOLITAN-DISTRICT-COUNCIL/WALSALL,30/09/2018,CHILDRENS SERVICES,HIE NEWCASTLE METRO,04/07/2018,H59620180706LWODPZUEL-1,139.98,EDUCATIONAL PSYCHOLOGISTS-HOTEL ACCOMMODATION-EMPLOYEES,HOLIDAY INNS,GPC
WALSALL COUNCIL,HTTP://OPENDATACOMMUNITIES.ORG/ID/METROPOLITAN-DISTRICT-COUNCIL/WALSALL,30/09/2018,CHILDRENS SERVICES,BANNER GROUP LTD,04/07/2018,H59620180706MCKGWCSZB-1,5.28,LOOKED AFTER CHILDRENS SOCIAL -STATIONERY & GENERAL SUPPLIES-,"OFFICE, SCHOOL SUPPLY, AND STATIONERY STORES",GPC
WALSALL COUNCIL,HTTP://OPENDATACOMMUNITIES.ORG/ID/METROPOLITAN-DISTRICT-COUNCIL/WALSALL,30/09/2018,CHILDRENS SERVICES,HM PASSPORT OFFICE,04/07/2018,H59620180706MGQIIXXMB-1,85.00,LOOKED AFTER CHILDRENS SOCIAL -MISC FEES AND EXPENSES,GOVERNMENT SERVICES,GPC
WALSALL COUNCIL,HTTP://OPENDATACOMMUNITIES.ORG/ID/METROPOLITAN-DISTRICT-COUNCIL/WALSALL,30/09/2018,RESOURCES & TRANSFORMATION,JOHAL DAIRIES LTD,04/07/2018,H59620180706MHVMATLFP-1,18.60,CA BUSILL JONES PRIMARY SCHOOL-MISC DAIRY PRODUCTS-PROVISIONS,OTHER NONDURABLE GOODS,GPC
WALSALL COUNCIL,HTTP://OPENDATACOMMUNITIES.ORG/ID/METROPOLITAN-DISTRICT-COUNCIL/WALSALL,30/09/2018,RESOURCES & TRANSFORMATION,NOBISCO LIMITED,04/07/2018,H59620180706MJHGCHMHL-1,-1.20,CA ST ANNES CATHOLIC PRIMARY S-DISPOSABLES-PROVISIONS,OTHER INDUSTRIAL SUPPLIES,GPC
WALSALL COUNCIL,HTTP://OPENDATACOMMUNITIES.ORG/ID/METROPOLITAN-DISTRICT-COUNCIL/WALSALL,30/09/2018,RESOURCES & TRANSFORMATION,BLAKEMORE FOODSERVICE,04/07/2018,H59620180706MMKYHIYWR-1,562.82,CA BUSILL JONES PRIMARY SCHOOL-DRY FOODS-PROVISIONS,CATERERS,GPC
WALSALL COUNCIL,HTTP://OPENDATACOMMUNITIES.ORG/ID/METROPOLITAN-DISTRICT-COUNCIL/WALSALL,30/09/2018,RESOURCES & TRANSFORMATION,BLAKEMORE FOODSERVICE,04/07/2018,H59620180706MMKYHIYWR-2,51.84,CA BUSILL JONES PRIMARY SCHOOL-DRY FOODS-PROVISIONS,CATERERS,GPC
WALSALL COUNCIL,HTTP://OPENDATACOMMUNITIES.ORG/ID/METROPOLITAN-DISTRICT-COUNCIL/WALSALL,30/09/2018,RESOURCES & TRANSFORMATION,JOHAL DAIRIES LTD,04/07/2018,H59620180706MPFMRCRWG-1,38.70,CA COOPER JORDAN CE PRIMARY SC-MISC DAIRY PRODUCTS-PROVISIONS,OTHER NONDURABLE GOODS,GPC
WALSALL COUNCIL,HTTP://OPENDATACOMMUNITIES.ORG/ID/METROPOLITAN-DISTRICT-COUNCIL/WALSALL,30/09/2018,ECONOMY & ENVIRONMENT,THE POD WORKS HOTEL,04/07/2018,H59620180706MRWEDSSJN-1,58.50,NEW ART GALLERY - ADMIN-HOTEL ACCOMMODATION-EMPLOYEES,"HOTELS, MOTELS, RESORTS",GPC
WALSALL COUNCIL,HTTP://OPENDATACOMMUNITIES.ORG/ID/METROPOLITAN-DISTRICT-COUNCIL/WALSALL,30/09/2018,RESOURCES & TRANSFORMATION,JOHAL DAIRIES LTD,04/07/2018,H59620180706MSOPPNLVY-1,33.27,CA BARCROFT D/C-MISC DAIRY PRODUCTS-PROVISIONS,OTHER NONDURABLE GOODS,GPC
WALSALL COUNCIL,HTTP://OPENDATACOMMUNITIES.ORG/ID/METROPOLITAN-DISTRICT-COUNCIL/WALSALL,30/09/2018,RESOURCES & TRANSFORMATION,BLAKEMORE FOODSERVICE,04/07/2018,H59620180706MUMUKVAYT-1,132.96,CA OAKWOOD SPECIAL SCHOOL-FROZEN FOODS-PROVISIONS,CATERERS,GPC
WALSALL COUNCIL,HTTP://OPENDATACOMMUNITIES.ORG/ID/METROPOLITAN-DISTRICT-COUNCIL/WALSALL,30/09/2018,RESOURCES & TRANSFORMATION,BLAKEMORE FOODSERVICE,04/07/2018,H59620180706MUMUKVAYT-2,8.33,CA OAKWOOD SPECIAL SCHOOL-FROZEN FOODS-PROVISIONS,CATERERS,GPC
WALSALL COUNCIL,HTTP://OPENDATACOMMUNITIES.ORG/ID/METROPOLITAN-DISTRICT-COUNCIL/WALSALL,30/09/2018,RESOURCES & TRANSFORMATION,JOHAL DAIRIES LTD,04/07/2018,H59620180706MVQWCOPXH-1,10.92,CA BROWNHILLS WEST PRIMARY SCH-MISC DAIRY PRODUCTS-PROVISIONS,OTHER NONDURABLE GOODS,GPC
WALSALL COUNCIL,HTTP://OPENDATACOMMUNITIES.ORG/ID/METROPOLITAN-DISTRICT-COUNCIL/WALSALL,30/09/2018,ECONOMY & ENVIRONMENT,AMAZON UK MARKETPLACE,04/07/2018,H59620180706NDESTIUEE-1,19.88,EXHIBITION NO.3-GENERAL MATERIALS,BOOK STORES,GPC
WALSALL COUNCIL,HTTP://OPENDATACOMMUNITIES.ORG/ID/METROPOLITAN-DISTRICT-COUNCIL/WALSALL,30/09/2018,CHILDRENS SERVICES - SCHOOLS,AMAZON UK MARKETPLACE,04/07/2018,H59620180706NKPWONWDC-1,19.40,E19-GENERAL MATERIALS,BOOK STORES,GPC
WALSALL COUNCIL,HTTP://OPENDATACOMMUNITIES.ORG/ID/METROPOLITAN-DISTRICT-COUNCIL/WALSALL,30/09/2018,CHILDRENS SERVICES,THE BOOK PEOPLE,04/07/2018,H59620180706NLMGHYOSH-1,187.78,ENGLISH-GENERAL MATERIALS,BOOK STORES,GPC
WALSALL COUNCIL,HTTP://OPENDATACOMMUNITIES.ORG/ID/METROPOLITAN-DISTRICT-COUNCIL/WALSALL,30/09/2018,RESOURCES & TRANSFORMATION,OFFICEOUTLET.COM,04/07/2018,H59620180706NLTWSMUWO-1,32.22,ASSET MANAGEMENT-STATIONERY & GENERAL SUPPLIES-,"STATIONERY, OFFICE SUPPLIES AND WRITING PAPER",GPC
WALSALL COUNCIL,HTTP://OPENDATACOMMUNITIES.ORG/ID/METROPOLITAN-DISTRICT-COUNCIL/WALSALL,30/09/2018,CHILDRENS SERVICES,AMAZON UK MARKETPLACE,04/07/2018,H59620180706NMXLIEEIM-1,7.48,ROSEDALE C.E. PRIMARY SCHOOL-EQUIP NEW-CLEANING,BOOK STORES,GPC
WALSALL COUNCIL,HTTP://OPENDATACOMMUNITIES.ORG/ID/METROPOLITAN-DISTRICT-COUNCIL/WALSALL,30/09/2018,RESOURCES & TRANSFORMATION,BLAKEMORE FOODSERVICE,04/07/2018,H59620180706NSNPJKFSI-1,135.96,CA COOPER JORDAN CE PRIMARY SC-FROZEN FOODS-PROVISIONS,CATERERS,GPC
WALSALL COUNCIL,HTTP://OPENDATACOMMUNITIES.ORG/ID/METROPOLITAN-DISTRICT-COUNCIL/WALSALL,30/09/2018,RESOURCES & TRANSFORMATION,BLAKEMORE FOODSERVICE,04/07/2018,H59620180706NSNPJKFSI-2,8.33,CA COOPER JORDAN CE PRIMARY SC-FROZEN FOODS-PROVISIONS,CATERERS,GPC
WALSALL COUNCIL,HTTP://OPENDATACOMMUNITIES.ORG/ID/METROPOLITAN-DISTRICT-COUNCIL/WALSALL,30/09/2018,CHILDRENS SERVICES,AMAZON UK RETAIL,04/07/2018,H59620180706NWRTZLANB-1,57.04,LEARNING ENVIRONMENT-GENERAL MATERIALS,OTHER DIRECT MARKETING-OTHER DIRECT MARKETERS,GPC
WALSALL COUNCIL,HTTP://OPENDATACOMMUNITIES.ORG/ID/METROPOLITAN-DISTRICT-COUNCIL/WALSALL,30/09/2018,RESOURCES & TRANSFORMATION,BLAKEMORE FOODSERVICE,04/07/2018,H59620180706OCUXHOYHD-1,288.85,CA MEADOW VIEW JMI PRIMARY SCH-FROZEN FOODS-PROVISIONS,CATERERS,GPC
WALSALL COUNCIL,HTTP://OPENDATACOMMUNITIES.ORG/ID/METROPOLITAN-DISTRICT-COUNCIL/WALSALL,30/09/2018,CHILDRENS SERVICES,GRO HM PASSPORT OFFICE,04/07/2018,H59620180706OISMDIPPR-1,9.25,LOOKED AFTER CHILDRENS SOCIAL -MISC FEES AND EXPENSES,GOVERNMENT SERVICES,GPC
WALSALL COUNCIL,HTTP://OPENDATACOMMUNITIES.ORG/ID/METROPOLITAN-DISTRICT-COUNCIL/WALSALL,30/09/2018,ECONOMY & ENVIRONMENT,BANNER GROUP LTD,04/07/2018,H59620180706OPSLUBONE-1,23.18,STREETLY LIBRARY-STATIONERY & GENERAL SUPPLIES-,"OFFICE, SCHOOL SUPPLY, AND STATIONERY STORES",GPC
WALSALL COUNCIL,HTTP://OPENDATACOMMUNITIES.ORG/ID/METROPOLITAN-DISTRICT-COUNCIL/WALSALL,30/09/2018,RESOURCES & TRANSFORMATION,BLAKEMORE FOODSERVICE,04/07/2018,H59620180706OUEJHXUMW-1,13.57,CA OAKWOOD SPECIAL SCHOOL-FROZEN FOODS-PROVISIONS,CATERERS,GPC
WALSALL COUNCIL,HTTP://OPENDATACOMMUNITIES.ORG/ID/METROPOLITAN-DISTRICT-COUNCIL/WALSALL,30/09/2018,CHILDRENS SERVICES - SCHOOLS,AMAZON UK MARKETPLACE,04/07/2018,H59620180706PEMQEBOOS-1,5.86,E19-GENERAL MATERIALS,BOOK STORES,GPC
WALSALL COUNCIL,HTTP://OPENDATACOMMUNITIES.ORG/ID/METROPOLITAN-DISTRICT-COUNCIL/WALSALL,30/09/2018,ECONOMY & ENVIRONMENT,BANNER GROUP LTD,04/07/2018,H59620180706PHCMNTYJY-1,25.02,LICENSING ADMINISTRATION-STATIONERY & GENERAL SUPPLIES-,"OFFICE, SCHOOL SUPPLY, AND STATIONERY STORES",GPC
WALSALL COUNCIL,HTTP://OPENDATACOMMUNITIES.ORG/ID/METROPOLITAN-DISTRICT-COUNCIL/WALSALL,30/09/2018,CHILDRENS SERVICES,PGL TRAVEL LIMITED,04/07/2018,H59620180706PMVDWNYOQ-1,356.50,ADOPTION TEAM-OTHER-TRAVEL ALLOWANCES,TRAVEL AGENCIES AND TOUR OPERATORS,GPC
WALSALL COUNCIL,HTTP://OPENDATACOMMUNITIES.ORG/ID/METROPOLITAN-DISTRICT-COUNCIL/WALSALL,30/09/2018,CHILDRENS SERVICES,AMAZON UK RETAIL,04/07/2018,H59620180706QEQFZRJJL-1,28.52,LEARNING ENVIRONMENT-GENERAL MATERIALS,OTHER DIRECT MARKETING-OTHER DIRECT MARKETERS,GPC
WALSALL COUNCIL,HTTP://OPENDATACOMMUNITIES.ORG/ID/METROPOLITAN-DISTRICT-COUNCIL/WALSALL,30/09/2018,RESOURCES & TRANSFORMATION,BLAKEMORE FOODSERVICE,04/07/2018,H59620180706QHZWDWXBK-1,240.75,CA JANE LANE SPECIAL SCHOOL-DRY FOODS-PROVISIONS,CATERERS,GPC
WALSALL COUNCIL,HTTP://OPENDATACOMMUNITIES.ORG/ID/METROPOLITAN-DISTRICT-COUNCIL/WALSALL,30/09/2018,RESOURCES & TRANSFORMATION,BLAKEMORE FOODSERVICE,04/07/2018,H59620180706QHZWDWXBK-2,11.52,CA JANE LANE SPECIAL SCHOOL-DRY FOODS-PROVISIONS,CATERERS,GPC
WALSALL COUNCIL,HTTP://OPENDATACOMMUNITIES.ORG/ID/METROPOLITAN-DISTRICT-COUNCIL/WALSALL,30/09/2018,RESOURCES & TRANSFORMATION,JOHAL DAIRIES LTD,04/07/2018,H59620180706QOLJTTUJI-1,30.38,CA ABBEY PRIMARY SCHOOL-MISC DAIRY PRODUCTS-PROVISIONS,OTHER NONDURABLE GOODS,GPC
WALSALL COUNCIL,HTTP://OPENDATACOMMUNITIES.ORG/ID/METROPOLITAN-DISTRICT-COUNCIL/WALSALL,30/09/2018,RESOURCES & TRANSFORMATION,JOHAL DAIRIES LTD,04/07/2018,H59620180706QVEPEJINJ-1,5.16,CA WALSALL WOOD PRIMARY SCHOOL-MISC DAIRY PRODUCTS-PROVISIONS,OTHER NONDURABLE GOODS,GPC
WALSALL COUNCIL,HTTP://OPENDATACOMMUNITIES.ORG/ID/METROPOLITAN-DISTRICT-COUNCIL/WALSALL,30/09/2018,CHILDRENS SERVICES,KETRADINGLT,04/07/2018,H59620180706QVJLUSPTT-1,16.23,CHILDRENS TAXI BUDGET-LIBRARY BOOKS,BOOK STORES,GPC
WALSALL COUNCIL,HTTP://OPENDATACOMMUNITIES.ORG/ID/METROPOLITAN-DISTRICT-COUNCIL/WALSALL,30/09/2018,ECONOMY & ENVIRONMENT,AMAZON UK MARKETPLACE,04/07/2018,H59620180706RAGFENAYJ-1,106.44,EDUCATION INFORMAL-NEW-FURNITURE & EQUIPMENT,BOOK STORES,GPC
WALSALL COUNCIL,HTTP://OPENDATACOMMUNITIES.ORG/ID/METROPOLITAN-DISTRICT-COUNCIL/WALSALL,30/09/2018,ECONOMY & ENVIRONMENT,AMAZON UK RETAIL,04/07/2018,H59620180706RHDTMMBLR-1,26.50,RESOURCE MANAGEMENT-STATIONERY & GENERAL SUPPLIES-,OTHER DIRECT MARKETING-OTHER DIRECT MARKETERS,GPC
WALSALL COUNCIL,HTTP://OPENDATACOMMUNITIES.ORG/ID/METROPOLITAN-DISTRICT-COUNCIL/WALSALL,30/09/2018,RESOURCES & TRANSFORMATION,JOHAL DAIRIES LTD,04/07/2018,H59620180706RHITBJSPX-1,6.54,CA OLD HALL SPECIAL SCHOOL-MISC DAIRY PRODUCTS-PROVISIONS,OTHER NONDURABLE GOODS,GPC
WALSALL COUNCIL,HTTP://OPENDATACOMMUNITIES.ORG/ID/METROPOLITAN-DISTRICT-COUNCIL/WALSALL,30/09/2018,RESOURCES & TRANSFORMATION,JOHAL DAIRIES LTD,04/07/2018,H59620180706RSSDOFFOJ-1,31.34,CA LINDENS PRIMARY SCHOOL-MISC DAIRY PRODUCTS-PROVISIONS,OTHER NONDURABLE GOODS,GPC
WALSALL COUNCIL,HTTP://OPENDATACOMMUNITIES.ORG/ID/METROPOLITAN-DISTRICT-COUNCIL/WALSALL,30/09/2018,ECONOMY & ENVIRONMENT,WILKO RETAIL LIMIT,04/07/2018,H59620180706RTRWYBBKY-1,27.95,YEI IMPACT OVERHEADS-MISCELLANEOUS SUPPLIES,HOUSEHOLD APPLIANCE STORES,GPC
WALSALL COUNCIL,HTTP://OPENDATACOMMUNITIES.ORG/ID/METROPOLITAN-DISTRICT-COUNCIL/WALSALL,30/09/2018,ADULT SOCIAL CARE,BANNER GROUP LTD,04/07/2018,H59620180706RUAOCWLQF-1,48.47,INTEGRATED BUSINESS SUPPORT-STATIONERY & GENERAL SUPPLIES-,"OFFICE, SCHOOL SUPPLY, AND STATIONERY STORES",GPC
WALSALL COUNCIL,HTTP://OPENDATACOMMUNITIES.ORG/ID/METROPOLITAN-DISTRICT-COUNCIL/WALSALL,30/09/2018,CHILDRENS SERVICES,SJASUPLIES,04/07/2018,H59620180706RWKBFIHPE-1,72.82,57 LICHFIELD ROAD-PROFESSIONAL FEES AND SERVICES,"ORGANIZATIONS, CHARITABLE AND SOCIAL SERVICE",GPC
WALSALL COUNCIL,HTTP://OPENDATACOMMUNITIES.ORG/ID/METROPOLITAN-DISTRICT-COUNCIL/WALSALL,30/09/2018,RESOURCES & TRANSFORMATION,BLAKEMORE FOODSERVICE,04/07/2018,H59620180706SLJBKDOXH-1,203.10,CA RADLEYS PRIMARY SCHOOL-FROZEN FOODS-PROVISIONS,CATERERS,GPC
WALSALL COUNCIL,HTTP://OPENDATACOMMUNITIES.ORG/ID/METROPOLITAN-DISTRICT-COUNCIL/WALSALL,30/09/2018,RESOURCES & TRANSFORMATION,JOHAL DAIRIES LTD,04/07/2018,H59620180706SNJNXKRDM-1,34.62,CA ST GILES C.E. PRIMARY SCHOO-MISC DAIRY PRODUCTS-PROVISIONS,OTHER NONDURABLE GOODS,GPC
WALSALL COUNCIL,HTTP://OPENDATACOMMUNITIES.ORG/ID/METROPOLITAN-DISTRICT-COUNCIL/WALSALL,30/09/2018,CHILDRENS SERVICES,WALSALL COUNCIL,04/07/2018,H59620180706SSSFYXYUC-1,2.34,ST FRANCIS OF ASSISI CATHOLIC -MISC FEES AND EXPENSES,GOVERNMENT SERVICES,GPC
WALSALL COUNCIL,HTTP://OPENDATACOMMUNITIES.ORG/ID/METROPOLITAN-DISTRICT-COUNCIL/WALSALL,30/09/2018,RESOURCES & TRANSFORMATION,NOBISCO LIMITED,04/07/2018,H59620180706SUEOIQBLL-1,62.14,CA OLD HALL SPECIAL SCHOOL-DISPOSABLES-PROVISIONS,OTHER INDUSTRIAL SUPPLIES,GPC
WALSALL COUNCIL,HTTP://OPENDATACOMMUNITIES.ORG/ID/METROPOLITAN-DISTRICT-COUNCIL/WALSALL,30/09/2018,CHILDRENS SERVICES,JOHAL DAIRIES LTD,04/07/2018,H59620180706SWEYNQGKE-1,7.44,57 LICHFIELD ROAD-FOOD AND BEVERAGES-PROVISIONS,OTHER NONDURABLE GOODS,GPC
WALSALL COUNCIL,HTTP://OPENDATACOMMUNITIES.ORG/ID/METROPOLITAN-DISTRICT-COUNCIL/WALSALL,30/09/2018,RESOURCES & TRANSFORMATION,JOHAL DAIRIES LTD,04/07/2018,H59620180706SWSWXNMET-1,0.91,CA MEADOW VIEW JMI PRIMARY SCH-MISC DAIRY PRODUCTS-PROVISIONS,OTHER NONDURABLE GOODS,GPC
WALSALL COUNCIL,HTTP://OPENDATACOMMUNITIES.ORG/ID/METROPOLITAN-DISTRICT-COUNCIL/WALSALL,30/09/2018,RESOURCES & TRANSFORMATION,JOHAL DAIRIES LTD,04/07/2018,H59620180706SYSJSKNTS-1,39.13,CA LEIGHSWOOD PRIMARY SCHOOL-MISC DAIRY PRODUCTS-PROVISIONS,OTHER NONDURABLE GOODS,GPC
WALSALL COUNCIL,HTTP://OPENDATACOMMUNITIES.ORG/ID/METROPOLITAN-DISTRICT-COUNCIL/WALSALL,30/09/2018,ECONOMY & ENVIRONMENT,GROENEVELD UK LTD,04/07/2018,H59620180706SZQKIXTSH-1,-255.48,FLEET-GENERAL MATERIALS,MOTOR VEHICLE SUPPLIES AND NEW PARTS,GPC
WALSALL COUNCIL,HTTP://OPENDATACOMMUNITIES.ORG/ID/METROPOLITAN-DISTRICT-COUNCIL/WALSALL,30/09/2018,RESOURCES & TRANSFORMATION,JOHAL DAIRIES LTD,04/07/2018,H59620180706TDNPRNCFU-1,16.34,CA WATLING STREET PRIMARY SCHO-MISC DAIRY PRODUCTS-PROVISIONS,OTHER NONDURABLE GOODS,GPC
WALSALL COUNCIL,HTTP://OPENDATACOMMUNITIES.ORG/ID/METROPOLITAN-DISTRICT-COUNCIL/WALSALL,30/09/2018,RESOURCES & TRANSFORMATION,JOHAL DAIRIES LTD,04/07/2018,H59620180706TEYKSBRIT-1,55.90,CA RADLEYS PRIMARY SCHOOL-MISC DAIRY PRODUCTS-PROVISIONS,OTHER NONDURABLE GOODS,GPC
WALSALL COUNCIL,HTTP://OPENDATACOMMUNITIES.ORG/ID/METROPOLITAN-DISTRICT-COUNCIL/WALSALL,30/09/2018,RESOURCES & TRANSFORMATION,BLAKEMORE FOODSERVICE,04/07/2018,H59620180706TLPOITTGY-1,120.82,CA BEACON PRIMARY SCHOOL-DRY FOODS-PROVISIONS,CATERERS,GPC
WALSALL COUNCIL,HTTP://OPENDATACOMMUNITIES.ORG/ID/METROPOLITAN-DISTRICT-COUNCIL/WALSALL,30/09/2018,RESOURCES & TRANSFORMATION,BLAKEMORE FOODSERVICE,04/07/2018,H59620180706TLPOITTGY-2,91.64,CA BEACON PRIMARY SCHOOL-DRY FOODS-PROVISIONS,CATERERS,GPC
WALSALL COUNCIL,HTTP://OPENDATACOMMUNITIES.ORG/ID/METROPOLITAN-DISTRICT-COUNCIL/WALSALL,30/09/2018,ECONOMY & ENVIRONMENT,BANNER GROUP LTD,04/07/2018,H59620180706TPRGXUKNP-1,18.72,CENTRALISED STATIONARY-STATIONERY & GENERAL SUPPLIES-,"OFFICE, SCHOOL SUPPLY, AND STATIONERY STORES",GPC
WALSALL COUNCIL,HTTP://OPENDATACOMMUNITIES.ORG/ID/METROPOLITAN-DISTRICT-COUNCIL/WALSALL,30/09/2018,RESOURCES & TRANSFORMATION,BLAKEMORE FOODSERVICE,04/07/2018,H59620180706TQCHOCPYD-1,234.52,CA BROWNHILLS WEST PRIMARY SCH-FROZEN FOODS-PROVISIONS,CATERERS,GPC
WALSALL COUNCIL,HTTP://OPENDATACOMMUNITIES.ORG/ID/METROPOLITAN-DISTRICT-COUNCIL/WALSALL,30/09/2018,RESOURCES & TRANSFORMATION,BLAKEMORE FOODSERVICE,04/07/2018,H59620180706TQCHOCPYD-2,16.66,CA BROWNHILLS WEST PRIMARY SCH-FROZEN FOODS-PROVISIONS,CATERERS,GPC
WALSALL COUNCIL,HTTP://OPENDATACOMMUNITIES.ORG/ID/METROPOLITAN-DISTRICT-COUNCIL/WALSALL,30/09/2018,CHILDRENS SERVICES,PGL TRAVEL LIMITED,04/07/2018,H59620180706TWNNUPDEF-1,639.00,LOOKED AFTER CHILDRENS SOCIAL -SUPPORT UNDER SECTION 23 OF TH,TRAVEL AGENCIES AND TOUR OPERATORS,GPC
WALSALL COUNCIL,HTTP://OPENDATACOMMUNITIES.ORG/ID/METROPOLITAN-DISTRICT-COUNCIL/WALSALL,30/09/2018,CHILDRENS SERVICES,PGL TRAVEL LIMITED,04/07/2018,H59620180706TWNNUPDEF-2,74.00,LOOKED AFTER CHILDRENS SOCIAL -SUPPORT UNDER SECTION 23 OF TH,TRAVEL AGENCIES AND TOUR OPERATORS,GPC
WALSALL COUNCIL,HTTP://OPENDATACOMMUNITIES.ORG/ID/METROPOLITAN-DISTRICT-COUNCIL/WALSALL,30/09/2018,ECONOMY & ENVIRONMENT,ASDA SUPERSTORE,04/07/2018,H59620180706UCGKYVSMT-1,3.15,FOREST ARTS CENTRE-BEVERAGES-PROVISIONS,GROCERY STORES AND SUPERMARKETS,GPC
WALSALL COUNCIL,HTTP://OPENDATACOMMUNITIES.ORG/ID/METROPOLITAN-DISTRICT-COUNCIL/WALSALL,30/09/2018,ECONOMY & ENVIRONMENT,ASDA SUPERSTORE,04/07/2018,H59620180706UCGKYVSMT-2,2.20,FOREST ARTS CENTRE-BEVERAGES-PROVISIONS,GROCERY STORES AND SUPERMARKETS,GPC
WALSALL COUNCIL,HTTP://OPENDATACOMMUNITIES.ORG/ID/METROPOLITAN-DISTRICT-COUNCIL/WALSALL,30/09/2018,RESOURCES & TRANSFORMATION,JOHAL DAIRIES LTD,04/07/2018,H59620180706UDBQJKYDR-1,12.90,CA LITTLE BLOXWICH CE PRIMARY -MISC DAIRY PRODUCTS-PROVISIONS,OTHER NONDURABLE GOODS,GPC
WALSALL COUNCIL,HTTP://OPENDATACOMMUNITIES.ORG/ID/METROPOLITAN-DISTRICT-COUNCIL/WALSALL,30/09/2018,RESOURCES & TRANSFORMATION,BLAKEMORE FOODSERVICE,04/07/2018,H59620180706ULKGHIXJO-1,249.70,CA ST MICHAELS C.E. PRIMARY SC-FROZEN FOODS-PROVISIONS,CATERERS,GPC
WALSALL COUNCIL,HTTP://OPENDATACOMMUNITIES.ORG/ID/METROPOLITAN-DISTRICT-COUNCIL/WALSALL,30/09/2018,RESOURCES & TRANSFORMATION,BLAKEMORE FOODSERVICE,04/07/2018,H59620180706ULKGHIXJO-2,16.02,CA ST MICHAELS C.E. PRIMARY SC-FROZEN FOODS-PROVISIONS,CATERERS,GPC
WALSALL COUNCIL,HTTP://OPENDATACOMMUNITIES.ORG/ID/METROPOLITAN-DISTRICT-COUNCIL/WALSALL,30/09/2018,RESOURCES & TRANSFORMATION,BLAKEMORE FOODSERVICE,04/07/2018,H59620180706UPFTLEZVQ-1,404.97,CA LINDENS PRIMARY SCHOOL-FROZEN FOODS-PROVISIONS,CATERERS,GPC
WALSALL COUNCIL,HTTP://OPENDATACOMMUNITIES.ORG/ID/METROPOLITAN-DISTRICT-COUNCIL/WALSALL,30/09/2018,RESOURCES & TRANSFORMATION,BLAKEMORE FOODSERVICE,04/07/2018,H59620180706UPFTLEZVQ-2,49.97,CA LINDENS PRIMARY SCHOOL-FROZEN FOODS-PROVISIONS,CATERERS,GPC
WALSALL COUNCIL,HTTP://OPENDATACOMMUNITIES.ORG/ID/METROPOLITAN-DISTRICT-COUNCIL/WALSALL,30/09/2018,ECONOMY & ENVIRONMENT,CARTRIDGE SAVE,04/07/2018,H59620180706UXSYNOIIL-1,117.04,CENTRALISED STATIONARY-COMPUTER STATIONERY-OFFICE EXP,"STATIONERY, OFFICE SUPPLIES AND WRITING PAPER",GPC
WALSALL COUNCIL,HTTP://OPENDATACOMMUNITIES.ORG/ID/METROPOLITAN-DISTRICT-COUNCIL/WALSALL,30/09/2018,ECONOMY & ENVIRONMENT,WWW.STA.CO.UK,04/07/2018,H59620180706UYSLLYMFY-1,10.00,BLOXWICH LEISURE CENTRE-EXTERNAL TRAINING,OTHER RECREATION SERVICES,GPC
WALSALL COUNCIL,HTTP://OPENDATACOMMUNITIES.ORG/ID/METROPOLITAN-DISTRICT-COUNCIL/WALSALL,30/09/2018,RESOURCES & TRANSFORMATION,JOHAL DAIRIES LTD,04/07/2018,H59620180706UZZJVWCUC-1,5.21,CA ELMWOOD SPECIAL SCHOOL-MISC DAIRY PRODUCTS-PROVISIONS,OTHER NONDURABLE GOODS,GPC
WALSALL COUNCIL,HTTP://OPENDATACOMMUNITIES.ORG/ID/METROPOLITAN-DISTRICT-COUNCIL/WALSALL,30/09/2018,ECONOMY & ENVIRONMENT,BANNER GROUP LTD,04/07/2018,H59620180706VCQGLWDQF-1,2.64,PUBLIC HEALTH BUSINESS SUPPORT-STATIONERY & GENERAL SUPPLIES-,"OFFICE, SCHOOL SUPPLY, AND STATIONERY STORES",GPC
WALSALL COUNCIL,HTTP://OPENDATACOMMUNITIES.ORG/ID/METROPOLITAN-DISTRICT-COUNCIL/WALSALL,30/09/2018,ECONOMY & ENVIRONMENT,POUNDLAND LTD 1427,04/07/2018,H59620180706VDJBQCNFN-1,15.05,YEI IMPACT OVERHEADS-MISCELLANEOUS SUPPLIES,DISCOUNT STORES,GPC
WALSALL COUNCIL,HTTP://OPENDATACOMMUNITIES.ORG/ID/METROPOLITAN-DISTRICT-COUNCIL/WALSALL,30/09/2018,CHILDRENS SERVICES,AMAZON UK RETAIL,04/07/2018,H59620180706VOQYMBWUJ-1,57.04,LEARNING ENVIRONMENT-GENERAL MATERIALS,OTHER DIRECT MARKETING-OTHER DIRECT MARKETERS,GPC
WALSALL COUNCIL,HTTP://OPENDATACOMMUNITIES.ORG/ID/METROPOLITAN-DISTRICT-COUNCIL/WALSALL,30/09/2018,CHILDRENS SERVICES,SAINSBURYS S/MKT,04/07/2018,H59620180706VRSSBIPHJ-1,4.25,RECRUITMENT TEAM-FOOD AND BEVERAGES-PROVISIONS,GROCERY STORES AND SUPERMARKETS,GPC
WALSALL COUNCIL,HTTP://OPENDATACOMMUNITIES.ORG/ID/METROPOLITAN-DISTRICT-COUNCIL/WALSALL,30/09/2018,RESOURCES & TRANSFORMATION,JOHAL DAIRIES LTD,04/07/2018,H59620180706VVDMOVYXA-1,39.24,CA ST MICHAELS C.E. PRIMARY SC-MISC DAIRY PRODUCTS-PROVISIONS,OTHER NONDURABLE GOODS,GPC
WALSALL COUNCIL,HTTP://OPENDATACOMMUNITIES.ORG/ID/METROPOLITAN-DISTRICT-COUNCIL/WALSALL,30/09/2018,RESOURCES & TRANSFORMATION,BLAKEMORE FOODSERVICE,04/07/2018,H59620180706WBSWQINKK-1,56.68,CA ST JOHNS C.E. PRIMARY SCHOO-FROZEN FOODS-PROVISIONS,CATERERS,GPC
WALSALL COUNCIL,HTTP://OPENDATACOMMUNITIES.ORG/ID/METROPOLITAN-DISTRICT-COUNCIL/WALSALL,30/09/2018,RESOURCES & TRANSFORMATION,JOHAL DAIRIES LTD,04/07/2018,H59620180706WECYNJZSP-1,9.10,CA BEACON PRIMARY SCHOOL-MISC DAIRY PRODUCTS-PROVISIONS,OTHER NONDURABLE GOODS,GPC
WALSALL COUNCIL,HTTP://OPENDATACOMMUNITIES.ORG/ID/METROPOLITAN-DISTRICT-COUNCIL/WALSALL,30/09/2018,ECONOMY & ENVIRONMENT,PACIFIC NURSERIES,04/07/2018,H59620180706WLBXJIHBS-1,72.49,ARBORETUM-GENERAL MATERIALS,"NURSERIES, LAWN AND GARDEN SUPPLY STORES",GPC
WALSALL COUNCIL,HTTP://OPENDATACOMMUNITIES.ORG/ID/METROPOLITAN-DISTRICT-COUNCIL/WALSALL,30/09/2018,CHILDRENS SERVICES,AMAZON SVCS EU-UK AMAZON.,04/07/2018,H59620180706WUYHJUJUI-1,38.50,CHILDRENS TAXI BUDGET-LIBRARY BOOKS,BOOK STORES,GPC
WALSALL COUNCIL,HTTP://OPENDATACOMMUNITIES.ORG/ID/METROPOLITAN-DISTRICT-COUNCIL/WALSALL,30/09/2018,CHILDRENS SERVICES - SCHOOLS,AMAZON UK MARKETPLACE,04/07/2018,H59620180706WWVJCVBVX-1,10.51,E19-GENERAL MATERIALS,BOOK STORES,GPC
WALSALL COUNCIL,HTTP://OPENDATACOMMUNITIES.ORG/ID/METROPOLITAN-DISTRICT-COUNCIL/WALSALL,30/09/2018,RESOURCES & TRANSFORMATION,JOHAL DAIRIES LTD,04/07/2018,H59620180706WXPQQRRUJ-1,2.63,CA LEAMORE PRIMARY SCHOOL-MISC DAIRY PRODUCTS-PROVISIONS,OTHER NONDURABLE GOODS,GPC
WALSALL COUNCIL,HTTP://OPENDATACOMMUNITIES.ORG/ID/METROPOLITAN-DISTRICT-COUNCIL/WALSALL,30/09/2018,RESOURCES & TRANSFORMATION,BLAKEMORE FOODSERVICE,04/07/2018,H59620180706XFXDDGOXO-1,193.08,CA OLD HALL SPECIAL SCHOOL-DRY FOODS-PROVISIONS,CATERERS,GPC
WALSALL COUNCIL,HTTP://OPENDATACOMMUNITIES.ORG/ID/METROPOLITAN-DISTRICT-COUNCIL/WALSALL,30/09/2018,RESOURCES & TRANSFORMATION,BLAKEMORE FOODSERVICE,04/07/2018,H59620180706XKLSUXNQX-1,284.79,CA ELMWOOD SPECIAL SCHOOL-DRY FOODS-PROVISIONS,CATERERS,GPC
WALSALL COUNCIL,HTTP://OPENDATACOMMUNITIES.ORG/ID/METROPOLITAN-DISTRICT-COUNCIL/WALSALL,30/09/2018,RESOURCES & TRANSFORMATION,BLAKEMORE FOODSERVICE,04/07/2018,H59620180706XKLSUXNQX-2,23.04,CA ELMWOOD SPECIAL SCHOOL-DRY FOODS-PROVISIONS,CATERERS,GPC
WALSALL COUNCIL,HTTP://OPENDATACOMMUNITIES.ORG/ID/METROPOLITAN-DISTRICT-COUNCIL/WALSALL,30/09/2018,RESOURCES & TRANSFORMATION,BLAKEMORE FOODSERVICE,04/07/2018,H59620180706XRNRKWOCY-1,102.15,CA WATLING STREET PRIMARY SCHO-FROZEN FOODS-PROVISIONS,CATERERS,GPC
WALSALL COUNCIL,HTTP://OPENDATACOMMUNITIES.ORG/ID/METROPOLITAN-DISTRICT-COUNCIL/WALSALL,30/09/2018,CHILDRENS SERVICES - SCHOOLS,AMAZON UK MARKETPLACE,04/07/2018,H59620180706YKKQKBGZC-1,12.18,E19-GENERAL MATERIALS,BOOK STORES,GPC
WALSALL COUNCIL,HTTP://OPENDATACOMMUNITIES.ORG/ID/METROPOLITAN-DISTRICT-COUNCIL/WALSALL,30/09/2018,RESOURCES & TRANSFORMATION,BLAKEMORE FOODSERVICE,04/07/2018,H59620180706YPPJYDROH-1,108.02,CA BIRCHILLS CE PRIMARY COMMUN-DISPOSABLES-PROVISIONS,CATERERS,GPC
WALSALL COUNCIL,HTTP://OPENDATACOMMUNITIES.ORG/ID/METROPOLITAN-DISTRICT-COUNCIL/WALSALL,30/09/2018,ECONOMY & ENVIRONMENT,HOLE IN THE WALL C,04/07/2018,H59620180706YSKKYMXBV-1,35.00,YEI IMPACT OVERHEADS-MISCELLANEOUS SUPPLIES,"FURNITURE-REUPHOLSTERY AND REPAIR, REFINISHING",GPC
WALSALL COUNCIL,HTTP://OPENDATACOMMUNITIES.ORG/ID/METROPOLITAN-DISTRICT-COUNCIL/WALSALL,30/09/2018,RESOURCES & TRANSFORMATION,PAYPAL *LEOMAY LTD,04/07/2018,H59620180706YSWMNTIJP-1,54.99,CORPORATE MANAGEMENT TEAM-FURNITURE & EQUIPMENT,ELECTRONIC SALES,GPC
WALSALL COUNCIL,HTTP://OPENDATACOMMUNITIES.ORG/ID/METROPOLITAN-DISTRICT-COUNCIL/WALSALL,30/09/2018,CHILDRENS SERVICES - SCHOOLS,AMAZON UK MARKETPLACE,04/07/2018,H59620180706YTOYCTNUQ-1,8.32,E19-GENERAL MATERIALS,BOOK STORES,GPC
WALSALL COUNCIL,HTTP://OPENDATACOMMUNITIES.ORG/ID/METROPOLITAN-DISTRICT-COUNCIL/WALSALL,30/09/2018,CHILDRENS SERVICES,TESCO - RINKIT LTD,04/07/2018,H59620180706YXDUSGPEB-1,143.97,PELSALL VILLAGE SCHOOL-OTHER-OP MTCE,MISCELLANEOUS AND SPECIALTY RETAIL STORES,GPC
WALSALL COUNCIL,HTTP://OPENDATACOMMUNITIES.ORG/ID/METROPOLITAN-DISTRICT-COUNCIL/WALSALL,30/09/2018,RESOURCES & TRANSFORMATION,NOBISCO LIMITED,04/07/2018,H59620180706ZLPCYPSPP-1,161.36,CA ELMORE GREEN PRIMARY SCHOOL-DISPOSABLES-PROVISIONS,OTHER INDUSTRIAL SUPPLIES,GPC
WALSALL COUNCIL,HTTP://OPENDATACOMMUNITIES.ORG/ID/METROPOLITAN-DISTRICT-COUNCIL/WALSALL,30/09/2018,ECONOMY & ENVIRONMENT,TRAINLINE,04/07/2018,H59620180708AFRBPHRKH-1,4.95,LEISURE - MANAGEMENT AND ADMIN-GENERAL EXPENSES-OFFICE EXP,PASSENGER RAILWAYS,GPC
WALSALL COUNCIL,HTTP://OPENDATACOMMUNITIES.ORG/ID/METROPOLITAN-DISTRICT-COUNCIL/WALSALL,30/09/2018,CHILDRENS SERVICES,TRAINLINE,04/07/2018,H59620180708BFBCTIEJN-1,32.65,DIRECTLY COMMISSIONED NURSING -OTHER-TRAVEL ALLOWANCES,PASSENGER RAILWAYS,GPC
WALSALL COUNCIL,HTTP://OPENDATACOMMUNITIES.ORG/ID/METROPOLITAN-DISTRICT-COUNCIL/WALSALL,30/09/2018,CHILDRENS SERVICES - SCHOOLS,AMAZON SVCS EU-UK AMAZON.,04/07/2018,H59620180708EBWOKGRVN-1,61.99,ADMINISTRATIVE SUPPLIES-GENERAL MATERIALS,BOOK STORES,GPC
WALSALL COUNCIL,HTTP://OPENDATACOMMUNITIES.ORG/ID/METROPOLITAN-DISTRICT-COUNCIL/WALSALL,30/09/2018,CHILDRENS SERVICES,LIDL UK BIRMINGHAM,04/07/2018,H59620180708HIPTKJURW-1,38.65,SPINDLETREE-FOOD AND BEVERAGES-PROVISIONS,GROCERY STORES AND SUPERMARKETS,GPC
WALSALL COUNCIL,HTTP://OPENDATACOMMUNITIES.ORG/ID/METROPOLITAN-DISTRICT-COUNCIL/WALSALL,30/09/2018,CHILDRENS SERVICES,LIDL UK BIRMINGHAM,04/07/2018,H59620180708HIPTKJURW-2,11.37,SPINDLETREE-FOOD AND BEVERAGES-PROVISIONS,GROCERY STORES AND SUPERMARKETS,GPC
WALSALL COUNCIL,HTTP://OPENDATACOMMUNITIES.ORG/ID/METROPOLITAN-DISTRICT-COUNCIL/WALSALL,30/09/2018,CHILDRENS SERVICES - SCHOOLS,BIRMINGHAM,04/07/2018,H59620180708JQXQIOTPL-1,131.50,E19-GENERAL MATERIALS,TOURIST ATTRACTIONS AND EXHIBITS,GPC
WALSALL COUNCIL,HTTP://OPENDATACOMMUNITIES.ORG/ID/METROPOLITAN-DISTRICT-COUNCIL/WALSALL,30/09/2018,CHILDRENS SERVICES - SCHOOLS,BIRMINGHAM,04/07/2018,H59620180708PWVFNZWEH-1,144.00,E19-GENERAL MATERIALS,TOURIST ATTRACTIONS AND EXHIBITS,GPC
WALSALL COUNCIL,HTTP://OPENDATACOMMUNITIES.ORG/ID/METROPOLITAN-DISTRICT-COUNCIL/WALSALL,30/09/2018,ECONOMY & ENVIRONMENT,TRAINLINE,04/07/2018,H59620180708XBUWFJMBN-1,72.30,LEISURE - MANAGEMENT AND ADMIN-OFFICER/STAFF-PUBLIC TRANSPORT,PASSENGER RAILWAYS,GPC
WALSALL COUNCIL,HTTP://OPENDATACOMMUNITIES.ORG/ID/METROPOLITAN-DISTRICT-COUNCIL/WALSALL,30/09/2018,CHILDRENS SERVICES,WWW.BLACKWELL.CO.UK,04/07/2018,H59620180712SSYCEJXIT-1,27.61,CHILDRENS TAXI BUDGET-STATIONERY & GENERAL SUPPLIES-,"OFFICE, SCHOOL SUPPLY, AND STATIONERY STORES",GPC
WALSALL COUNCIL,HTTP://OPENDATACOMMUNITIES.ORG/ID/METROPOLITAN-DISTRICT-COUNCIL/WALSALL,30/09/2018,CHILDRENS SERVICES,WILKO.COM,05/07/2018,H59620180708ARIQMLHSA-1,20.00,CENTRAL & EAST LOCALITY - SCHO-GENERAL MATERIALS,MISCELLANEOUS GENERAL MERCHANDISE,GPC
WALSALL COUNCIL,HTTP://OPENDATACOMMUNITIES.ORG/ID/METROPOLITAN-DISTRICT-COUNCIL/WALSALL,30/09/2018,CHILDRENS SERVICES,WILKO.COM,05/07/2018,H59620180708ARIQMLHSA-2,9.00,CENTRAL & EAST LOCALITY - SCHO-GENERAL MATERIALS,MISCELLANEOUS GENERAL MERCHANDISE,GPC
WALSALL COUNCIL,HTTP://OPENDATACOMMUNITIES.ORG/ID/METROPOLITAN-DISTRICT-COUNCIL/WALSALL,30/09/2018,ECONOMY & ENVIRONMENT,ACORN GROUP LTD,05/07/2018,H59620180708BDIYHKSUQ-1,61.20,FLEET-GENERAL MATERIALS,"AUTOMOBILE SALES, SERVICE, REPAIRS",GPC
WALSALL COUNCIL,HTTP://OPENDATACOMMUNITIES.ORG/ID/METROPOLITAN-DISTRICT-COUNCIL/WALSALL,30/09/2018,CHILDRENS SERVICES,WALSALL STN T/O,05/07/2018,H59620180708BEJTYNKJM-1,36.80,LOOKED AFTER CHILDRENS SOCIAL -SUPPORT UNDER SECTION 23 OF TH,PASSENGER RAILWAYS,GPC
WALSALL COUNCIL,HTTP://OPENDATACOMMUNITIES.ORG/ID/METROPOLITAN-DISTRICT-COUNCIL/WALSALL,30/09/2018,CHILDRENS SERVICES,HTTP://WWW.FORWARDPRODUC,05/07/2018,H59620180708CQTKHYHJE-1,29.93,CURRICULUM STOCK-GENERAL MATERIALS,"STATIONERY, OFFICE SUPPLIES AND WRITING PAPER",GPC
WALSALL COUNCIL,HTTP://OPENDATACOMMUNITIES.ORG/ID/METROPOLITAN-DISTRICT-COUNCIL/WALSALL,30/09/2018,RESOURCES & TRANSFORMATION,JOHAL DAIRIES LTD,05/07/2018,H59620180708DCVGWPUSF-1,27.36,CA BUSILL JONES PRIMARY SCHOOL-MISC DAIRY PRODUCTS-PROVISIONS,OTHER NONDURABLE GOODS,GPC
WALSALL COUNCIL,HTTP://OPENDATACOMMUNITIES.ORG/ID/METROPOLITAN-DISTRICT-COUNCIL/WALSALL,30/09/2018,CHILDRENS SERVICES,ASDA SUPERSTORE,05/07/2018,H59620180708DDVDQDBIE-1,6.00,REDRUTH ROAD-FOOD AND BEVERAGES-PROVISIONS,GROCERY STORES AND SUPERMARKETS,GPC
WALSALL COUNCIL,HTTP://OPENDATACOMMUNITIES.ORG/ID/METROPOLITAN-DISTRICT-COUNCIL/WALSALL,30/09/2018,CHILDRENS SERVICES,ASDA SUPERSTORE,05/07/2018,H59620180708DDVDQDBIE-2,56.60,REDRUTH ROAD-FOOD AND BEVERAGES-PROVISIONS,GROCERY STORES AND SUPERMARKETS,GPC
WALSALL COUNCIL,HTTP://OPENDATACOMMUNITIES.ORG/ID/METROPOLITAN-DISTRICT-COUNCIL/WALSALL,30/09/2018,CHILDRENS SERVICES,JOHAL DAIRIES LTD,05/07/2018,H59620180708DULOORRYK-1,3.80,CONTACT SESSIONAL STAFF-MISC DAIRY PRODUCTS-PROVISIONS,OTHER NONDURABLE GOODS,GPC
WALSALL COUNCIL,HTTP://OPENDATACOMMUNITIES.ORG/ID/METROPOLITAN-DISTRICT-COUNCIL/WALSALL,30/09/2018,RESOURCES & TRANSFORMATION,JOHAL DAIRIES LTD,05/07/2018,H59620180708DWCYCJBCX-1,6.93,CA ELMWOOD SPECIAL SCHOOL-MISC DAIRY PRODUCTS-PROVISIONS,OTHER NONDURABLE GOODS,GPC
WALSALL COUNCIL,HTTP://OPENDATACOMMUNITIES.ORG/ID/METROPOLITAN-DISTRICT-COUNCIL/WALSALL,30/09/2018,ECONOMY & ENVIRONMENT,WWW.GAMBLINGCOMMIS,05/07/2018,H59620180708EHGTBOPHN-1,92.50,YEI ESF FUNDING-PROFESSIONAL FEES AND SERVICES,PROFESSIONAL SERVICES,GPC
WALSALL COUNCIL,HTTP://OPENDATACOMMUNITIES.ORG/ID/METROPOLITAN-DISTRICT-COUNCIL/WALSALL,30/09/2018,ECONOMY & ENVIRONMENT,WWW.GAMBLINGCOMMIS,05/07/2018,H59620180708EHGTBOPHN-2,92.50,YEI (IMPACT) PROGRAMME-PROFESSIONAL FEES AND SERVICES,PROFESSIONAL SERVICES,GPC
WALSALL COUNCIL,HTTP://OPENDATACOMMUNITIES.ORG/ID/METROPOLITAN-DISTRICT-COUNCIL/WALSALL,30/09/2018,ECONOMY & ENVIRONMENT,AMAZON UK MARKETPLACE,05/07/2018,H59620180708EKNYYEEVW-1,23.97,FLEET-GENERAL MATERIALS,BOOK STORES,GPC
WALSALL COUNCIL,HTTP://OPENDATACOMMUNITIES.ORG/ID/METROPOLITAN-DISTRICT-COUNCIL/WALSALL,30/09/2018,RESOURCES & TRANSFORMATION,JOHAL DAIRIES LTD,05/07/2018,H59620180708ETPWIRCGS-1,20.64,CA ST JOHNS C.E. PRIMARY SCHOO-MISC DAIRY PRODUCTS-PROVISIONS,OTHER NONDURABLE GOODS,GPC
WALSALL COUNCIL,HTTP://OPENDATACOMMUNITIES.ORG/ID/METROPOLITAN-DISTRICT-COUNCIL/WALSALL,30/09/2018,RESOURCES & TRANSFORMATION,JOHAL DAIRIES LTD,05/07/2018,H59620180708FCIEUOTUM-1,8.60,CA ST FRANCIS CATHOLIC PRIMARY-MISC DAIRY PRODUCTS-PROVISIONS,OTHER NONDURABLE GOODS,GPC
WALSALL COUNCIL,HTTP://OPENDATACOMMUNITIES.ORG/ID/METROPOLITAN-DISTRICT-COUNCIL/WALSALL,30/09/2018,RESOURCES & TRANSFORMATION,JOHAL DAIRIES LTD,05/07/2018,H59620180708FGHQWNYRD-1,36.40,CA LEIGHSWOOD PRIMARY SCHOOL-MISC DAIRY PRODUCTS-PROVISIONS,OTHER NONDURABLE GOODS,GPC
WALSALL COUNCIL,HTTP://OPENDATACOMMUNITIES.ORG/ID/METROPOLITAN-DISTRICT-COUNCIL/WALSALL,30/09/2018,ECONOMY & ENVIRONMENT,WWW.GAMBLINGCOMMIS,05/07/2018,H59620180708FJOYWMYWS-1,92.50,YEI ESF FUNDING-PROFESSIONAL FEES AND SERVICES,PROFESSIONAL SERVICES,GPC
WALSALL COUNCIL,HTTP://OPENDATACOMMUNITIES.ORG/ID/METROPOLITAN-DISTRICT-COUNCIL/WALSALL,30/09/2018,ECONOMY & ENVIRONMENT,WWW.GAMBLINGCOMMIS,05/07/2018,H59620180708FJOYWMYWS-2,92.50,YEI (IMPACT) PROGRAMME-PROFESSIONAL FEES AND SERVICES,PROFESSIONAL SERVICES,GPC
WALSALL COUNCIL,HTTP://OPENDATACOMMUNITIES.ORG/ID/METROPOLITAN-DISTRICT-COUNCIL/WALSALL,30/09/2018,RESOURCES & TRANSFORMATION,AMAZON UK MARKETPLACE,05/07/2018,H59620180708GROLEWHGH-1,20.97,RECHARGEABLE EQUIPMENT-COMPUTER EQUIPMENT AND SUPPLIE,BOOK STORES,GPC
WALSALL COUNCIL,HTTP://OPENDATACOMMUNITIES.ORG/ID/METROPOLITAN-DISTRICT-COUNCIL/WALSALL,30/09/2018,RESOURCES & TRANSFORMATION,JOHAL DAIRIES LTD,05/07/2018,H59620180708HDOJCFOGQ-1,44.72,CA RADLEYS PRIMARY SCHOOL-MISC DAIRY PRODUCTS-PROVISIONS,OTHER NONDURABLE GOODS,GPC
WALSALL COUNCIL,HTTP://OPENDATACOMMUNITIES.ORG/ID/METROPOLITAN-DISTRICT-COUNCIL/WALSALL,30/09/2018,CHILDRENS SERVICES,PARENTPAY E-COM R,05/07/2018,H59620180708HPSGSOFHD-1,15.00,INDEPENDENT RESIDENTIAL HOMES-RESIDENTS PERSONAL EXPENSES-AL,"COLLEGES, UNIVERSITIES, PROFESSIONAL SCHOOLS",GPC
WALSALL COUNCIL,HTTP://OPENDATACOMMUNITIES.ORG/ID/METROPOLITAN-DISTRICT-COUNCIL/WALSALL,30/09/2018,ECONOMY & ENVIRONMENT,SIM MAYOU HARDWARE,05/07/2018,H59620180708HQQVTWQIU-1,64.58,COMMUNITY LIASON-GENERAL MATERIALS,HARDWARE STORES,GPC
WALSALL COUNCIL,HTTP://OPENDATACOMMUNITIES.ORG/ID/METROPOLITAN-DISTRICT-COUNCIL/WALSALL,30/09/2018,RESOURCES & TRANSFORMATION,AMAZON EU AMAZON.CO.UK,05/07/2018,H59620180708ICJIGZNOY-1,25.21,CCTV-MISCELLANEOUS SUPPLIES,MISCELLANEOUS AND SPECIALTY RETAIL STORES,GPC
WALSALL COUNCIL,HTTP://OPENDATACOMMUNITIES.ORG/ID/METROPOLITAN-DISTRICT-COUNCIL/WALSALL,30/09/2018,ECONOMY & ENVIRONMENT,SUK RETAIL LTD,05/07/2018,H59620180708IFNYNYURO-1,12.99,DARLASTON LEISURE CENTRE-STATIONERY & GENERAL SUPPLIES-,"OFFICE, SCHOOL SUPPLY, AND STATIONERY STORES",GPC
WALSALL COUNCIL,HTTP://OPENDATACOMMUNITIES.ORG/ID/METROPOLITAN-DISTRICT-COUNCIL/WALSALL,30/09/2018,RESOURCES & TRANSFORMATION,SUMUP*BALLOON MAGIC,05/07/2018,H59620180708IIYHXUHJK-1,18.00,LEARNING & MANAGEMENT DEVELOPM-EXTERNAL TRAINING,OTHER RECREATION SERVICES,GPC
WALSALL COUNCIL,HTTP://OPENDATACOMMUNITIES.ORG/ID/METROPOLITAN-DISTRICT-COUNCIL/WALSALL,30/09/2018,CHILDRENS SERVICES,WWW.ARGOS.CO.UK,05/07/2018,H59620180708IMLCXQDPQ-1,53.93,SAFEGUARDING & FAMILY SUPPORT-BEDDING & LINEN-MATERIALS,DISCOUNT STORES,GPC
WALSALL COUNCIL,HTTP://OPENDATACOMMUNITIES.ORG/ID/METROPOLITAN-DISTRICT-COUNCIL/WALSALL,30/09/2018,ECONOMY & ENVIRONMENT,EDEN FARM,05/07/2018,H59620180708IQZBGBRVY-1,125.01,DARLASTON LEISURE CENTRE-CONFECTIONERY/SNACKS-PROVISION,MISCELLANEOUS FOOD STORES & CONVENIENCE STORES,GPC
WALSALL COUNCIL,HTTP://OPENDATACOMMUNITIES.ORG/ID/METROPOLITAN-DISTRICT-COUNCIL/WALSALL,30/09/2018,RESOURCES & TRANSFORMATION,JOHAL DAIRIES LTD,05/07/2018,H59620180708IRZBMGAHT-1,19.30,CA LINDENS PRIMARY SCHOOL-MISC DAIRY PRODUCTS-PROVISIONS,OTHER NONDURABLE GOODS,GPC
WALSALL COUNCIL,HTTP://OPENDATACOMMUNITIES.ORG/ID/METROPOLITAN-DISTRICT-COUNCIL/WALSALL,30/09/2018,RESOURCES & TRANSFORMATION,JOHAL DAIRIES LTD,05/07/2018,H59620180708ISWDRPONG-1,19.44,TOWN HALL RESTAURANT BISTRO-MISC DAIRY PRODUCTS-PROVISIONS,OTHER NONDURABLE GOODS,GPC
WALSALL COUNCIL,HTTP://OPENDATACOMMUNITIES.ORG/ID/METROPOLITAN-DISTRICT-COUNCIL/WALSALL,30/09/2018,RESOURCES & TRANSFORMATION,JOHAL DAIRIES LTD,05/07/2018,H59620180708ITWVCSMXS-1,47.48,CA BARCROFT D/C-MISC DAIRY PRODUCTS-PROVISIONS,OTHER NONDURABLE GOODS,GPC
WALSALL COUNCIL,HTTP://OPENDATACOMMUNITIES.ORG/ID/METROPOLITAN-DISTRICT-COUNCIL/WALSALL,30/09/2018,CHILDRENS SERVICES,TRAINLINE,05/07/2018,H59620180708JAAIFYBEO-1,8.45,SAFEGUARDING & FAMILY SUPPORT-OFFICER/STAFF-PUBLIC TRANSPORT,PASSENGER RAILWAYS,GPC
WALSALL COUNCIL,HTTP://OPENDATACOMMUNITIES.ORG/ID/METROPOLITAN-DISTRICT-COUNCIL/WALSALL,30/09/2018,RESOURCES & TRANSFORMATION,JOHAL DAIRIES LTD,05/07/2018,H59620180708JAMRWDVGC-1,10.92,CA BROWNHILLS WEST PRIMARY SCH-MISC DAIRY PRODUCTS-PROVISIONS,OTHER NONDURABLE GOODS,GPC
WALSALL COUNCIL,HTTP://OPENDATACOMMUNITIES.ORG/ID/METROPOLITAN-DISTRICT-COUNCIL/WALSALL,30/09/2018,RESOURCES & TRANSFORMATION,WWW.HXPAYMENTS.COM,05/07/2018,H59620180708JRDMTPRKS-1,70.20,BED & BREAKFAST PAYMENTS-BED & BREAKFAST PAYMENTS,TRAVEL AGENCIES AND TOUR OPERATORS,GPC
WALSALL COUNCIL,HTTP://OPENDATACOMMUNITIES.ORG/ID/METROPOLITAN-DISTRICT-COUNCIL/WALSALL,30/09/2018,RESOURCES & TRANSFORMATION,JOHAL DAIRIES LTD,05/07/2018,H59620180708KELEKADXM-1,30.15,CA ELMORE GREEN PRIMARY SCHOOL-MISC DAIRY PRODUCTS-PROVISIONS,OTHER NONDURABLE GOODS,GPC
WALSALL COUNCIL,HTTP://OPENDATACOMMUNITIES.ORG/ID/METROPOLITAN-DISTRICT-COUNCIL/WALSALL,30/09/2018,RESOURCES & TRANSFORMATION,JOHAL DAIRIES LTD,05/07/2018,H59620180708KWJJLCAYN-1,39.00,CA MOORCROFT WOOD-MISC DAIRY PRODUCTS-PROVISIONS,OTHER NONDURABLE GOODS,GPC
WALSALL COUNCIL,HTTP://OPENDATACOMMUNITIES.ORG/ID/METROPOLITAN-DISTRICT-COUNCIL/WALSALL,30/09/2018,RESOURCES & TRANSFORMATION,JOHAL DAIRIES LTD,05/07/2018,H59620180708LGKFZSXFS-1,36.98,CA COOPER JORDAN CE PRIMARY SC-MISC DAIRY PRODUCTS-PROVISIONS,OTHER NONDURABLE GOODS,GPC
WALSALL COUNCIL,HTTP://OPENDATACOMMUNITIES.ORG/ID/METROPOLITAN-DISTRICT-COUNCIL/WALSALL,30/09/2018,CHILDRENS SERVICES - SCHOOLS,AMAZON UK MARKETPLACE,05/07/2018,H59620180708LGXORYMNT-1,2.91,E19-GENERAL MATERIALS,BOOK STORES,GPC
WALSALL COUNCIL,HTTP://OPENDATACOMMUNITIES.ORG/ID/METROPOLITAN-DISTRICT-COUNCIL/WALSALL,30/09/2018,RESOURCES & TRANSFORMATION,JOHAL DAIRIES LTD,05/07/2018,H59620180708LKCFLPDOR-1,158.94,CA BIRCHILLS CE PRIMARY COMMUN-MISC DAIRY PRODUCTS-PROVISIONS,OTHER NONDURABLE GOODS,GPC
WALSALL COUNCIL,HTTP://OPENDATACOMMUNITIES.ORG/ID/METROPOLITAN-DISTRICT-COUNCIL/WALSALL,30/09/2018,ECONOMY & ENVIRONMENT,CITY ELECTRICAL FA,05/07/2018,H59620180708LTCJHMOEQ-1,8.93,INFRASTRUCTURE MAINTENANCE-GENERAL MATERIALS,LUMBER & BUILDING MATERIALS STORES,GPC
WALSALL COUNCIL,HTTP://OPENDATACOMMUNITIES.ORG/ID/METROPOLITAN-DISTRICT-COUNCIL/WALSALL,30/09/2018,CHILDRENS SERVICES,CURRYS ONLINE,05/07/2018,H59620180708LUCDIMBXV-1,59.99,VIRTUAL SCHOOL - CENTRAL PUPIL-MISC FEES AND EXPENSES,ELECTRONIC SALES,GPC
WALSALL COUNCIL,HTTP://OPENDATACOMMUNITIES.ORG/ID/METROPOLITAN-DISTRICT-COUNCIL/WALSALL,30/09/2018,ECONOMY & ENVIRONMENT,WWW.LAMPSHOPONLINE.CO.UK,05/07/2018,H59620180708MJNXNQYLT-1,50.40,FOREST ARTS CENTRE-STATIONERY & GENERAL SUPPLIES-,HARDWARE EQUIPMENT AND SUPPLIES,GPC
WALSALL COUNCIL,HTTP://OPENDATACOMMUNITIES.ORG/ID/METROPOLITAN-DISTRICT-COUNCIL/WALSALL,30/09/2018,CHILDRENS SERVICES,MCDONALDS,05/07/2018,H59620180708MKCAKHOUR-1,6.76,"43A HILTON ROAD, WILLENHALL-RESIDENTS PERSONAL EXPENSES-AL",QUICK PAYMENT SERVICE-FAST-FOOD RESTAURANTS,GPC
WALSALL COUNCIL,HTTP://OPENDATACOMMUNITIES.ORG/ID/METROPOLITAN-DISTRICT-COUNCIL/WALSALL,30/09/2018,RESOURCES & TRANSFORMATION,JOHAL DAIRIES LTD,05/07/2018,H59620180708MKJXBHIYH-1,16.34,CA WATLING STREET PRIMARY SCHO-MISC DAIRY PRODUCTS-PROVISIONS,OTHER NONDURABLE GOODS,GPC
WALSALL COUNCIL,HTTP://OPENDATACOMMUNITIES.ORG/ID/METROPOLITAN-DISTRICT-COUNCIL/WALSALL,30/09/2018,CHILDRENS SERVICES,WWW.BARRBEACON.WALSALL,05/07/2018,H59620180708MLHLYFPPI-1,30.00,INDEPENDENT RESIDENTIAL HOMES-RESIDENTS PERSONAL EXPENSES-AL,"SCHOOLS, ELEMENTARY AND SECONDARY",GPC
WALSALL COUNCIL,HTTP://OPENDATACOMMUNITIES.ORG/ID/METROPOLITAN-DISTRICT-COUNCIL/WALSALL,30/09/2018,CHILDRENS SERVICES,AMAZON UK MARKETPLACE,05/07/2018,H59620180708MNJFXEFKF-1,12.98,ICT LEARNING RESOURCES-GENERAL MATERIALS,BOOK STORES,GPC
WALSALL COUNCIL,HTTP://OPENDATACOMMUNITIES.ORG/ID/METROPOLITAN-DISTRICT-COUNCIL/WALSALL,30/09/2018,RESOURCES & TRANSFORMATION,WWW.NOBISCO.CO.UK,05/07/2018,H59620180708MYIFSWQDG-1,18.12,BUSINESS SUPPORT-STATIONERY & GENERAL SUPPLIES-,OTHER INDUSTRIAL SUPPLIES,GPC
WALSALL COUNCIL,HTTP://OPENDATACOMMUNITIES.ORG/ID/METROPOLITAN-DISTRICT-COUNCIL/WALSALL,30/09/2018,RESOURCES & TRANSFORMATION,JOHAL DAIRIES LTD,05/07/2018,H59620180708NEYWIJQFQ-1,6.43,CA MEADOW VIEW JMI PRIMARY SCH-MISC DAIRY PRODUCTS-PROVISIONS,OTHER NONDURABLE GOODS,GPC
WALSALL COUNCIL,HTTP://OPENDATACOMMUNITIES.ORG/ID/METROPOLITAN-DISTRICT-COUNCIL/WALSALL,30/09/2018,RESOURCES & TRANSFORMATION,JOHAL DAIRIES LTD,05/07/2018,H59620180708NKTQRYTXK-1,2.63,CA LEAMORE PRIMARY SCHOOL-MISC DAIRY PRODUCTS-PROVISIONS,OTHER NONDURABLE GOODS,GPC
WALSALL COUNCIL,HTTP://OPENDATACOMMUNITIES.ORG/ID/METROPOLITAN-DISTRICT-COUNCIL/WALSALL,30/09/2018,CHILDRENS SERVICES,AMAZON UK MARKETPLACE,05/07/2018,H59620180708NYAMDFWXF-1,8.99,LEARNING ENVIRONMENT-GENERAL MATERIALS,BOOK STORES,GPC
WALSALL COUNCIL,HTTP://OPENDATACOMMUNITIES.ORG/ID/METROPOLITAN-DISTRICT-COUNCIL/WALSALL,30/09/2018,CHILDRENS SERVICES,AMAZON UK MARKETPLACE,05/07/2018,H59620180708NYAMDFWXF-2,24.38,LEARNING ENVIRONMENT-GENERAL MATERIALS,BOOK STORES,GPC
WALSALL COUNCIL,HTTP://OPENDATACOMMUNITIES.ORG/ID/METROPOLITAN-DISTRICT-COUNCIL/WALSALL,30/09/2018,RESOURCES & TRANSFORMATION,JOHAL DAIRIES LTD,05/07/2018,H59620180708OLUBXKLSY-1,10.05,CA BLUE COAT C OF E PERFORMING-MISC DAIRY PRODUCTS-PROVISIONS,OTHER NONDURABLE GOODS,GPC
WALSALL COUNCIL,HTTP://OPENDATACOMMUNITIES.ORG/ID/METROPOLITAN-DISTRICT-COUNCIL/WALSALL,30/09/2018,RESOURCES & TRANSFORMATION,JOHAL CONV STORE 71872,05/07/2018,H59620180708OMKYCNQXS-1,15.00,TENANCY SERVICE-ELECTRICITY-ENERGY COSTS,GROCERY STORES AND SUPERMARKETS,GPC
WALSALL COUNCIL,HTTP://OPENDATACOMMUNITIES.ORG/ID/METROPOLITAN-DISTRICT-COUNCIL/WALSALL,30/09/2018,RESOURCES & TRANSFORMATION,JOHAL DAIRIES LTD,05/07/2018,H59620180708PEMVEFMCI-1,25.39,CA ST BERNADETTES CATHOLIC PRI-MISC DAIRY PRODUCTS-PROVISIONS,OTHER NONDURABLE GOODS,GPC
WALSALL COUNCIL,HTTP://OPENDATACOMMUNITIES.ORG/ID/METROPOLITAN-DISTRICT-COUNCIL/WALSALL,30/09/2018,ECONOMY & ENVIRONMENT,TESCO STORES 6161,05/07/2018,H59620180708PJWMXFDYQ-1,11.00,YEI ESF FUNDING-MISCELLANEOUS SUPPLIES,GROCERY STORES AND SUPERMARKETS,GPC
WALSALL COUNCIL,HTTP://OPENDATACOMMUNITIES.ORG/ID/METROPOLITAN-DISTRICT-COUNCIL/WALSALL,30/09/2018,ECONOMY & ENVIRONMENT,TESCO STORES 6161,05/07/2018,H59620180708PJWMXFDYQ-2,11.00,YEI (IMPACT) PROGRAMME-MISCELLANEOUS SUPPLIES,GROCERY STORES AND SUPERMARKETS,GPC
WALSALL COUNCIL,HTTP://OPENDATACOMMUNITIES.ORG/ID/METROPOLITAN-DISTRICT-COUNCIL/WALSALL,30/09/2018,CHILDRENS SERVICES,WALSALL COUNCIL,05/07/2018,H59620180708QVLAXRDZI-1,92.68,ADMINISTRATIVE SUPPLIES-GENERAL MATERIALS,GOVERNMENT SERVICES,GPC
WALSALL COUNCIL,HTTP://OPENDATACOMMUNITIES.ORG/ID/METROPOLITAN-DISTRICT-COUNCIL/WALSALL,30/09/2018,RESOURCES & TRANSFORMATION,JOHAL DAIRIES LTD,05/07/2018,H59620180708QZMYTUHRP-1,10.32,CA KINGSHILL SCHOOL-MISC DAIRY PRODUCTS-PROVISIONS,OTHER NONDURABLE GOODS,GPC
WALSALL COUNCIL,HTTP://OPENDATACOMMUNITIES.ORG/ID/METROPOLITAN-DISTRICT-COUNCIL/WALSALL,30/09/2018,CHILDRENS SERVICES,GRO HM PASSPORT OFFICE,05/07/2018,H59620180708RDKVAWVOG-1,23.40,SAFEGUARDING & FAMILY SUPPORT-REGISTRAR OF BIRTHS/DEATHS/MAR,GOVERNMENT SERVICES,GPC
WALSALL COUNCIL,HTTP://OPENDATACOMMUNITIES.ORG/ID/METROPOLITAN-DISTRICT-COUNCIL/WALSALL,30/09/2018,RESOURCES & TRANSFORMATION,JOHAL DAIRIES LTD,05/07/2018,H59620180708RGYYGMVWC-1,28.06,CA CASTLEFORT JMI SCHOOL-MISC DAIRY PRODUCTS-PROVISIONS,OTHER NONDURABLE GOODS,GPC
WALSALL COUNCIL,HTTP://OPENDATACOMMUNITIES.ORG/ID/METROPOLITAN-DISTRICT-COUNCIL/WALSALL,30/09/2018,CHILDRENS SERVICES,P & P ASSOCIATES,05/07/2018,H59620180708RYEDYJXJN-1,264.00,VIRTUAL SCHOOL - CENTRAL PUPIL-MISC FEES AND EXPENSES,COMPUTER SOFTWARE STORES,GPC
WALSALL COUNCIL,HTTP://OPENDATACOMMUNITIES.ORG/ID/METROPOLITAN-DISTRICT-COUNCIL/WALSALL,30/09/2018,ECONOMY & ENVIRONMENT,AMAZON UK RETAIL,05/07/2018,H59620180708SAOSRIOQU-1,15.47,STREETLY LIBRARY-EXTERNAL PRINTING SERVICES,OTHER DIRECT MARKETING-OTHER DIRECT MARKETERS,GPC
WALSALL COUNCIL,HTTP://OPENDATACOMMUNITIES.ORG/ID/METROPOLITAN-DISTRICT-COUNCIL/WALSALL,30/09/2018,ECONOMY & ENVIRONMENT,BANNER GROUP LTD,05/07/2018,H59620180708SBKDVAZOP-1,8.28,CENTRALISED STATIONARY-STATIONERY & GENERAL SUPPLIES-,"OFFICE, SCHOOL SUPPLY, AND STATIONERY STORES",GPC
WALSALL COUNCIL,HTTP://OPENDATACOMMUNITIES.ORG/ID/METROPOLITAN-DISTRICT-COUNCIL/WALSALL,30/09/2018,CHILDRENS SERVICES,EXPEDIA 7363894416311,05/07/2018,H59620180708SGGPCBOQR-1,94.50,INITIAL RESPONSE SERVICE-OTHER-TRAVEL ALLOWANCES,TRAVEL AGENCIES AND TOUR OPERATORS,GPC
WALSALL COUNCIL,HTTP://OPENDATACOMMUNITIES.ORG/ID/METROPOLITAN-DISTRICT-COUNCIL/WALSALL,30/09/2018,RESOURCES & TRANSFORMATION,JOHAL DAIRIES LTD,05/07/2018,H59620180708SPDVFHSNS-1,40.60,CA ST MICHAELS C.E. PRIMARY SC-MISC DAIRY PRODUCTS-PROVISIONS,OTHER NONDURABLE GOODS,GPC
WALSALL COUNCIL,HTTP://OPENDATACOMMUNITIES.ORG/ID/METROPOLITAN-DISTRICT-COUNCIL/WALSALL,30/09/2018,CHILDRENS SERVICES,W M MORRISON PLC,05/07/2018,H59620180708SPLUYLFOJ-1,40.00,PELSALL VILLAGE SCHOOL-FOOD AND BEVERAGES-PROVISIONS,GROCERY STORES AND SUPERMARKETS,GPC
WALSALL COUNCIL,HTTP://OPENDATACOMMUNITIES.ORG/ID/METROPOLITAN-DISTRICT-COUNCIL/WALSALL,30/09/2018,CHILDRENS SERVICES,W M MORRISON PLC,05/07/2018,H59620180708SPLUYLFOJ-2,30.50,ADMINISTRATIVE SUPPLIES-GENERAL MATERIALS,GROCERY STORES AND SUPERMARKETS,GPC
WALSALL COUNCIL,HTTP://OPENDATACOMMUNITIES.ORG/ID/METROPOLITAN-DISTRICT-COUNCIL/WALSALL,30/09/2018,CHILDRENS SERVICES,W M MORRISON PLC,05/07/2018,H59620180708SPLUYLFOJ-3,9.10,PELSALL VILLAGE SCHOOL-FOOD AND BEVERAGES-PROVISIONS,GROCERY STORES AND SUPERMARKETS,GPC
WALSALL COUNCIL,HTTP://OPENDATACOMMUNITIES.ORG/ID/METROPOLITAN-DISTRICT-COUNCIL/WALSALL,30/09/2018,CHILDRENS SERVICES,B&M RETAIL,05/07/2018,H59620180708TAYTKBQUK-1,6.48,LOCALITY FAMILY SUPPORT-CENTRA-FURNITURE & EQUIPMENT,DISCOUNT STORES,GPC
WALSALL COUNCIL,HTTP://OPENDATACOMMUNITIES.ORG/ID/METROPOLITAN-DISTRICT-COUNCIL/WALSALL,30/09/2018,RESOURCES & TRANSFORMATION,JOHAL DAIRIES LTD,05/07/2018,H59620180708THSLHKRGK-1,12.90,CA LITTLE BLOXWICH CE PRIMARY -MISC DAIRY PRODUCTS-PROVISIONS,OTHER NONDURABLE GOODS,GPC
WALSALL COUNCIL,HTTP://OPENDATACOMMUNITIES.ORG/ID/METROPOLITAN-DISTRICT-COUNCIL/WALSALL,30/09/2018,ECONOMY & ENVIRONMENT,WH SMITH,05/07/2018,H59620180708TMHKUFUBR-1,85.48,OAK PARK-GENERAL MATERIALS,NEWS DEALERS AND NEWSSTANDS,GPC
WALSALL COUNCIL,HTTP://OPENDATACOMMUNITIES.ORG/ID/METROPOLITAN-DISTRICT-COUNCIL/WALSALL,30/09/2018,RESOURCES & TRANSFORMATION,WWW.SWINTON.CO.UK,05/07/2018,H59620180708TWUOSGEPX-1,123.80,CHARGING & PAYMENTS-MISC INSURANCES - INSURANCE PR,"INSURANCE SALES, UNDERWRITING, AND PREMIUMS",GPC
WALSALL COUNCIL,HTTP://OPENDATACOMMUNITIES.ORG/ID/METROPOLITAN-DISTRICT-COUNCIL/WALSALL,30/09/2018,ECONOMY & ENVIRONMENT,BANNER GROUP LTD,05/07/2018,H59620180708TZFVEAHIV-1,8.64,STREETLY LIBRARY-STATIONERY & GENERAL SUPPLIES-,"OFFICE, SCHOOL SUPPLY, AND STATIONERY STORES",GPC
WALSALL COUNCIL,HTTP://OPENDATACOMMUNITIES.ORG/ID/METROPOLITAN-DISTRICT-COUNCIL/WALSALL,30/09/2018,RESOURCES & TRANSFORMATION,JOHAL DAIRIES LTD,05/07/2018,H59620180708UCZLJGOLX-1,23.87,CA JANE LANE SPECIAL SCHOOL-MISC DAIRY PRODUCTS-PROVISIONS,OTHER NONDURABLE GOODS,GPC
WALSALL COUNCIL,HTTP://OPENDATACOMMUNITIES.ORG/ID/METROPOLITAN-DISTRICT-COUNCIL/WALSALL,30/09/2018,CHILDRENS SERVICES - SCHOOLS,AMAZON UK MARKETPLACE,05/07/2018,H59620180708UESVUKDUK-1,17.98,E19-GENERAL MATERIALS,BOOK STORES,GPC
WALSALL COUNCIL,HTTP://OPENDATACOMMUNITIES.ORG/ID/METROPOLITAN-DISTRICT-COUNCIL/WALSALL,30/09/2018,CHILDRENS SERVICES,REGISTRATION SERVICES,05/07/2018,H59620180708VCYLCRHWD-1,18.00,GENERAL MANAGEMENT SUPPORT (IN-LEGAL FEES-PRIV CONTRACTOR FEE,OTHER RECREATION SERVICES,GPC
WALSALL COUNCIL,HTTP://OPENDATACOMMUNITIES.ORG/ID/METROPOLITAN-DISTRICT-COUNCIL/WALSALL,30/09/2018,RESOURCES & TRANSFORMATION,JOHAL DAIRIES LTD,05/07/2018,H59620180708VDWFUSQQB-1,8.31,CA OLD HALL SPECIAL SCHOOL-MISC DAIRY PRODUCTS-PROVISIONS,OTHER NONDURABLE GOODS,GPC
WALSALL COUNCIL,HTTP://OPENDATACOMMUNITIES.ORG/ID/METROPOLITAN-DISTRICT-COUNCIL/WALSALL,30/09/2018,RESOURCES & TRANSFORMATION,JOHAL DAIRIES LTD,05/07/2018,H59620180708VIBTMTYDL-1,44.43,CA BUSILL JONES PRIMARY SCHOOL-MISC DAIRY PRODUCTS-PROVISIONS,OTHER NONDURABLE GOODS,GPC
WALSALL COUNCIL,HTTP://OPENDATACOMMUNITIES.ORG/ID/METROPOLITAN-DISTRICT-COUNCIL/WALSALL,30/09/2018,CHILDRENS SERVICES,BANNER GROUP LTD,05/07/2018,H59620180708VILLRTLKD-1,31.81,BIRCHILLS CHILDCARE SERVICES-HEALTH & SAFETY-MATERIALS,"OFFICE, SCHOOL SUPPLY, AND STATIONERY STORES",GPC
WALSALL COUNCIL,HTTP://OPENDATACOMMUNITIES.ORG/ID/METROPOLITAN-DISTRICT-COUNCIL/WALSALL,30/09/2018,CHILDRENS SERVICES,WALSALL COUNCIL,05/07/2018,H59620180708VQCQZOCSL-1,92.68,ST JOHNS C.E. PRIMARY SCHOOL-POLICE CHECKS-EMPLOYEES,GOVERNMENT SERVICES,GPC
WALSALL COUNCIL,HTTP://OPENDATACOMMUNITIES.ORG/ID/METROPOLITAN-DISTRICT-COUNCIL/WALSALL,30/09/2018,RESOURCES & TRANSFORMATION,JOHAL DAIRIES LTD,05/07/2018,H59620180708VSLIUGJNF-1,14.88,CA BUSILL JONES PRIMARY SCHOOL-MISC DAIRY PRODUCTS-PROVISIONS,OTHER NONDURABLE GOODS,GPC
WALSALL COUNCIL,HTTP://OPENDATACOMMUNITIES.ORG/ID/METROPOLITAN-DISTRICT-COUNCIL/WALSALL,30/09/2018,CHILDRENS SERVICES,REGISTRATION SERVICES,05/07/2018,H59620180708VXXEQCARR-1,26.00,GENERAL MANAGEMENT SUPPORT (IN-LEGAL FEES-PRIV CONTRACTOR FEE,OTHER RECREATION SERVICES,GPC
WALSALL COUNCIL,HTTP://OPENDATACOMMUNITIES.ORG/ID/METROPOLITAN-DISTRICT-COUNCIL/WALSALL,30/09/2018,RESOURCES & TRANSFORMATION,JOHAL DAIRIES LTD,05/07/2018,H59620180708WNXWPIEQP-1,5.16,CA WALSALL WOOD PRIMARY SCHOOL-MISC DAIRY PRODUCTS-PROVISIONS,OTHER NONDURABLE GOODS,GPC
WALSALL COUNCIL,HTTP://OPENDATACOMMUNITIES.ORG/ID/METROPOLITAN-DISTRICT-COUNCIL/WALSALL,30/09/2018,RESOURCES & TRANSFORMATION,JOHAL DAIRIES LTD,05/07/2018,H59620180708WOCPENDMY-1,21.87,CA RUSHALL JMI SCHOOL-MISC DAIRY PRODUCTS-PROVISIONS,OTHER NONDURABLE GOODS,GPC
WALSALL COUNCIL,HTTP://OPENDATACOMMUNITIES.ORG/ID/METROPOLITAN-DISTRICT-COUNCIL/WALSALL,30/09/2018,CHILDRENS SERVICES,TESCO STORES 3084,05/07/2018,H59620180708WQARXSQBD-1,0.50,ADOPTION TEAM-FOOD AND BEVERAGES-PROVISIONS,GROCERY STORES AND SUPERMARKETS,GPC
WALSALL COUNCIL,HTTP://OPENDATACOMMUNITIES.ORG/ID/METROPOLITAN-DISTRICT-COUNCIL/WALSALL,30/09/2018,ECONOMY & ENVIRONMENT,AMAZON UK MARKETPLACE,05/07/2018,H59620180708WVBMHNPBP-1,45.94,BLOXWICH LEISURE CENTRE-NEW-FURNITURE & EQUIPMENT,BOOK STORES,GPC
WALSALL COUNCIL,HTTP://OPENDATACOMMUNITIES.ORG/ID/METROPOLITAN-DISTRICT-COUNCIL/WALSALL,30/09/2018,ECONOMY & ENVIRONMENT,STATIONERYU,05/07/2018,H59620180708WWVUEKALH-1,31.05,FOREST ARTS CENTRE-STATIONERY & GENERAL SUPPLIES-,OTHER CHEMICALS AND ALLIED PRODUCTS,GPC
WALSALL COUNCIL,HTTP://OPENDATACOMMUNITIES.ORG/ID/METROPOLITAN-DISTRICT-COUNCIL/WALSALL,30/09/2018,RESOURCES & TRANSFORMATION,JOHAL DAIRIES LTD,05/07/2018,H59620180708XEUUMCFDL-1,10.92,CA BEACON PRIMARY SCHOOL-MISC DAIRY PRODUCTS-PROVISIONS,OTHER NONDURABLE GOODS,GPC
WALSALL COUNCIL,HTTP://OPENDATACOMMUNITIES.ORG/ID/METROPOLITAN-DISTRICT-COUNCIL/WALSALL,30/09/2018,RESOURCES & TRANSFORMATION,JOHAL DAIRIES LTD,05/07/2018,H59620180708XOQUTKINB-1,2.73,CA CROFT COMMUNITY PRIMARY SCH-MISC DAIRY PRODUCTS-PROVISIONS,OTHER NONDURABLE GOODS,GPC
WALSALL COUNCIL,HTTP://OPENDATACOMMUNITIES.ORG/ID/METROPOLITAN-DISTRICT-COUNCIL/WALSALL,30/09/2018,RESOURCES & TRANSFORMATION,EGGFREECAKE.CO.UK,05/07/2018,H59620180708XRJYYYQRD-1,60.00,LEARNING & MANAGEMENT DEVELOPM-BREAD-GENERAL-PROVISIONS,BAKERIES,GPC
WALSALL COUNCIL,HTTP://OPENDATACOMMUNITIES.ORG/ID/METROPOLITAN-DISTRICT-COUNCIL/WALSALL,30/09/2018,CHILDRENS SERVICES,JOHAL DAIRIES LTD,05/07/2018,H59620180708XSJLVVOGF-1,7.44,57 LICHFIELD ROAD-FOOD AND BEVERAGES-PROVISIONS,OTHER NONDURABLE GOODS,GPC
WALSALL COUNCIL,HTTP://OPENDATACOMMUNITIES.ORG/ID/METROPOLITAN-DISTRICT-COUNCIL/WALSALL,30/09/2018,RESOURCES & TRANSFORMATION,SS + JR JOHAL 31968,05/07/2018,H59620180708XXRPMJLVJ-1,15.60,TENANCY SERVICE-ELECTRICITY-ENERGY COSTS,GROCERY STORES AND SUPERMARKETS,GPC
WALSALL COUNCIL,HTTP://OPENDATACOMMUNITIES.ORG/ID/METROPOLITAN-DISTRICT-COUNCIL/WALSALL,30/09/2018,ECONOMY & ENVIRONMENT,BANNER GROUP LTD,05/07/2018,H59620180708YUPGHULGC-1,3.46,JOINT COMMITTEE & PROGRAMME MA-STATIONERY & GENERAL SUPPLIES-,"OFFICE, SCHOOL SUPPLY, AND STATIONERY STORES",GPC
WALSALL COUNCIL,HTTP://OPENDATACOMMUNITIES.ORG/ID/METROPOLITAN-DISTRICT-COUNCIL/WALSALL,30/09/2018,ECONOMY & ENVIRONMENT,TRAINLINE,05/07/2018,H59620180710LTAXCBGFH-1,231.90,CENTRAL SUPPORT SERVICES LEISU-OFFICER/STAFF-PUBLIC TRANSPORT,PASSENGER RAILWAYS,GPC
WALSALL COUNCIL,HTTP://OPENDATACOMMUNITIES.ORG/ID/METROPOLITAN-DISTRICT-COUNCIL/WALSALL,30/09/2018,RESOURCES & TRANSFORMATION,RYANAIR 22400000J1C93,05/07/2018,H59620180710LVDCJRPPD-1,449.46,WALSALL CRISIS SUPPORT SCHEME-OTHER-TRAVEL ALLOWANCES,RYANAIR,GPC
WALSALL COUNCIL,HTTP://OPENDATACOMMUNITIES.ORG/ID/METROPOLITAN-DISTRICT-COUNCIL/WALSALL,30/09/2018,CHILDRENS SERVICES,GRO HM PASSPORT OFFICE,05/07/2018,H59620180710PEBBSXYBM-1,-23.40,SAFEGUARDING & FAMILY SUPPORT-REGISTRAR OF BIRTHS/DEATHS/MAR,GOVERNMENT SERVICES,GPC
WALSALL COUNCIL,HTTP://OPENDATACOMMUNITIES.ORG/ID/METROPOLITAN-DISTRICT-COUNCIL/WALSALL,30/09/2018,RESOURCES & TRANSFORMATION,ARTHUR BRETT CATER,05/07/2018,H59620180717WXEOALCYF-1,4.74,CA BARCROFT D/C-FRUIT & VEGETABLES OTHER-PROVI,MISCELLANEOUS FOOD STORES & CONVENIENCE STORES,GPC
WALSALL COUNCIL,HTTP://OPENDATACOMMUNITIES.ORG/ID/METROPOLITAN-DISTRICT-COUNCIL/WALSALL,30/09/2018,ECONOMY & ENVIRONMENT,BANNER GROUP LTD,06/07/2018,H59620180710BBVESQMFH-1,87.17,RESOURCE MANAGEMENT-STATIONERY & GENERAL SUPPLIES-,"OFFICE, SCHOOL SUPPLY, AND STATIONERY STORES",GPC
WALSALL COUNCIL,HTTP://OPENDATACOMMUNITIES.ORG/ID/METROPOLITAN-DISTRICT-COUNCIL/WALSALL,30/09/2018,CHILDRENS SERVICES,ICELAND,06/07/2018,H59620180710BICIGMQQP-1,19.00,EDUCATIONAL VISITS / UNIFORM-GENERAL MATERIALS,GROCERY STORES AND SUPERMARKETS,GPC
WALSALL COUNCIL,HTTP://OPENDATACOMMUNITIES.ORG/ID/METROPOLITAN-DISTRICT-COUNCIL/WALSALL,30/09/2018,CHILDRENS SERVICES,AMAZON UK MARKETPLACE,06/07/2018,H59620180710BILTQFPUL-1,59.97,SAFEGUARDING & FAMILY SUPPORT-LIBRARY BOOKS,BOOK STORES,GPC
WALSALL COUNCIL,HTTP://OPENDATACOMMUNITIES.ORG/ID/METROPOLITAN-DISTRICT-COUNCIL/WALSALL,30/09/2018,RESOURCES & TRANSFORMATION,AMAZON SVCS EU-UK AMAZON.,06/07/2018,H59620180710BPQBGMTCB-1,69.78,LAW LIBRARY-STATIONERY & GENERAL SUPPLIES-,BOOK STORES,GPC
WALSALL COUNCIL,HTTP://OPENDATACOMMUNITIES.ORG/ID/METROPOLITAN-DISTRICT-COUNCIL/WALSALL,30/09/2018,ECONOMY & ENVIRONMENT,DUDDESTON STN SST,06/07/2018,H59620180710BUFRSIFNT-1,2.30,EMERGENCY PLANNING 2012/2013-OFFICER/STAFF-PUBLIC TRANSPORT,PASSENGER RAILWAYS,GPC
WALSALL COUNCIL,HTTP://OPENDATACOMMUNITIES.ORG/ID/METROPOLITAN-DISTRICT-COUNCIL/WALSALL,30/09/2018,ECONOMY & ENVIRONMENT,TESCO STORES 3351,06/07/2018,H59620180710CFTJFXOPF-1,14.00,FIT4WORK PROGRAMME-STATIONERY & GENERAL SUPPLIES-,GROCERY STORES AND SUPERMARKETS,GPC
WALSALL COUNCIL,HTTP://OPENDATACOMMUNITIES.ORG/ID/METROPOLITAN-DISTRICT-COUNCIL/WALSALL,30/09/2018,ECONOMY & ENVIRONMENT,WEST COAST TRAINS,06/07/2018,H59620180710COPBWWRXT-1,13.40,NAG - TEMPORARY EXHIBITIONS-OFFICER/STAFF-PUBLIC TRANSPORT,PASSENGER RAILWAYS,GPC
WALSALL COUNCIL,HTTP://OPENDATACOMMUNITIES.ORG/ID/METROPOLITAN-DISTRICT-COUNCIL/WALSALL,30/09/2018,RESOURCES & TRANSFORMATION,NOBISCO LIMITED,06/07/2018,H59620180710CPTDBIUXV-1,58.10,CA LINDENS PRIMARY SCHOOL-DISPOSABLES-PROVISIONS,OTHER INDUSTRIAL SUPPLIES,GPC
WALSALL COUNCIL,HTTP://OPENDATACOMMUNITIES.ORG/ID/METROPOLITAN-DISTRICT-COUNCIL/WALSALL,30/09/2018,CHILDRENS SERVICES,HOME BARGAINS,06/07/2018,H59620180710CSKUIUYXU-1,30.49,EDUCATIONAL VISITS / UNIFORM-GENERAL MATERIALS,HARDWARE STORES,GPC
WALSALL COUNCIL,HTTP://OPENDATACOMMUNITIES.ORG/ID/METROPOLITAN-DISTRICT-COUNCIL/WALSALL,30/09/2018,CHILDRENS SERVICES,HOME BARGAINS,06/07/2018,H59620180710CSKUIUYXU-2,5.45,EDUCATIONAL VISITS / UNIFORM-GENERAL MATERIALS,HARDWARE STORES,GPC
WALSALL COUNCIL,HTTP://OPENDATACOMMUNITIES.ORG/ID/METROPOLITAN-DISTRICT-COUNCIL/WALSALL,30/09/2018,RESOURCES & TRANSFORMATION,WWW.ARGOS.CO.UK,06/07/2018,H59620180710DGYMPAEHR-1,-299.99,CHARGING & PAYMENTS-FURNITURE & EQUIPMENT,DISCOUNT STORES,GPC
WALSALL COUNCIL,HTTP://OPENDATACOMMUNITIES.ORG/ID/METROPOLITAN-DISTRICT-COUNCIL/WALSALL,30/09/2018,CHILDRENS SERVICES,HTTP://WWW.FORWARDPRODUC,06/07/2018,H59620180710DRINZUUFB-1,23.09,ADMINISTRATIVE SUPPLIES-GENERAL MATERIALS,"STATIONERY, OFFICE SUPPLIES AND WRITING PAPER",GPC
WALSALL COUNCIL,HTTP://OPENDATACOMMUNITIES.ORG/ID/METROPOLITAN-DISTRICT-COUNCIL/WALSALL,30/09/2018,CHILDRENS SERVICES,THE BOOK PEOPLE,06/07/2018,H59620180710DRLNHEOOU-1,44.85,YEAR 1 / 2-GENERAL MATERIALS,BOOK STORES,GPC
WALSALL COUNCIL,HTTP://OPENDATACOMMUNITIES.ORG/ID/METROPOLITAN-DISTRICT-COUNCIL/WALSALL,30/09/2018,ECONOMY & ENVIRONMENT,B & Q 1276,06/07/2018,H59620180710EQWZUEBNL-1,55.13,DEPOT-GENERAL MATERIALS,LUMBER & BUILDING MATERIALS STORES,GPC
WALSALL COUNCIL,HTTP://OPENDATACOMMUNITIES.ORG/ID/METROPOLITAN-DISTRICT-COUNCIL/WALSALL,30/09/2018,CHILDRENS SERVICES,AMAZON UK MARKETPLACE,06/07/2018,H59620180710FDMRWHHXQ-1,7.71,ADMINISTRATIVE SUPPLIES-GENERAL MATERIALS,BOOK STORES,GPC
WALSALL COUNCIL,HTTP://OPENDATACOMMUNITIES.ORG/ID/METROPOLITAN-DISTRICT-COUNCIL/WALSALL,30/09/2018,CHILDRENS SERVICES,WALSALL COUNCIL,06/07/2018,H59620180710FDRHTTUMS-1,46.34,ST FRANCIS OF ASSISI CATHOLIC -MISC FEES AND EXPENSES,GOVERNMENT SERVICES,GPC
WALSALL COUNCIL,HTTP://OPENDATACOMMUNITIES.ORG/ID/METROPOLITAN-DISTRICT-COUNCIL/WALSALL,30/09/2018,ECONOMY & ENVIRONMENT,VIRGIN TRAINS,06/07/2018,H59620180710FJXVEXDXX-1,52.70,PUBLIC HEALTH BUSINESS SUPPORT-OFFICER/STAFF-PUBLIC TRANSPORT,PASSENGER RAILWAYS,GPC
WALSALL COUNCIL,HTTP://OPENDATACOMMUNITIES.ORG/ID/METROPOLITAN-DISTRICT-COUNCIL/WALSALL,30/09/2018,CHILDRENS SERVICES,AMAZON SVCS EU-UK AMAZON.,06/07/2018,H59620180710FOMSBVXDS-1,46.98,ADMINISTRATIVE SUPPLIES-NEW ITEMS OF FURNITURE,BOOK STORES,GPC
WALSALL COUNCIL,HTTP://OPENDATACOMMUNITIES.ORG/ID/METROPOLITAN-DISTRICT-COUNCIL/WALSALL,30/09/2018,CHILDRENS SERVICES,TRAVEL WEST MIDLAN,06/07/2018,H59620180710FYELNGUOP-1,61.50,SCHOOL IMPROVEMENT - VIRTUAL S-OFFICER/STAFF-PUBLIC TRANSPORT,BUS LINES,GPC
WALSALL COUNCIL,HTTP://OPENDATACOMMUNITIES.ORG/ID/METROPOLITAN-DISTRICT-COUNCIL/WALSALL,30/09/2018,RESOURCES & TRANSFORMATION,AMAZON SVCS EU-UK AMAZON.,06/07/2018,H59620180710GFKMMVRVO-1,15.60,LAW LIBRARY-STATIONERY & GENERAL SUPPLIES-,BOOK STORES,GPC
WALSALL COUNCIL,HTTP://OPENDATACOMMUNITIES.ORG/ID/METROPOLITAN-DISTRICT-COUNCIL/WALSALL,30/09/2018,RESOURCES & TRANSFORMATION,PREMIER INN44533745,06/07/2018,H59620180710HLNHKBFWH-1,411.00,BED & BREAKFAST PAYMENTS-BED & BREAKFAST PAYMENTS,PREMIER INN,GPC
WALSALL COUNCIL,HTTP://OPENDATACOMMUNITIES.ORG/ID/METROPOLITAN-DISTRICT-COUNCIL/WALSALL,30/09/2018,ECONOMY & ENVIRONMENT,BANNER GROUP LTD,06/07/2018,H59620180710HNCRNBGRB-1,11.55,RESOURCE MANAGEMENT-STATIONERY & GENERAL SUPPLIES-,"OFFICE, SCHOOL SUPPLY, AND STATIONERY STORES",GPC
WALSALL COUNCIL,HTTP://OPENDATACOMMUNITIES.ORG/ID/METROPOLITAN-DISTRICT-COUNCIL/WALSALL,30/09/2018,ECONOMY & ENVIRONMENT,ROYAL ACADEMY - BOX OFFI,06/07/2018,H59620180710IBCEPXURI-1,15.00,NEW ART GALLERY - ADMIN-OTHER EXPENSES-EXPENSES,ART DEALERS AND GALLERIES,GPC
WALSALL COUNCIL,HTTP://OPENDATACOMMUNITIES.ORG/ID/METROPOLITAN-DISTRICT-COUNCIL/WALSALL,30/09/2018,ECONOMY & ENVIRONMENT,WEST COAST TRAINS,06/07/2018,H59620180710ITLNZEFWM-1,12.00,CENTRAL SUPPORT SERVICES LEISU-OTHER-TRAVEL ALLOWANCES,AUTOMOBILE PARKING LOTS AND GARAGES,GPC
WALSALL COUNCIL,HTTP://OPENDATACOMMUNITIES.ORG/ID/METROPOLITAN-DISTRICT-COUNCIL/WALSALL,30/09/2018,CHILDRENS SERVICES,O2,06/07/2018,H59620180710JBTJKSNKU-1,18.72,ADMIN-TELEPHONES MOBILE/PAGERS-TELEP,TELECOMMUNICATION SERVICES,GPC
WALSALL COUNCIL,HTTP://OPENDATACOMMUNITIES.ORG/ID/METROPOLITAN-DISTRICT-COUNCIL/WALSALL,30/09/2018,RESOURCES & TRANSFORMATION,MATALAN,06/07/2018,H59620180710KQMQRHJNL-1,52.00,WALSALL CRISIS SUPPORT SCHEME-GENERAL PROVISIONS-PROVISIONS,MENS AND WOMENS CLOTHING STORES,GPC
WALSALL COUNCIL,HTTP://OPENDATACOMMUNITIES.ORG/ID/METROPOLITAN-DISTRICT-COUNCIL/WALSALL,30/09/2018,CHILDRENS SERVICES,AMAZON UK MARKETPLACE,06/07/2018,H59620180710LBIGTCKOS-1,6.98,ADMINISTRATIVE SUPPLIES-GENERAL MATERIALS,BOOK STORES,GPC
WALSALL COUNCIL,HTTP://OPENDATACOMMUNITIES.ORG/ID/METROPOLITAN-DISTRICT-COUNCIL/WALSALL,30/09/2018,ECONOMY & ENVIRONMENT,IKEA LIMITED,06/07/2018,H59620180710LLHVXFVUO-1,12.00,LEATHER MUSEUM-GENERAL MATERIALS,"EQUIPMENT, FURNITURE, AND HOME FURNISHINGS STORES ",GPC
WALSALL COUNCIL,HTTP://OPENDATACOMMUNITIES.ORG/ID/METROPOLITAN-DISTRICT-COUNCIL/WALSALL,30/09/2018,CHILDRENS SERVICES,W M MORRISONS.COM,06/07/2018,H59620180710LLJOCGQXE-1,26.94,BLUEBELLS-FOOD AND BEVERAGES-PROVISIONS,GROCERY STORES AND SUPERMARKETS,GPC
WALSALL COUNCIL,HTTP://OPENDATACOMMUNITIES.ORG/ID/METROPOLITAN-DISTRICT-COUNCIL/WALSALL,30/09/2018,CHILDRENS SERVICES,W M MORRISONS.COM,06/07/2018,H59620180710LLJOCGQXE-2,82.44,BLUEBELLS-FOOD AND BEVERAGES-PROVISIONS,GROCERY STORES AND SUPERMARKETS,GPC
WALSALL COUNCIL,HTTP://OPENDATACOMMUNITIES.ORG/ID/METROPOLITAN-DISTRICT-COUNCIL/WALSALL,30/09/2018,ECONOMY & ENVIRONMENT,PAYPAL *EVENTSINDUS,06/07/2018,H59620180710LLPTBIQXY-1,30.00,POLLUTION DIVISION-PROFESSIONAL FEES AND SERVICES,PROFESSIONAL SERVICES,GPC
WALSALL COUNCIL,HTTP://OPENDATACOMMUNITIES.ORG/ID/METROPOLITAN-DISTRICT-COUNCIL/WALSALL,30/09/2018,CHILDRENS SERVICES,PAYASUGYM COM,06/07/2018,H59620180710LQFOKQIDG-1,31.50,VIRTUAL SCHOOL - CENTRAL PUPIL-MISC FEES AND EXPENSES,"CLUBS COUNTRY CLUBS, MEMBERSHIP",GPC
WALSALL COUNCIL,HTTP://OPENDATACOMMUNITIES.ORG/ID/METROPOLITAN-DISTRICT-COUNCIL/WALSALL,30/09/2018,CHILDRENS SERVICES,AMAZON UK MARKETPLACE,06/07/2018,H59620180710LVMTRYDBY-1,12.40,PSHE / SEAL-GENERAL MATERIALS,BOOK STORES,GPC
WALSALL COUNCIL,HTTP://OPENDATACOMMUNITIES.ORG/ID/METROPOLITAN-DISTRICT-COUNCIL/WALSALL,30/09/2018,RESOURCES & TRANSFORMATION,CURRYS,06/07/2018,H59620180710MEILGGONF-1,99.99,TOWN HALL RESTAURANT BISTRO-FURNITURE & EQUIPMENT,ELECTRONIC SALES,GPC
WALSALL COUNCIL,HTTP://OPENDATACOMMUNITIES.ORG/ID/METROPOLITAN-DISTRICT-COUNCIL/WALSALL,30/09/2018,RESOURCES & TRANSFORMATION,SHORT/MED 2&3 BIRMINGH,06/07/2018,H59620180710MFJFRBHIK-1,10.20,ADVICE & GUIDANCE SERVICE-MISC FEES AND EXPENSES,AUTOMOBILE PARKING LOTS AND GARAGES,GPC
WALSALL COUNCIL,HTTP://OPENDATACOMMUNITIES.ORG/ID/METROPOLITAN-DISTRICT-COUNCIL/WALSALL,30/09/2018,ADULT SOCIAL CARE,TRAINLINE,06/07/2018,H59620180710MFNSEVINY-1,42.50,ASC PARTNERSHIPS-OFFICER/STAFF-PUBLIC TRANSPORT,PASSENGER RAILWAYS,GPC
WALSALL COUNCIL,HTTP://OPENDATACOMMUNITIES.ORG/ID/METROPOLITAN-DISTRICT-COUNCIL/WALSALL,30/09/2018,ECONOMY & ENVIRONMENT,MIDLANDNEWS.COM,06/07/2018,H59620180710MNFNHMHNS-1,131.40,DEVELOPMENT MANAGEMENT-PERIODICALS/MAGAZINES/NEWSPAPE,NEWS DEALERS AND NEWSSTANDS,GPC
WALSALL COUNCIL,HTTP://OPENDATACOMMUNITIES.ORG/ID/METROPOLITAN-DISTRICT-COUNCIL/WALSALL,30/09/2018,ECONOMY & ENVIRONMENT,MIDLANDNEWS.COM,06/07/2018,H59620180710MNFNHMHNS-2,-61.20,DEVELOPMENT MANAGEMENT-PERIODICALS/MAGAZINES/NEWSPAPE,NEWS DEALERS AND NEWSSTANDS,GPC
WALSALL COUNCIL,HTTP://OPENDATACOMMUNITIES.ORG/ID/METROPOLITAN-DISTRICT-COUNCIL/WALSALL,30/09/2018,ECONOMY & ENVIRONMENT,MIDLANDNEWS.COM,06/07/2018,H59620180710MNFNHMHNS-3,61.20,DEVELOPMENT MANAGEMENT-PERIODICALS/MAGAZINES/NEWSPAPE,NEWS DEALERS AND NEWSSTANDS,GPC
WALSALL COUNCIL,HTTP://OPENDATACOMMUNITIES.ORG/ID/METROPOLITAN-DISTRICT-COUNCIL/WALSALL,30/09/2018,ECONOMY & ENVIRONMENT,BRITISH MUSEUM,06/07/2018,H59620180710NJXGSVYBN-1,4.00,EXHIBITIONS - SPECIAL PROJECTS-GENERAL MATERIALS,BOOK STORES,GPC
WALSALL COUNCIL,HTTP://OPENDATACOMMUNITIES.ORG/ID/METROPOLITAN-DISTRICT-COUNCIL/WALSALL,30/09/2018,CHILDRENS SERVICES,TESCO STORES 6161,06/07/2018,H59620180710PJJIQOQNM-1,8.04,ELMWOOD SCHOOL-BREAD-GENERAL-PROVISIONS,GROCERY STORES AND SUPERMARKETS,GPC
WALSALL COUNCIL,HTTP://OPENDATACOMMUNITIES.ORG/ID/METROPOLITAN-DISTRICT-COUNCIL/WALSALL,30/09/2018,ECONOMY & ENVIRONMENT,AMAZON SVCS EU-UK AMAZON.,06/07/2018,H59620180710QOWHFASPZ-1,51.38,NEW ART GALLERY - ADMIN-NEW-FURNITURE & EQUIPMENT,BOOK STORES,GPC
WALSALL COUNCIL,HTTP://OPENDATACOMMUNITIES.ORG/ID/METROPOLITAN-DISTRICT-COUNCIL/WALSALL,30/09/2018,CHILDRENS SERVICES,WALSALL COUNCIL,06/07/2018,H59620180710QQKBIOEUR-1,46.34,ST FRANCIS OF ASSISI CATHOLIC -MISC FEES AND EXPENSES,GOVERNMENT SERVICES,GPC
WALSALL COUNCIL,HTTP://OPENDATACOMMUNITIES.ORG/ID/METROPOLITAN-DISTRICT-COUNCIL/WALSALL,30/09/2018,CHILDRENS SERVICES - SCHOOLS,WWW.COTTONPRINT.CO.UK,06/07/2018,H59620180710QUQCJZSNN-1,14.94,E19-GENERAL MATERIALS,MISCELLANEOUS PUBLISHING AND PRINTING,GPC
WALSALL COUNCIL,HTTP://OPENDATACOMMUNITIES.ORG/ID/METROPOLITAN-DISTRICT-COUNCIL/WALSALL,30/09/2018,CHILDRENS SERVICES,TESCO STORES 6161,06/07/2018,H59620180710RCTKQBNDR-1,110.77,"43A HILTON ROAD, WILLENHALL-FOOD AND BEVERAGES-PROVISIONS",GROCERY STORES AND SUPERMARKETS,GPC
WALSALL COUNCIL,HTTP://OPENDATACOMMUNITIES.ORG/ID/METROPOLITAN-DISTRICT-COUNCIL/WALSALL,30/09/2018,RESOURCES & TRANSFORMATION,AMAZON UK MARKETPLACE,06/07/2018,H59620180710RIYNFSXWL-1,16.90,LAW LIBRARY-STATIONERY & GENERAL SUPPLIES-,BOOK STORES,GPC
WALSALL COUNCIL,HTTP://OPENDATACOMMUNITIES.ORG/ID/METROPOLITAN-DISTRICT-COUNCIL/WALSALL,30/09/2018,ECONOMY & ENVIRONMENT,VIRGIN TRAINS,06/07/2018,H59620180710RVPHTTUGX-1,135.00,FOREST ARTS CENTRE-OFFICER/STAFF-PUBLIC TRANSPORT,PASSENGER RAILWAYS,GPC
WALSALL COUNCIL,HTTP://OPENDATACOMMUNITIES.ORG/ID/METROPOLITAN-DISTRICT-COUNCIL/WALSALL,30/09/2018,CHILDRENS SERVICES,CURRYS,06/07/2018,H59620180710SDHTBMKHN-1,40.97,BLUEBELLS-NEW-FURNITURE & EQUIPMENT,ELECTRONIC SALES,GPC
WALSALL COUNCIL,HTTP://OPENDATACOMMUNITIES.ORG/ID/METROPOLITAN-DISTRICT-COUNCIL/WALSALL,30/09/2018,ECONOMY & ENVIRONMENT,CARTRIDGE SAVE,06/07/2018,H59620180710TAUIBVLRV-1,45.42,FLEET-GENERAL MATERIALS,"STATIONERY, OFFICE SUPPLIES AND WRITING PAPER",GPC
WALSALL COUNCIL,HTTP://OPENDATACOMMUNITIES.ORG/ID/METROPOLITAN-DISTRICT-COUNCIL/WALSALL,30/09/2018,RESOURCES & TRANSFORMATION,ASDA,06/07/2018,H59620180710TKIXLXDIA-1,51.34,WALSALL CRISIS SUPPORT SCHEME-FURNITURE & EQUIPMENT,GROCERY STORES AND SUPERMARKETS,GPC
WALSALL COUNCIL,HTTP://OPENDATACOMMUNITIES.ORG/ID/METROPOLITAN-DISTRICT-COUNCIL/WALSALL,30/09/2018,ECONOMY & ENVIRONMENT,MIDLANDNEWS.COM,06/07/2018,H59620180710TQJYFWBPK-1,-61.20,DEVELOPMENT MANAGEMENT-PERIODICALS/MAGAZINES/NEWSPAPE,NEWS DEALERS AND NEWSSTANDS,GPC
WALSALL COUNCIL,HTTP://OPENDATACOMMUNITIES.ORG/ID/METROPOLITAN-DISTRICT-COUNCIL/WALSALL,30/09/2018,CHILDRENS SERVICES,TESCO STORES 6161,06/07/2018,H59620180710TRFOUBNTH-1,23.80,FOOD TECHNOLOGY-GENERAL MATERIALS,GROCERY STORES AND SUPERMARKETS,GPC
WALSALL COUNCIL,HTTP://OPENDATACOMMUNITIES.ORG/ID/METROPOLITAN-DISTRICT-COUNCIL/WALSALL,30/09/2018,CHILDRENS SERVICES,WWW.TROPHYSTORE.CO.UK,06/07/2018,H59620180710TTDHSFMSO-1,101.39,CONTINGENCY-GENERAL MATERIALS,"CARD, GIFT, NOVELTY, AND SOUVENIR SHOPS",GPC
WALSALL COUNCIL,HTTP://OPENDATACOMMUNITIES.ORG/ID/METROPOLITAN-DISTRICT-COUNCIL/WALSALL,30/09/2018,CHILDRENS SERVICES,AMAZON UK RETAIL,06/07/2018,H59620180710TWRGJSBDI-1,120.00,PASTROL (REWARDS & PRIZES)-GENERAL MATERIALS,OTHER DIRECT MARKETING-OTHER DIRECT MARKETERS,GPC
WALSALL COUNCIL,HTTP://OPENDATACOMMUNITIES.ORG/ID/METROPOLITAN-DISTRICT-COUNCIL/WALSALL,30/09/2018,ECONOMY & ENVIRONMENT,BRITISH MUSEUM,06/07/2018,H59620180710UFWONPGOH-1,26.25,GALLERY LIBRARY-LIBRARY BOOKS,BOOK STORES,GPC
WALSALL COUNCIL,HTTP://OPENDATACOMMUNITIES.ORG/ID/METROPOLITAN-DISTRICT-COUNCIL/WALSALL,30/09/2018,CHILDRENS SERVICES - SCHOOLS,WWW.DEFIBSHOP.CO.UK,06/07/2018,H59620180710UKJZHFXGV-1,144.00,ADMINISTRATIVE SUPPLIES-MEDICAL REQUISITES-MATERIALS,"SCHOOLS, TRADE AND VOCATIONAL",GPC
WALSALL COUNCIL,HTTP://OPENDATACOMMUNITIES.ORG/ID/METROPOLITAN-DISTRICT-COUNCIL/WALSALL,30/09/2018,ECONOMY & ENVIRONMENT,L & S ENGINEERS LTD,06/07/2018,H59620180710XIIWVGZPK-1,42.06,INFRASTRUCTURE MAINTENANCE-GENERAL MATERIALS,HARDWARE STORES,GPC
WALSALL COUNCIL,HTTP://OPENDATACOMMUNITIES.ORG/ID/METROPOLITAN-DISTRICT-COUNCIL/WALSALL,30/09/2018,RESOURCES & TRANSFORMATION,SAINSBURYS S/MKT,06/07/2018,H59620180710XOBEPFHFF-1,15.50,TENANCY SERVICE-FOOD AND BEVERAGES-PROVISIONS,GROCERY STORES AND SUPERMARKETS,GPC
WALSALL COUNCIL,HTTP://OPENDATACOMMUNITIES.ORG/ID/METROPOLITAN-DISTRICT-COUNCIL/WALSALL,30/09/2018,RESOURCES & TRANSFORMATION,HOTEL IBIS,06/07/2018,H59620180710XRKWGUBNM-1,141.20,BED & BREAKFAST PAYMENTS-BED & BREAKFAST PAYMENTS,HOTEL IBIS,GPC
WALSALL COUNCIL,HTTP://OPENDATACOMMUNITIES.ORG/ID/METROPOLITAN-DISTRICT-COUNCIL/WALSALL,30/09/2018,CHILDRENS SERVICES,BANNER GROUP LTD,06/07/2018,H59620180710XYTGPTSUC-1,93.93,SAFEGUARDING & FAMILY SUPPORT-STATIONERY & GENERAL SUPPLIES-,"OFFICE, SCHOOL SUPPLY, AND STATIONERY STORES",GPC
WALSALL COUNCIL,HTTP://OPENDATACOMMUNITIES.ORG/ID/METROPOLITAN-DISTRICT-COUNCIL/WALSALL,30/09/2018,CHILDRENS SERVICES,WWW.SCHOLASTIC.CO.UK,06/07/2018,H59620180710YGEWXUGUY-1,34.99,EARLY YEARS-LIBRARY BOOKS,"BOOKS, PERIODICALS AND NEWSPAPERS",GPC
WALSALL COUNCIL,HTTP://OPENDATACOMMUNITIES.ORG/ID/METROPOLITAN-DISTRICT-COUNCIL/WALSALL,30/09/2018,RESOURCES & TRANSFORMATION,RYANAIR 22400000HU8L6,06/07/2018,H59620180711XYHNRAEIF-1,469.45,ADVICE & GUIDANCE SERVICE-MISC FEES AND EXPENSES,RYANAIR,GPC
WALSALL COUNCIL,HTTP://OPENDATACOMMUNITIES.ORG/ID/METROPOLITAN-DISTRICT-COUNCIL/WALSALL,30/09/2018,RESOURCES & TRANSFORMATION,ARTHUR BRETT CATER,06/07/2018,H59620180717BRRAIMDYY-1,48.98,CA RUSHALL JMI SCHOOL-FRUIT & VEGETABLES OTHER-PROVI,MISCELLANEOUS FOOD STORES & CONVENIENCE STORES,GPC
WALSALL COUNCIL,HTTP://OPENDATACOMMUNITIES.ORG/ID/METROPOLITAN-DISTRICT-COUNCIL/WALSALL,30/09/2018,RESOURCES & TRANSFORMATION,ARTHUR BRETT CATER,06/07/2018,H59620180717GAGUMGBAQ-1,49.63,CA BUSILL JONES PRIMARY SCHOOL-FRUIT & VEGETABLES OTHER-PROVI,MISCELLANEOUS FOOD STORES & CONVENIENCE STORES,GPC
WALSALL COUNCIL,HTTP://OPENDATACOMMUNITIES.ORG/ID/METROPOLITAN-DISTRICT-COUNCIL/WALSALL,30/09/2018,RESOURCES & TRANSFORMATION,ARTHUR BRETT CATER,06/07/2018,H59620180717GGWPRISKS-1,41.62,CA ST MICHAELS C.E. PRIMARY SC-FRUIT & VEGETABLES OTHER-PROVI,MISCELLANEOUS FOOD STORES & CONVENIENCE STORES,GPC
WALSALL COUNCIL,HTTP://OPENDATACOMMUNITIES.ORG/ID/METROPOLITAN-DISTRICT-COUNCIL/WALSALL,30/09/2018,RESOURCES & TRANSFORMATION,ARTHUR BRETT CATER,06/07/2018,H59620180717IYVUNGJRW-1,6.63,CA JANE LANE SPECIAL SCHOOL-FRUIT & VEGETABLES OTHER-PROVI,MISCELLANEOUS FOOD STORES & CONVENIENCE STORES,GPC
WALSALL COUNCIL,HTTP://OPENDATACOMMUNITIES.ORG/ID/METROPOLITAN-DISTRICT-COUNCIL/WALSALL,30/09/2018,RESOURCES & TRANSFORMATION,ARTHUR BRETT CATER,06/07/2018,H59620180717MGBSYUQKR-1,44.51,CA CASTLEFORT JMI SCHOOL-FRUIT & VEGETABLES OTHER-PROVI,MISCELLANEOUS FOOD STORES & CONVENIENCE STORES,GPC
WALSALL COUNCIL,HTTP://OPENDATACOMMUNITIES.ORG/ID/METROPOLITAN-DISTRICT-COUNCIL/WALSALL,30/09/2018,RESOURCES & TRANSFORMATION,ARTHUR BRETT CATER,06/07/2018,H59620180717SERNQISNS-1,13.50,CA RUSHALL JMI SCHOOL-FRUIT & VEGETABLES OTHER-PROVI,MISCELLANEOUS FOOD STORES & CONVENIENCE STORES,GPC
WALSALL COUNCIL,HTTP://OPENDATACOMMUNITIES.ORG/ID/METROPOLITAN-DISTRICT-COUNCIL/WALSALL,30/09/2018,RESOURCES & TRANSFORMATION,ARTHUR BRETT CATER,06/07/2018,H59620180717TPGBVSRDQ-1,89.47,CA LEIGHSWOOD PRIMARY SCHOOL-FRUIT & VEGETABLES OTHER-PROVI,MISCELLANEOUS FOOD STORES & CONVENIENCE STORES,GPC
WALSALL COUNCIL,HTTP://OPENDATACOMMUNITIES.ORG/ID/METROPOLITAN-DISTRICT-COUNCIL/WALSALL,30/09/2018,RESOURCES & TRANSFORMATION,ARTHUR BRETT CATER,06/07/2018,H59620180717XKONBBUEJ-1,167.63,CA COOPER JORDAN CE PRIMARY SC-FRUIT & VEGETABLES OTHER-PROVI,MISCELLANEOUS FOOD STORES & CONVENIENCE STORES,GPC
WALSALL COUNCIL,HTTP://OPENDATACOMMUNITIES.ORG/ID/METROPOLITAN-DISTRICT-COUNCIL/WALSALL,30/09/2018,CHILDRENS SERVICES,ARGOS DIRECT,07/07/2018,H59620180710AGFLHASNT-1,15.00,REDRUTH ROAD-RESIDENTS PERSONAL EXPENSES-AL,DISCOUNT STORES,GPC
WALSALL COUNCIL,HTTP://OPENDATACOMMUNITIES.ORG/ID/METROPOLITAN-DISTRICT-COUNCIL/WALSALL,30/09/2018,ECONOMY & ENVIRONMENT,TRAINLINE,07/07/2018,H59620180710AIYDYQXKF-1,67.10,NEW ART GALLERY - ADMIN-OFFICER/STAFF-PUBLIC TRANSPORT,PASSENGER RAILWAYS,GPC
WALSALL COUNCIL,HTTP://OPENDATACOMMUNITIES.ORG/ID/METROPOLITAN-DISTRICT-COUNCIL/WALSALL,30/09/2018,CHILDRENS SERVICES,PRIMARK,07/07/2018,H59620180710FENNWSONB-1,133.00,"43A HILTON ROAD, WILLENHALL-RESIDENTS PERSONAL EXPENSES-AL",CLOTHING STORES,GPC
WALSALL COUNCIL,HTTP://OPENDATACOMMUNITIES.ORG/ID/METROPOLITAN-DISTRICT-COUNCIL/WALSALL,30/09/2018,CHILDRENS SERVICES,B&M RETAIL LTD,07/07/2018,H59620180710GCVEWXSZK-1,17.88,ELMWOOD SCHOOL-BREAD-GENERAL-PROVISIONS,DISCOUNT STORES,GPC
WALSALL COUNCIL,HTTP://OPENDATACOMMUNITIES.ORG/ID/METROPOLITAN-DISTRICT-COUNCIL/WALSALL,30/09/2018,CHILDRENS SERVICES,FARMFOODS- KINGSTA,07/07/2018,H59620180710GOVWHLTAH-1,11.99,REDRUTH ROAD-FOOD AND BEVERAGES-PROVISIONS,GROCERY STORES AND SUPERMARKETS,GPC
WALSALL COUNCIL,HTTP://OPENDATACOMMUNITIES.ORG/ID/METROPOLITAN-DISTRICT-COUNCIL/WALSALL,30/09/2018,CHILDRENS SERVICES,W M MORRISONS.COM,07/07/2018,H59620180710HHABOOMBJ-1,-2.00,BLUEBELLS-FOOD AND BEVERAGES-PROVISIONS,GROCERY STORES AND SUPERMARKETS,GPC
WALSALL COUNCIL,HTTP://OPENDATACOMMUNITIES.ORG/ID/METROPOLITAN-DISTRICT-COUNCIL/WALSALL,30/09/2018,ECONOMY & ENVIRONMENT,ANIMATIONSU,07/07/2018,H59620180710KASOLMIIB-1,79.99,NAG - TEMPORARY EXHIBITIONS-VISUAL ARTS,"THEATRICAL PRODUCERS, TIC",GPC
WALSALL COUNCIL,HTTP://OPENDATACOMMUNITIES.ORG/ID/METROPOLITAN-DISTRICT-COUNCIL/WALSALL,30/09/2018,CHILDRENS SERVICES,VIRGIN MEDIA PYMTS,07/07/2018,H59620180710LKHTSYHMZ-1,93.36,57 LICHFIELD ROAD-RESIDENTS PERSONAL EXPENSES-AL,TELECOMMUNICATION SERVICES,GPC
WALSALL COUNCIL,HTTP://OPENDATACOMMUNITIES.ORG/ID/METROPOLITAN-DISTRICT-COUNCIL/WALSALL,30/09/2018,CHILDRENS SERVICES,PRIMARK,07/07/2018,H59620180710LPWFFVOGX-1,4.50,"43A HILTON ROAD, WILLENHALL-RESIDENTS PERSONAL EXPENSES-AL",CLOTHING STORES,GPC
WALSALL COUNCIL,HTTP://OPENDATACOMMUNITIES.ORG/ID/METROPOLITAN-DISTRICT-COUNCIL/WALSALL,30/09/2018,ECONOMY & ENVIRONMENT,TRAINLINE,07/07/2018,H59620180710LSYCEJMWD-1,22.85,NEW ART GALLERY - ADMIN-OFFICER/STAFF-PUBLIC TRANSPORT,PASSENGER RAILWAYS,GPC
WALSALL COUNCIL,HTTP://OPENDATACOMMUNITIES.ORG/ID/METROPOLITAN-DISTRICT-COUNCIL/WALSALL,30/09/2018,CHILDRENS SERVICES,WWW.GROUPON.CO.UK,07/07/2018,H59620180710MECDRXHWW-1,80.00,57 LICHFIELD ROAD-RESIDENTS PERSONAL EXPENSES-AL,"SHOPPING CLUBS, SERVICES",GPC
WALSALL COUNCIL,HTTP://OPENDATACOMMUNITIES.ORG/ID/METROPOLITAN-DISTRICT-COUNCIL/WALSALL,30/09/2018,CHILDRENS SERVICES,PRIMARK,07/07/2018,H59620180710MMZVTLSVO-1,50.00,"43A HILTON ROAD, WILLENHALL-RESIDENTS PERSONAL EXPENSES-AL",CLOTHING STORES,GPC
WALSALL COUNCIL,HTTP://OPENDATACOMMUNITIES.ORG/ID/METROPOLITAN-DISTRICT-COUNCIL/WALSALL,30/09/2018,CHILDRENS SERVICES,WILKO RETAIL LIMIT,07/07/2018,H59620180710NSERLSMVQ-1,21.80,"43A HILTON ROAD, WILLENHALL-RESIDENTS PERSONAL EXPENSES-AL",HOUSEHOLD APPLIANCE STORES,GPC
WALSALL COUNCIL,HTTP://OPENDATACOMMUNITIES.ORG/ID/METROPOLITAN-DISTRICT-COUNCIL/WALSALL,30/09/2018,CHILDRENS SERVICES,WWW.GROUPON.CO.UK,07/07/2018,H59620180710PGDDGYHJP-1,33.00,57 LICHFIELD ROAD-RESIDENTS PERSONAL EXPENSES-AL,"SHOPPING CLUBS, SERVICES",GPC
WALSALL COUNCIL,HTTP://OPENDATACOMMUNITIES.ORG/ID/METROPOLITAN-DISTRICT-COUNCIL/WALSALL,30/09/2018,CHILDRENS SERVICES,WWW.SOUTHALLTRAVEL.CO.UK,07/07/2018,H59620180710QWFMPRLIT-1,3138.28,TRANSITION AND LEAVING CARE PL-OTHER-TRAVEL ALLOWANCES,TRAVEL AGENCIES AND TOUR OPERATORS,GPC
WALSALL COUNCIL,HTTP://OPENDATACOMMUNITIES.ORG/ID/METROPOLITAN-DISTRICT-COUNCIL/WALSALL,30/09/2018,CHILDRENS SERVICES,AMAZON UK MARKETPLACE,07/07/2018,H59620180710RXAOEWEAL-1,32.94,CHILDRENS ADMIN-LIBRARY BOOKS,BOOK STORES,GPC
WALSALL COUNCIL,HTTP://OPENDATACOMMUNITIES.ORG/ID/METROPOLITAN-DISTRICT-COUNCIL/WALSALL,30/09/2018,CHILDRENS SERVICES,WWW.ARGOS.CO.UK,07/07/2018,H59620180710SEOLTRHLQ-1,33.94,REDRUTH ROAD-RESIDENTS PERSONAL EXPENSES-AL,DISCOUNT STORES,GPC
WALSALL COUNCIL,HTTP://OPENDATACOMMUNITIES.ORG/ID/METROPOLITAN-DISTRICT-COUNCIL/WALSALL,30/09/2018,CHILDRENS SERVICES,AMAZON UK MARKETPLACE,07/07/2018,H59620180710SLDHREFQN-1,14.44,SAFEGUARDING & FAMILY SUPPORT-LIBRARY BOOKS,BOOK STORES,GPC
WALSALL COUNCIL,HTTP://OPENDATACOMMUNITIES.ORG/ID/METROPOLITAN-DISTRICT-COUNCIL/WALSALL,30/09/2018,CHILDRENS SERVICES,FARMFOODS- KINGSTA,07/07/2018,H59620180710TSFQALJHD-1,40.00,REDRUTH ROAD-EQUIP NEW-CLEANING,GROCERY STORES AND SUPERMARKETS,GPC
WALSALL COUNCIL,HTTP://OPENDATACOMMUNITIES.ORG/ID/METROPOLITAN-DISTRICT-COUNCIL/WALSALL,30/09/2018,CHILDRENS SERVICES,HOTELS.COM149756942278,07/07/2018,H59620180710TYHQQEIIH-1,460.69,TRANSITION AND LEAVING CARE PL-OTHER-TRAVEL ALLOWANCES,TRAVEL AGENCIES AND TOUR OPERATORS,GPC
WALSALL COUNCIL,HTTP://OPENDATACOMMUNITIES.ORG/ID/METROPOLITAN-DISTRICT-COUNCIL/WALSALL,30/09/2018,CHILDRENS SERVICES,ESCAPE LIVE LTD,07/07/2018,H59620180710WAOGUDMTT-1,80.00,57 LICHFIELD ROAD-RESIDENTS PERSONAL EXPENSES-AL,"GAME, TOY, AND HOBBY SHOPS",GPC
WALSALL COUNCIL,HTTP://OPENDATACOMMUNITIES.ORG/ID/METROPOLITAN-DISTRICT-COUNCIL/WALSALL,30/09/2018,CHILDRENS SERVICES,POUNDLAND LTD 1463,07/07/2018,H59620180710WXVPQHIXG-1,7.00,"43A HILTON ROAD, WILLENHALL-RESIDENTS PERSONAL EXPENSES-AL",DISCOUNT STORES,GPC
WALSALL COUNCIL,HTTP://OPENDATACOMMUNITIES.ORG/ID/METROPOLITAN-DISTRICT-COUNCIL/WALSALL,30/09/2018,CHILDRENS SERVICES,TESCO STORES 6161,07/07/2018,H59620180710XARSNFROG-1,3.59,57 LICHFIELD ROAD-FOOD AND BEVERAGES-PROVISIONS,GROCERY STORES AND SUPERMARKETS,GPC
WALSALL COUNCIL,HTTP://OPENDATACOMMUNITIES.ORG/ID/METROPOLITAN-DISTRICT-COUNCIL/WALSALL,30/09/2018,CHILDRENS SERVICES,TESCO STORES 6161,07/07/2018,H59620180710XARSNFROG-2,16.10,57 LICHFIELD ROAD-FOOD AND BEVERAGES-PROVISIONS,GROCERY STORES AND SUPERMARKETS,GPC
WALSALL COUNCIL,HTTP://OPENDATACOMMUNITIES.ORG/ID/METROPOLITAN-DISTRICT-COUNCIL/WALSALL,30/09/2018,CHILDRENS SERVICES,BROADWAY,08/07/2018,H59620180710CFTFXFSYJ-1,46.90,"43A HILTON ROAD, WILLENHALL-RESIDENTS PERSONAL EXPENSES-AL","BARS, COCKTAIL LOUNGES, DISCOTHEQUES, NIGHTCLUBS",GPC
WALSALL COUNCIL,HTTP://OPENDATACOMMUNITIES.ORG/ID/METROPOLITAN-DISTRICT-COUNCIL/WALSALL,30/09/2018,ECONOMY & ENVIRONMENT,AMAZON UK MARKETPLACE,08/07/2018,H59620180710ESQLKMNTO-1,37.98,PUBLIC HEALTH BUSINESS SUPPORT-COMPUTER EQUIPMENT AND SUPPLIE,BOOK STORES,GPC
WALSALL COUNCIL,HTTP://OPENDATACOMMUNITIES.ORG/ID/METROPOLITAN-DISTRICT-COUNCIL/WALSALL,30/09/2018,CHILDRENS SERVICES,SAINSBURYS S/MKT,08/07/2018,H59620180710FRQZVOWIO-1,3.30,PELSALL VILLAGE SCHOOL-OTHER-OP MTCE,GROCERY STORES AND SUPERMARKETS,GPC
WALSALL COUNCIL,HTTP://OPENDATACOMMUNITIES.ORG/ID/METROPOLITAN-DISTRICT-COUNCIL/WALSALL,30/09/2018,CHILDRENS SERVICES,AMAZON UK RETAIL,08/07/2018,H59620180710HMRLAIQTI-1,17.08,ADMINISTRATIVE SUPPLIES-GENERAL MATERIALS,OTHER DIRECT MARKETING-OTHER DIRECT MARKETERS,GPC
WALSALL COUNCIL,HTTP://OPENDATACOMMUNITIES.ORG/ID/METROPOLITAN-DISTRICT-COUNCIL/WALSALL,30/09/2018,ECONOMY & ENVIRONMENT,FACEBK V3NAAGJQH2,08/07/2018,H59620180710NYLWLEVJE-1,200.00,MARKETING AND PROMOTION-PUBLICITY & ADVERTISING (NOT S,ADVERTISING SERVICES,GPC
WALSALL COUNCIL,HTTP://OPENDATACOMMUNITIES.ORG/ID/METROPOLITAN-DISTRICT-COUNCIL/WALSALL,30/09/2018,CHILDRENS SERVICES,AMAZON UK RETAIL,08/07/2018,H59620180710PEBGETDDN-1,49.97,CONTINGENCY-NEW ITEMS OF FURNITURE,OTHER DIRECT MARKETING-OTHER DIRECT MARKETERS,GPC
WALSALL COUNCIL,HTTP://OPENDATACOMMUNITIES.ORG/ID/METROPOLITAN-DISTRICT-COUNCIL/WALSALL,30/09/2018,CHILDRENS SERVICES,AMAZON EU AMAZON.CO.UK,08/07/2018,H59620180710QICVMAQNP-1,49.97,CONTINGENCY-NEW ITEMS OF FURNITURE,MISCELLANEOUS AND SPECIALTY RETAIL STORES,GPC
WALSALL COUNCIL,HTTP://OPENDATACOMMUNITIES.ORG/ID/METROPOLITAN-DISTRICT-COUNCIL/WALSALL,30/09/2018,CHILDRENS SERVICES,AMAZON EU AMAZON.CO.UK,08/07/2018,H59620180710SMBOBXQIJ-1,49.97,CONTINGENCY-NEW ITEMS OF FURNITURE,MISCELLANEOUS AND SPECIALTY RETAIL STORES,GPC
WALSALL COUNCIL,HTTP://OPENDATACOMMUNITIES.ORG/ID/METROPOLITAN-DISTRICT-COUNCIL/WALSALL,30/09/2018,CHILDRENS SERVICES,ALDI 83 772,08/07/2018,H59620180710VFTIPGLGF-1,41.26,SPINDLETREE-FOOD AND BEVERAGES-PROVISIONS,GROCERY STORES AND SUPERMARKETS,GPC
WALSALL COUNCIL,HTTP://OPENDATACOMMUNITIES.ORG/ID/METROPOLITAN-DISTRICT-COUNCIL/WALSALL,30/09/2018,CHILDRENS SERVICES,ALDI 83 772,08/07/2018,H59620180710VFTIPGLGF-2,8.86,SPINDLETREE-FOOD AND BEVERAGES-PROVISIONS,GROCERY STORES AND SUPERMARKETS,GPC
WALSALL COUNCIL,HTTP://OPENDATACOMMUNITIES.ORG/ID/METROPOLITAN-DISTRICT-COUNCIL/WALSALL,30/09/2018,CHILDRENS SERVICES - SCHOOLS,AMAZON UK MARKETPLACE,08/07/2018,H59620180710WQJDXDUQJ-1,17.98,E19-GENERAL MATERIALS,BOOK STORES,GPC
WALSALL COUNCIL,HTTP://OPENDATACOMMUNITIES.ORG/ID/METROPOLITAN-DISTRICT-COUNCIL/WALSALL,30/09/2018,CHILDRENS SERVICES,AMAZON SVCS EU-UK AMAZON.,08/07/2018,H59620180711GNCYLLXQR-1,14.44,SPINDLETREE-RESIDENTS PERSONAL EXPENSES-AL,BOOK STORES,GPC
WALSALL COUNCIL,HTTP://OPENDATACOMMUNITIES.ORG/ID/METROPOLITAN-DISTRICT-COUNCIL/WALSALL,30/09/2018,ECONOMY & ENVIRONMENT,TRAINLINE,08/07/2018,H59620180711NRGYHWJXB-1,25.15,CENTRAL SUPPORT SERVICES LEISU-OFFICER/STAFF-PUBLIC TRANSPORT,PASSENGER RAILWAYS,GPC
WALSALL COUNCIL,HTTP://OPENDATACOMMUNITIES.ORG/ID/METROPOLITAN-DISTRICT-COUNCIL/WALSALL,30/09/2018,ECONOMY & ENVIRONMENT,TRAINLINE,08/07/2018,H59620180711YWKRQIMUH-1,50.80,CENTRAL SUPPORT SERVICES LEISU-OFFICER/STAFF-PUBLIC TRANSPORT,PASSENGER RAILWAYS,GPC
WALSALL COUNCIL,HTTP://OPENDATACOMMUNITIES.ORG/ID/METROPOLITAN-DISTRICT-COUNCIL/WALSALL,30/09/2018,CHILDRENS SERVICES,FIGLEAVES.COM,08/07/2018,H59620180712MXBRRYSRT-1,100.95,"43A HILTON ROAD, WILLENHALL-RESIDENTS PERSONAL EXPENSES-AL",MISCELLANEOUS ACCESSORY AND APPAREL STORES,GPC
WALSALL COUNCIL,HTTP://OPENDATACOMMUNITIES.ORG/ID/METROPOLITAN-DISTRICT-COUNCIL/WALSALL,30/09/2018,RESOURCES & TRANSFORMATION,BLAKEMORE FOODSERVICE,09/07/2018,H59620180711AHKFEMRWC-1,312.11,CA BEACON PRIMARY SCHOOL-FROZEN FOODS-PROVISIONS,CATERERS,GPC
WALSALL COUNCIL,HTTP://OPENDATACOMMUNITIES.ORG/ID/METROPOLITAN-DISTRICT-COUNCIL/WALSALL,30/09/2018,RESOURCES & TRANSFORMATION,BLAKEMORE FOODSERVICE,09/07/2018,H59620180711AHKFEMRWC-2,8.33,CA BEACON PRIMARY SCHOOL-FROZEN FOODS-PROVISIONS,CATERERS,GPC
WALSALL COUNCIL,HTTP://OPENDATACOMMUNITIES.ORG/ID/METROPOLITAN-DISTRICT-COUNCIL/WALSALL,30/09/2018,RESOURCES & TRANSFORMATION,BLAKEMORE FOODSERVICE,09/07/2018,H59620180711ASIVBOFSW-1,85.60,CA MOORCROFT WOOD-FROZEN FOODS-PROVISIONS,CATERERS,GPC
WALSALL COUNCIL,HTTP://OPENDATACOMMUNITIES.ORG/ID/METROPOLITAN-DISTRICT-COUNCIL/WALSALL,30/09/2018,RESOURCES & TRANSFORMATION,BLAKEMORE FOODSERVICE,09/07/2018,H59620180711ASIVBOFSW-2,16.66,CA MOORCROFT WOOD-FROZEN FOODS-PROVISIONS,CATERERS,GPC
WALSALL COUNCIL,HTTP://OPENDATACOMMUNITIES.ORG/ID/METROPOLITAN-DISTRICT-COUNCIL/WALSALL,30/09/2018,CHILDRENS SERVICES,AMAZON SVCS EU-UK AMAZON.,09/07/2018,H59620180711AVMWNWFVF-1,25.99,SPINDLETREE-RESIDENTS PERSONAL EXPENSES-AL,BOOK STORES,GPC
WALSALL COUNCIL,HTTP://OPENDATACOMMUNITIES.ORG/ID/METROPOLITAN-DISTRICT-COUNCIL/WALSALL,30/09/2018,RESOURCES & TRANSFORMATION,BLAKEMORE FOODSERVICE,09/07/2018,H59620180711BCBRWDNQX-1,186.42,CA MEADOW VIEW JMI PRIMARY SCH-DRY FOODS-PROVISIONS,CATERERS,GPC
WALSALL COUNCIL,HTTP://OPENDATACOMMUNITIES.ORG/ID/METROPOLITAN-DISTRICT-COUNCIL/WALSALL,30/09/2018,ECONOMY & ENVIRONMENT,W & J SMITH (METAL STOCK,09/07/2018,H59620180711BGIJUXKEL-1,24.00,INFRASTRUCTURE MAINTENANCE-GENERAL MATERIALS,OTHER INDUSTRIAL SUPPLIES,GPC
WALSALL COUNCIL,HTTP://OPENDATACOMMUNITIES.ORG/ID/METROPOLITAN-DISTRICT-COUNCIL/WALSALL,30/09/2018,RESOURCES & TRANSFORMATION,BLAKEMORE FOODSERVICE,09/07/2018,H59620180711BMZJDZIPI-1,132.31,CA OAKWOOD SPECIAL SCHOOL-FROZEN FOODS-PROVISIONS,CATERERS,GPC
WALSALL COUNCIL,HTTP://OPENDATACOMMUNITIES.ORG/ID/METROPOLITAN-DISTRICT-COUNCIL/WALSALL,30/09/2018,RESOURCES & TRANSFORMATION,BLAKEMORE FOODSERVICE,09/07/2018,H59620180711BMZJDZIPI-2,10.84,CA OAKWOOD SPECIAL SCHOOL-FROZEN FOODS-PROVISIONS,CATERERS,GPC
WALSALL COUNCIL,HTTP://OPENDATACOMMUNITIES.ORG/ID/METROPOLITAN-DISTRICT-COUNCIL/WALSALL,30/09/2018,RESOURCES & TRANSFORMATION,BLAKEMORE FOODSERVICE,09/07/2018,H59620180711BNHRHKRNM-1,108.02,CA BROWNHILLS WEST PRIMARY SCH-DISPOSABLES-PROVISIONS,CATERERS,GPC
WALSALL COUNCIL,HTTP://OPENDATACOMMUNITIES.ORG/ID/METROPOLITAN-DISTRICT-COUNCIL/WALSALL,30/09/2018,RESOURCES & TRANSFORMATION,BLAKEMORE FOODSERVICE,09/07/2018,H59620180711BTBXPHZCY-1,214.03,CA RUSHALL JMI SCHOOL-DRY FOODS-PROVISIONS,CATERERS,GPC
WALSALL COUNCIL,HTTP://OPENDATACOMMUNITIES.ORG/ID/METROPOLITAN-DISTRICT-COUNCIL/WALSALL,30/09/2018,RESOURCES & TRANSFORMATION,BLAKEMORE FOODSERVICE,09/07/2018,H59620180711BTBXPHZCY-2,51.84,CA RUSHALL JMI SCHOOL-DRY FOODS-PROVISIONS,CATERERS,GPC
WALSALL COUNCIL,HTTP://OPENDATACOMMUNITIES.ORG/ID/METROPOLITAN-DISTRICT-COUNCIL/WALSALL,30/09/2018,RESOURCES & TRANSFORMATION,SAINSBURYS S/MKTS,09/07/2018,H59620180711BUIKMWLSC-1,8.35,TOWN HALL RESTAURANT BISTRO-FRUIT & VEGETABLES OTHER-PROVI,GROCERY STORES AND SUPERMARKETS,GPC
WALSALL COUNCIL,HTTP://OPENDATACOMMUNITIES.ORG/ID/METROPOLITAN-DISTRICT-COUNCIL/WALSALL,30/09/2018,CHILDRENS SERVICES,B&M RETAIL LTD,09/07/2018,H59620180711BXTTIFGQI-1,23.76,LOCALITY FAMILY SUPPORT-CENTRA-FURNITURE & EQUIPMENT,DISCOUNT STORES,GPC
WALSALL COUNCIL,HTTP://OPENDATACOMMUNITIES.ORG/ID/METROPOLITAN-DISTRICT-COUNCIL/WALSALL,30/09/2018,CHILDRENS SERVICES,SAINSBURYS S/MKTS,09/07/2018,H59620180711BZXMJGZSU-1,9.00,"43A HILTON ROAD, WILLENHALL-RESIDENTS PERSONAL EXPENSES-AL",GROCERY STORES AND SUPERMARKETS,GPC
WALSALL COUNCIL,HTTP://OPENDATACOMMUNITIES.ORG/ID/METROPOLITAN-DISTRICT-COUNCIL/WALSALL,30/09/2018,CHILDRENS SERVICES,HOBBY CRAFT LTD,09/07/2018,H59620180711CCEVRSGQT-1,20.00,"43A HILTON ROAD, WILLENHALL-RESIDENTS PERSONAL EXPENSES-AL","ARTIST SUPPLY STORES, CRAFT SHOPS",GPC
WALSALL COUNCIL,HTTP://OPENDATACOMMUNITIES.ORG/ID/METROPOLITAN-DISTRICT-COUNCIL/WALSALL,30/09/2018,CHILDRENS SERVICES,TRAINLINE,09/07/2018,H59620180711CEWBALZKO-1,96.50,SAFEGUARDING & FAMILY SUPPORT-OFFICER/STAFF-PUBLIC TRANSPORT,PASSENGER RAILWAYS,GPC
WALSALL COUNCIL,HTTP://OPENDATACOMMUNITIES.ORG/ID/METROPOLITAN-DISTRICT-COUNCIL/WALSALL,30/09/2018,ECONOMY & ENVIRONMENT,AMAZON UK RETAIL,09/07/2018,H59620180711CVSMXGQXI-1,26.99,PARKING SERVICES OFF-STREET-STATIONERY & GENERAL SUPPLIES-,OTHER DIRECT MARKETING-OTHER DIRECT MARKETERS,GPC
WALSALL COUNCIL,HTTP://OPENDATACOMMUNITIES.ORG/ID/METROPOLITAN-DISTRICT-COUNCIL/WALSALL,30/09/2018,CHILDRENS SERVICES,ESPO,09/07/2018,H59620180711CZPVPVMBG-1,47.95,SEN ASSESSMENT-STATIONERY & GENERAL SUPPLIES-,GOVERNMENT SERVICES,GPC
WALSALL COUNCIL,HTTP://OPENDATACOMMUNITIES.ORG/ID/METROPOLITAN-DISTRICT-COUNCIL/WALSALL,30/09/2018,RESOURCES & TRANSFORMATION,BLAKEMORE FOODSERVICE,09/07/2018,H59620180711DKBBWYWSB-1,235.62,CA BUSILL JONES PRIMARY SCHOOL-FROZEN FOODS-PROVISIONS,CATERERS,GPC
WALSALL COUNCIL,HTTP://OPENDATACOMMUNITIES.ORG/ID/METROPOLITAN-DISTRICT-COUNCIL/WALSALL,30/09/2018,RESOURCES & TRANSFORMATION,AMAZON UK MARKETPLACE,09/07/2018,H59620180711DKYTAKTTL-1,28.34,COMMITTEE ADMINISTRATION-GENERAL MATERIALS,BOOK STORES,GPC
WALSALL COUNCIL,HTTP://OPENDATACOMMUNITIES.ORG/ID/METROPOLITAN-DISTRICT-COUNCIL/WALSALL,30/09/2018,CHILDRENS SERVICES - SCHOOLS,ESEDIRECT.CO.UK,09/07/2018,H59620180711DQFPPHUVV-1,154.62,CHUCKERY PRIMARY-LANDSCAPE WORK-OP MTCE,"OFFICE, SCHOOL SUPPLY, AND STATIONERY STORES",GPC
WALSALL COUNCIL,HTTP://OPENDATACOMMUNITIES.ORG/ID/METROPOLITAN-DISTRICT-COUNCIL/WALSALL,30/09/2018,CHILDRENS SERVICES,AMAZON SVCS EU-UK AMAZON.,09/07/2018,H59620180711DUYWDQTOT-1,46.98,ADMINISTRATIVE SUPPLIES-NEW ITEMS OF FURNITURE,BOOK STORES,GPC
WALSALL COUNCIL,HTTP://OPENDATACOMMUNITIES.ORG/ID/METROPOLITAN-DISTRICT-COUNCIL/WALSALL,30/09/2018,RESOURCES & TRANSFORMATION,BLAKEMORE FOODSERVICE,09/07/2018,H59620180711DYGLCGSLU-1,108.02,CA RADLEYS PRIMARY SCHOOL-DISPOSABLES-PROVISIONS,CATERERS,GPC
WALSALL COUNCIL,HTTP://OPENDATACOMMUNITIES.ORG/ID/METROPOLITAN-DISTRICT-COUNCIL/WALSALL,30/09/2018,ECONOMY & ENVIRONMENT,TRAINLINE,09/07/2018,H59620180711ECLXMVKYB-1,86.70,REGENERATION MANAGEMENT-OFFICER/STAFF-PUBLIC TRANSPORT,PASSENGER RAILWAYS,GPC
WALSALL COUNCIL,HTTP://OPENDATACOMMUNITIES.ORG/ID/METROPOLITAN-DISTRICT-COUNCIL/WALSALL,30/09/2018,CHILDRENS SERVICES,TRAVELODGE GB0000,09/07/2018,H59620180711EEKFPIPPK-1,99.00,CHILD PROTECTION & REVIEW SERV-HOTEL ACCOMMODATION-EMPLOYEES,TRAVELODGE,GPC
WALSALL COUNCIL,HTTP://OPENDATACOMMUNITIES.ORG/ID/METROPOLITAN-DISTRICT-COUNCIL/WALSALL,30/09/2018,CHILDRENS SERVICES,TRAVELODGE GB0000,09/07/2018,H59620180711EEKFPIPPK-2,99.00,LOOKED AFTER CHILDRENS SOCIAL -HOTEL ACCOMMODATION-EMPLOYEES,TRAVELODGE,GPC
WALSALL COUNCIL,HTTP://OPENDATACOMMUNITIES.ORG/ID/METROPOLITAN-DISTRICT-COUNCIL/WALSALL,30/09/2018,CHILDRENS SERVICES,W M MORRISON PLC,09/07/2018,H59620180711EOIMPJVMT-1,16.36,GENERAL SUPPLIES LH-GENERAL MATERIALS,GROCERY STORES AND SUPERMARKETS,GPC
WALSALL COUNCIL,HTTP://OPENDATACOMMUNITIES.ORG/ID/METROPOLITAN-DISTRICT-COUNCIL/WALSALL,30/09/2018,RESOURCES & TRANSFORMATION,BLAKEMORE FOODSERVICE,09/07/2018,H59620180711FVGWDSAQK-1,108.02,CA COOPER JORDAN CE PRIMARY SC-DISPOSABLES-PROVISIONS,CATERERS,GPC
WALSALL COUNCIL,HTTP://OPENDATACOMMUNITIES.ORG/ID/METROPOLITAN-DISTRICT-COUNCIL/WALSALL,30/09/2018,RESOURCES & TRANSFORMATION,BLAKEMORE FOODSERVICE,09/07/2018,H59620180711FWUVZDWWR-1,5.00,CA OLD HALL SPECIAL SCHOOL-FROZEN FOODS-PROVISIONS,CATERERS,GPC
WALSALL COUNCIL,HTTP://OPENDATACOMMUNITIES.ORG/ID/METROPOLITAN-DISTRICT-COUNCIL/WALSALL,30/09/2018,CHILDRENS SERVICES,TRAINLINE,09/07/2018,H59620180711FXJSYHSLW-1,25.55,SAFEGUARDING & FAMILY SUPPORT-OFFICER/STAFF-PUBLIC TRANSPORT,PASSENGER RAILWAYS,GPC
WALSALL COUNCIL,HTTP://OPENDATACOMMUNITIES.ORG/ID/METROPOLITAN-DISTRICT-COUNCIL/WALSALL,30/09/2018,RESOURCES & TRANSFORMATION,BLAKEMORE FOODSERVICE,09/07/2018,H59620180711GCXYAENOO-1,575.02,CA ST JOHNS C.E. PRIMARY SCHOO-DRY FOODS-PROVISIONS,CATERERS,GPC
WALSALL COUNCIL,HTTP://OPENDATACOMMUNITIES.ORG/ID/METROPOLITAN-DISTRICT-COUNCIL/WALSALL,30/09/2018,RESOURCES & TRANSFORMATION,BLAKEMORE FOODSERVICE,09/07/2018,H59620180711GCXYAENOO-2,69.12,CA ST JOHNS C.E. PRIMARY SCHOO-DRY FOODS-PROVISIONS,CATERERS,GPC
WALSALL COUNCIL,HTTP://OPENDATACOMMUNITIES.ORG/ID/METROPOLITAN-DISTRICT-COUNCIL/WALSALL,30/09/2018,RESOURCES & TRANSFORMATION,BLAKEMORE FOODSERVICE,09/07/2018,H59620180711GIPUPIQIB-1,108.02,CA WATLING STREET PRIMARY SCHO-DISPOSABLES-PROVISIONS,CATERERS,GPC
WALSALL COUNCIL,HTTP://OPENDATACOMMUNITIES.ORG/ID/METROPOLITAN-DISTRICT-COUNCIL/WALSALL,30/09/2018,ECONOMY & ENVIRONMENT,WEST COAST TRAINS,09/07/2018,H59620180711GKCUBBFCC-1,12.00,CENTRAL SUPPORT SERVICES LEISU-OTHER-TRAVEL ALLOWANCES,AUTOMOBILE PARKING LOTS AND GARAGES,GPC
WALSALL COUNCIL,HTTP://OPENDATACOMMUNITIES.ORG/ID/METROPOLITAN-DISTRICT-COUNCIL/WALSALL,30/09/2018,RESOURCES & TRANSFORMATION,BLAKEMORE FOODSERVICE,09/07/2018,H59620180711GYUXGJCYO-1,111.87,CA LEIGHSWOOD PRIMARY SCHOOL-FROZEN FOODS-PROVISIONS,CATERERS,GPC
WALSALL COUNCIL,HTTP://OPENDATACOMMUNITIES.ORG/ID/METROPOLITAN-DISTRICT-COUNCIL/WALSALL,30/09/2018,RESOURCES & TRANSFORMATION,BLAKEMORE FOODSERVICE,09/07/2018,H59620180711HBLPMVQKP-1,178.95,CA LEIGHSWOOD PRIMARY SCHOOL-DRY FOODS-PROVISIONS,CATERERS,GPC
WALSALL COUNCIL,HTTP://OPENDATACOMMUNITIES.ORG/ID/METROPOLITAN-DISTRICT-COUNCIL/WALSALL,30/09/2018,RESOURCES & TRANSFORMATION,BLAKEMORE FOODSERVICE,09/07/2018,H59620180711HBLPMVQKP-2,92.16,CA LEIGHSWOOD PRIMARY SCHOOL-DRY FOODS-PROVISIONS,CATERERS,GPC
WALSALL COUNCIL,HTTP://OPENDATACOMMUNITIES.ORG/ID/METROPOLITAN-DISTRICT-COUNCIL/WALSALL,30/09/2018,CHILDRENS SERVICES,FLYBE BGSZSP,09/07/2018,H59620180711HDGMGCVQK-1,110.96,CHILD PROTECTION & REVIEW SERV-OTHER-TRAVEL ALLOWANCES,AIRLINES AND AIR CARRIERS,GPC
WALSALL COUNCIL,HTTP://OPENDATACOMMUNITIES.ORG/ID/METROPOLITAN-DISTRICT-COUNCIL/WALSALL,30/09/2018,RESOURCES & TRANSFORMATION,BRITISH HEART FOUNDATI,09/07/2018,H59620180711HHPUMCOWP-1,60.00,TENANCY SERVICE-FURNITURE & EQUIPMENT,"ORGANIZATIONS, CHARITABLE AND SOCIAL SERVICE",GPC
WALSALL COUNCIL,HTTP://OPENDATACOMMUNITIES.ORG/ID/METROPOLITAN-DISTRICT-COUNCIL/WALSALL,30/09/2018,RESOURCES & TRANSFORMATION,BRITISH HEART FOUNDATI,09/07/2018,H59620180711HHPUMCOWP-2,15.00,TENANCY SERVICE-FURNITURE & EQUIPMENT,"ORGANIZATIONS, CHARITABLE AND SOCIAL SERVICE",GPC
WALSALL COUNCIL,HTTP://OPENDATACOMMUNITIES.ORG/ID/METROPOLITAN-DISTRICT-COUNCIL/WALSALL,30/09/2018,CHILDRENS SERVICES,POST OFFICE COUNTER,09/07/2018,H59620180711HVDFMTCBF-1,85.00,TRANSITION AND LEAVING CARE PL-POSTAGES AND COURIER SERVICES,POSTAL SERVICES - GOVERNMENT ONLY,GPC
WALSALL COUNCIL,HTTP://OPENDATACOMMUNITIES.ORG/ID/METROPOLITAN-DISTRICT-COUNCIL/WALSALL,30/09/2018,CHILDRENS SERVICES,SNRCARDIFF,09/07/2018,H59620180711IDBLGNPCH-1,22.98,REWARDS & PRIZES-GENERAL MATERIALS,COMPUTER SOFTWARE STORES,GPC
WALSALL COUNCIL,HTTP://OPENDATACOMMUNITIES.ORG/ID/METROPOLITAN-DISTRICT-COUNCIL/WALSALL,30/09/2018,CHILDRENS SERVICES,VIKING,09/07/2018,H59620180711IVMGAWLZA-1,58.72,ADMINISTRATIVE SUPPLIES-GENERAL MATERIALS,"STATIONERY, OFFICE SUPPLIES AND WRITING PAPER",GPC
WALSALL COUNCIL,HTTP://OPENDATACOMMUNITIES.ORG/ID/METROPOLITAN-DISTRICT-COUNCIL/WALSALL,30/09/2018,CHILDRENS SERVICES - SCHOOLS,AMAZON UK MARKETPLACE,09/07/2018,H59620180711JBBLOBQCY-1,4.28,E19-GENERAL MATERIALS,BOOK STORES,GPC
WALSALL COUNCIL,HTTP://OPENDATACOMMUNITIES.ORG/ID/METROPOLITAN-DISTRICT-COUNCIL/WALSALL,30/09/2018,CHILDRENS SERVICES - SCHOOLS,AMAZON SVCS EU-UK AMAZON.,09/07/2018,H59620180711JPCHYXLIW-1,10.77,E19-GENERAL MATERIALS,BOOK STORES,GPC
WALSALL COUNCIL,HTTP://OPENDATACOMMUNITIES.ORG/ID/METROPOLITAN-DISTRICT-COUNCIL/WALSALL,30/09/2018,RESOURCES & TRANSFORMATION,BLAKEMORE FOODSERVICE,09/07/2018,H59620180711JRJUGZFDF-1,104.42,CA JANE LANE SPECIAL SCHOOL-FROZEN FOODS-PROVISIONS,CATERERS,GPC
WALSALL COUNCIL,HTTP://OPENDATACOMMUNITIES.ORG/ID/METROPOLITAN-DISTRICT-COUNCIL/WALSALL,30/09/2018,RESOURCES & TRANSFORMATION,BLAKEMORE FOODSERVICE,09/07/2018,H59620180711JRJUGZFDF-2,9.72,CA JANE LANE SPECIAL SCHOOL-FROZEN FOODS-PROVISIONS,CATERERS,GPC
WALSALL COUNCIL,HTTP://OPENDATACOMMUNITIES.ORG/ID/METROPOLITAN-DISTRICT-COUNCIL/WALSALL,30/09/2018,CHILDRENS SERVICES - SCHOOLS,AMAZON SVCS EU-UK AMAZON.,09/07/2018,H59620180711KLDQTLNQN-1,10.50,E19-GENERAL MATERIALS,BOOK STORES,GPC
WALSALL COUNCIL,HTTP://OPENDATACOMMUNITIES.ORG/ID/METROPOLITAN-DISTRICT-COUNCIL/WALSALL,30/09/2018,RESOURCES & TRANSFORMATION,BLAKEMORE FOODSERVICE,09/07/2018,H59620180711KLEMHNXSY-1,158.24,CA CROFT COMMUNITY PRIMARY SCH-FROZEN FOODS-PROVISIONS,CATERERS,GPC
WALSALL COUNCIL,HTTP://OPENDATACOMMUNITIES.ORG/ID/METROPOLITAN-DISTRICT-COUNCIL/WALSALL,30/09/2018,RESOURCES & TRANSFORMATION,BLAKEMORE FOODSERVICE,09/07/2018,H59620180711KLEMHNXSY-2,24.98,CA CROFT COMMUNITY PRIMARY SCH-FROZEN FOODS-PROVISIONS,CATERERS,GPC
WALSALL COUNCIL,HTTP://OPENDATACOMMUNITIES.ORG/ID/METROPOLITAN-DISTRICT-COUNCIL/WALSALL,30/09/2018,CHILDRENS SERVICES,WWW.THECONSORTIUM/WMS,09/07/2018,H59620180711KWKFABXVR-1,314.16,PELSALL VILLAGE SCHOOL-NEW-FURNITURE & EQUIPMENT,DIRECT MARKETING CONTINUITY SUBSCRIPTION MERCHANTS,GPC
WALSALL COUNCIL,HTTP://OPENDATACOMMUNITIES.ORG/ID/METROPOLITAN-DISTRICT-COUNCIL/WALSALL,30/09/2018,RESOURCES & TRANSFORMATION,PAYPAL *QNUK,09/07/2018,H59620180711LKSLGBGWR-1,68.40,LEARNING & MANAGEMENT DEVELOPM-EXTERNAL TRAINING,"COLLEGES, UNIVERSITIES, PROFESSIONAL SCHOOLS",GPC
WALSALL COUNCIL,HTTP://OPENDATACOMMUNITIES.ORG/ID/METROPOLITAN-DISTRICT-COUNCIL/WALSALL,30/09/2018,ECONOMY & ENVIRONMENT,BANNER GROUP LTD,09/07/2018,H59620180711LTCLCKKJX-1,13.33,DEVELOPMENT MANAGEMENT-STATIONERY & GENERAL SUPPLIES-,"OFFICE, SCHOOL SUPPLY, AND STATIONERY STORES",GPC
WALSALL COUNCIL,HTTP://OPENDATACOMMUNITIES.ORG/ID/METROPOLITAN-DISTRICT-COUNCIL/WALSALL,30/09/2018,ECONOMY & ENVIRONMENT,POUNDLAND LTD,09/07/2018,H59620180711LUIGIGPJF-1,8.05,YEI IMPACT OVERHEADS-PUBLICITY & ADVERTISING (NOT S,DISCOUNT STORES,GPC
WALSALL COUNCIL,HTTP://OPENDATACOMMUNITIES.ORG/ID/METROPOLITAN-DISTRICT-COUNCIL/WALSALL,30/09/2018,ECONOMY & ENVIRONMENT,BANNER GROUP LTD,09/07/2018,H59620180711MAQWMESCV-1,30.05,DIRECTORATE SUPPORT-STATIONERY & GENERAL SUPPLIES-,"OFFICE, SCHOOL SUPPLY, AND STATIONERY STORES",GPC
WALSALL COUNCIL,HTTP://OPENDATACOMMUNITIES.ORG/ID/METROPOLITAN-DISTRICT-COUNCIL/WALSALL,30/09/2018,RESOURCES & TRANSFORMATION,BLAKEMORE FOODSERVICE,09/07/2018,H59620180711MFOCRYGUR-1,76.85,CA CASTLEFORT JMI SCHOOL-DRY FOODS-PROVISIONS,CATERERS,GPC
WALSALL COUNCIL,HTTP://OPENDATACOMMUNITIES.ORG/ID/METROPOLITAN-DISTRICT-COUNCIL/WALSALL,30/09/2018,RESOURCES & TRANSFORMATION,BLAKEMORE FOODSERVICE,09/07/2018,H59620180711MJBVNMCTV-1,11.00,CA ST MICHAELS C.E. PRIMARY SC-CLEANING MATERIALS,CATERERS,GPC
WALSALL COUNCIL,HTTP://OPENDATACOMMUNITIES.ORG/ID/METROPOLITAN-DISTRICT-COUNCIL/WALSALL,30/09/2018,RESOURCES & TRANSFORMATION,BLAKEMORE FOODSERVICE,09/07/2018,H59620180711MJBVNMCTV-2,161.28,CA ST MICHAELS C.E. PRIMARY SC-DRY FOODS-PROVISIONS,CATERERS,GPC
WALSALL COUNCIL,HTTP://OPENDATACOMMUNITIES.ORG/ID/METROPOLITAN-DISTRICT-COUNCIL/WALSALL,30/09/2018,RESOURCES & TRANSFORMATION,BLAKEMORE FOODSERVICE,09/07/2018,H59620180711MJBVNMCTV-3,254.31,CA ST MICHAELS C.E. PRIMARY SC-DRY FOODS-PROVISIONS,CATERERS,GPC
WALSALL COUNCIL,HTTP://OPENDATACOMMUNITIES.ORG/ID/METROPOLITAN-DISTRICT-COUNCIL/WALSALL,30/09/2018,ECONOMY & ENVIRONMENT,BANNER GROUP LTD,09/07/2018,H59620180711MLJCQGMNZ-1,3.55,CENTRALISED STATIONARY-STATIONERY & GENERAL SUPPLIES-,"OFFICE, SCHOOL SUPPLY, AND STATIONERY STORES",GPC
WALSALL COUNCIL,HTTP://OPENDATACOMMUNITIES.ORG/ID/METROPOLITAN-DISTRICT-COUNCIL/WALSALL,30/09/2018,CHILDRENS SERVICES,TRAINLINE,09/07/2018,H59620180711MLKHDGYRG-1,120.50,ADOPTION TEAM-OFFICER/STAFF-PUBLIC TRANSPORT,PASSENGER RAILWAYS,GPC
WALSALL COUNCIL,HTTP://OPENDATACOMMUNITIES.ORG/ID/METROPOLITAN-DISTRICT-COUNCIL/WALSALL,30/09/2018,RESOURCES & TRANSFORMATION,BLAKEMORE FOODSERVICE,09/07/2018,H59620180711MPMFXCZKD-1,181.14,CA BROWNHILLS WEST PRIMARY SCH-DRY FOODS-PROVISIONS,CATERERS,GPC
WALSALL COUNCIL,HTTP://OPENDATACOMMUNITIES.ORG/ID/METROPOLITAN-DISTRICT-COUNCIL/WALSALL,30/09/2018,RESOURCES & TRANSFORMATION,BLAKEMORE FOODSERVICE,09/07/2018,H59620180711MPMFXCZKD-2,138.24,CA BROWNHILLS WEST PRIMARY SCH-DRY FOODS-PROVISIONS,CATERERS,GPC
WALSALL COUNCIL,HTTP://OPENDATACOMMUNITIES.ORG/ID/METROPOLITAN-DISTRICT-COUNCIL/WALSALL,30/09/2018,CHILDRENS SERVICES,AMAZON UK MARKETPLACE,09/07/2018,H59620180711MWXNHIBNG-1,11.50,ICT LEARNING RESOURCES-NEW-FURNITURE & EQUIPMENT,BOOK STORES,GPC
WALSALL COUNCIL,HTTP://OPENDATACOMMUNITIES.ORG/ID/METROPOLITAN-DISTRICT-COUNCIL/WALSALL,30/09/2018,RESOURCES & TRANSFORMATION,METRO INNS WALSALL,09/07/2018,H59620180711MYMQIEBGG-1,76.00,ACCOMMODATION SERVICES MANAGEM-BED & BREAKFAST PAYMENTS,"HOTELS, MOTELS, RESORTS",GPC
WALSALL COUNCIL,HTTP://OPENDATACOMMUNITIES.ORG/ID/METROPOLITAN-DISTRICT-COUNCIL/WALSALL,30/09/2018,CHILDRENS SERVICES,BANNER GROUP LTD,09/07/2018,H59620180711NBTQGLXDN-1,58.02,SAFEGUARDING & FAMILY SUPPORT-STATIONERY & GENERAL SUPPLIES-,"OFFICE, SCHOOL SUPPLY, AND STATIONERY STORES",GPC
WALSALL COUNCIL,HTTP://OPENDATACOMMUNITIES.ORG/ID/METROPOLITAN-DISTRICT-COUNCIL/WALSALL,30/09/2018,RESOURCES & TRANSFORMATION,BLAKEMORE FOODSERVICE,09/07/2018,H59620180711NHPQTSRPR-1,108.02,CA RUSHALL JMI SCHOOL-DISPOSABLES-PROVISIONS,CATERERS,GPC
WALSALL COUNCIL,HTTP://OPENDATACOMMUNITIES.ORG/ID/METROPOLITAN-DISTRICT-COUNCIL/WALSALL,30/09/2018,CHILDRENS SERVICES,W M MORRISONS.COM,09/07/2018,H59620180711NONTOUXTJ-1,17.46,REDRUTH ROAD-FOOD AND BEVERAGES-PROVISIONS,GROCERY STORES AND SUPERMARKETS,GPC
WALSALL COUNCIL,HTTP://OPENDATACOMMUNITIES.ORG/ID/METROPOLITAN-DISTRICT-COUNCIL/WALSALL,30/09/2018,CHILDRENS SERVICES,W M MORRISONS.COM,09/07/2018,H59620180711NONTOUXTJ-2,90.08,REDRUTH ROAD-FOOD AND BEVERAGES-PROVISIONS,GROCERY STORES AND SUPERMARKETS,GPC
WALSALL COUNCIL,HTTP://OPENDATACOMMUNITIES.ORG/ID/METROPOLITAN-DISTRICT-COUNCIL/WALSALL,30/09/2018,CHILDRENS SERVICES,APL*/CITYCABS,09/07/2018,H59620180711NOZVMISKF-1,35.00,DIRECTLY COMMISSIONED NURSING -TRAVEL ALLOWANCE-ALLOWANCES TO,TAXI SERVICES,GPC
WALSALL COUNCIL,HTTP://OPENDATACOMMUNITIES.ORG/ID/METROPOLITAN-DISTRICT-COUNCIL/WALSALL,30/09/2018,CHILDRENS SERVICES,WM MORRISON FOOD.COM,09/07/2018,H59620180711NQVQBOJYU-1,27.60,BIRCHILLS CHILDCARE SERVICES-FOOD AND BEVERAGES-PROVISIONS,GROCERY STORES AND SUPERMARKETS,GPC
WALSALL COUNCIL,HTTP://OPENDATACOMMUNITIES.ORG/ID/METROPOLITAN-DISTRICT-COUNCIL/WALSALL,30/09/2018,CHILDRENS SERVICES,WM MORRISON FOOD.COM,09/07/2018,H59620180711NQVQBOJYU-2,119.63,BIRCHILLS CHILDCARE SERVICES-FOOD AND BEVERAGES-PROVISIONS,GROCERY STORES AND SUPERMARKETS,GPC
WALSALL COUNCIL,HTTP://OPENDATACOMMUNITIES.ORG/ID/METROPOLITAN-DISTRICT-COUNCIL/WALSALL,30/09/2018,ECONOMY & ENVIRONMENT,SIM MAYOU HARDWARE,09/07/2018,H59620180711NTVCLINSR-1,42.39,INFRASTRUCTURE MAINTENANCE-GENERAL MATERIALS,HARDWARE STORES,GPC
WALSALL COUNCIL,HTTP://OPENDATACOMMUNITIES.ORG/ID/METROPOLITAN-DISTRICT-COUNCIL/WALSALL,30/09/2018,RESOURCES & TRANSFORMATION,BLAKEMORE FOODSERVICE,09/07/2018,H59620180711OMMRLFHYI-1,308.77,CA COOPER JORDAN CE PRIMARY SC-DRY FOODS-PROVISIONS,CATERERS,GPC
WALSALL COUNCIL,HTTP://OPENDATACOMMUNITIES.ORG/ID/METROPOLITAN-DISTRICT-COUNCIL/WALSALL,30/09/2018,RESOURCES & TRANSFORMATION,BLAKEMORE FOODSERVICE,09/07/2018,H59620180711OMMRLFHYI-2,60.41,CA COOPER JORDAN CE PRIMARY SC-DRY FOODS-PROVISIONS,CATERERS,GPC
WALSALL COUNCIL,HTTP://OPENDATACOMMUNITIES.ORG/ID/METROPOLITAN-DISTRICT-COUNCIL/WALSALL,30/09/2018,CHILDRENS SERVICES,W M MORRISONS.COM,09/07/2018,H59620180711OQKYJRMDB-1,26.64,57 LICHFIELD ROAD-FOOD AND BEVERAGES-PROVISIONS,GROCERY STORES AND SUPERMARKETS,GPC
WALSALL COUNCIL,HTTP://OPENDATACOMMUNITIES.ORG/ID/METROPOLITAN-DISTRICT-COUNCIL/WALSALL,30/09/2018,CHILDRENS SERVICES,W M MORRISONS.COM,09/07/2018,H59620180711OQKYJRMDB-2,104.80,57 LICHFIELD ROAD-FOOD AND BEVERAGES-PROVISIONS,GROCERY STORES AND SUPERMARKETS,GPC
WALSALL COUNCIL,HTTP://OPENDATACOMMUNITIES.ORG/ID/METROPOLITAN-DISTRICT-COUNCIL/WALSALL,30/09/2018,RESOURCES & TRANSFORMATION,TWITTER ONLINE ADS,09/07/2018,H59620180711ORVEORCSS-1,21.00,SCHOOL HR TRANSACTIONAL TEAM-ADVERTISING STAFF VACANCIES,ADVERTISING SERVICES,GPC
WALSALL COUNCIL,HTTP://OPENDATACOMMUNITIES.ORG/ID/METROPOLITAN-DISTRICT-COUNCIL/WALSALL,30/09/2018,RESOURCES & TRANSFORMATION,PAYPAL *QNUK,09/07/2018,H59620180711OSLHJSFDW-1,39.00,LEARNING & MANAGEMENT DEVELOPM-EXTERNAL TRAINING,"COLLEGES, UNIVERSITIES, PROFESSIONAL SCHOOLS",GPC
WALSALL COUNCIL,HTTP://OPENDATACOMMUNITIES.ORG/ID/METROPOLITAN-DISTRICT-COUNCIL/WALSALL,30/09/2018,RESOURCES & TRANSFORMATION,BLAKEMORE FOODSERVICE,09/07/2018,H59620180711OWWHSOJRT-1,355.01,CA RADLEYS PRIMARY SCHOOL-DRY FOODS-PROVISIONS,CATERERS,GPC
WALSALL COUNCIL,HTTP://OPENDATACOMMUNITIES.ORG/ID/METROPOLITAN-DISTRICT-COUNCIL/WALSALL,30/09/2018,RESOURCES & TRANSFORMATION,BLAKEMORE FOODSERVICE,09/07/2018,H59620180711OWWHSOJRT-2,160.24,CA RADLEYS PRIMARY SCHOOL-DRY FOODS-PROVISIONS,CATERERS,GPC
WALSALL COUNCIL,HTTP://OPENDATACOMMUNITIES.ORG/ID/METROPOLITAN-DISTRICT-COUNCIL/WALSALL,30/09/2018,RESOURCES & TRANSFORMATION,BLAKEMORE FOODSERVICE,09/07/2018,H59620180711PCXTJIRBR-1,233.76,CA BARCROFT D/C-FROZEN FOODS-PROVISIONS,CATERERS,GPC
WALSALL COUNCIL,HTTP://OPENDATACOMMUNITIES.ORG/ID/METROPOLITAN-DISTRICT-COUNCIL/WALSALL,30/09/2018,RESOURCES & TRANSFORMATION,BLAKEMORE FOODSERVICE,09/07/2018,H59620180711PCXTJIRBR-2,33.31,CA BARCROFT D/C-FROZEN FOODS-PROVISIONS,CATERERS,GPC
WALSALL COUNCIL,HTTP://OPENDATACOMMUNITIES.ORG/ID/METROPOLITAN-DISTRICT-COUNCIL/WALSALL,30/09/2018,CHILDRENS SERVICES,AO RETAIL LIMITED,09/07/2018,H59620180711PMCMJPRFR-1,194.00,CONTINGENCY-NEW ITEMS OF FURNITURE,HOUSEHOLD APPLIANCE STORES,GPC
WALSALL COUNCIL,HTTP://OPENDATACOMMUNITIES.ORG/ID/METROPOLITAN-DISTRICT-COUNCIL/WALSALL,30/09/2018,RESOURCES & TRANSFORMATION,BLAKEMORE FOODSERVICE,09/07/2018,H59620180711PQJEAJEOX-1,108.02,CA OAKWOOD SPECIAL SCHOOL-DISPOSABLES-PROVISIONS,CATERERS,GPC
WALSALL COUNCIL,HTTP://OPENDATACOMMUNITIES.ORG/ID/METROPOLITAN-DISTRICT-COUNCIL/WALSALL,30/09/2018,RESOURCES & TRANSFORMATION,BLAKEMORE FOODSERVICE,09/07/2018,H59620180711QKPSCULEI-1,184.56,CA WATLING STREET PRIMARY SCHO-DRY FOODS-PROVISIONS,CATERERS,GPC
WALSALL COUNCIL,HTTP://OPENDATACOMMUNITIES.ORG/ID/METROPOLITAN-DISTRICT-COUNCIL/WALSALL,30/09/2018,CHILDRENS SERVICES,ASDA STORES,09/07/2018,H59620180711QOVPDQEOY-1,20.36,LOCALITY FAMILY SUPPORT-WEST-FOOD AND BEVERAGES-PROVISIONS,GROCERY STORES AND SUPERMARKETS,GPC
WALSALL COUNCIL,HTTP://OPENDATACOMMUNITIES.ORG/ID/METROPOLITAN-DISTRICT-COUNCIL/WALSALL,30/09/2018,CHILDRENS SERVICES,ASDA STORES,09/07/2018,H59620180711QOVPDQEOY-2,6.65,LOCALITY FAMILY SUPPORT-WEST-MISCELLANEOUS SUPPLIES,GROCERY STORES AND SUPERMARKETS,GPC
WALSALL COUNCIL,HTTP://OPENDATACOMMUNITIES.ORG/ID/METROPOLITAN-DISTRICT-COUNCIL/WALSALL,30/09/2018,RESOURCES & TRANSFORMATION,A F BLAKEMORE CASH&CARRY,09/07/2018,H59620180711QRHNRRUOB-1,46.75,TOWN HALL RESTAURANT BISTRO-DISPOSABLES-PROVISIONS,GROCERY STORES AND SUPERMARKETS,GPC
WALSALL COUNCIL,HTTP://OPENDATACOMMUNITIES.ORG/ID/METROPOLITAN-DISTRICT-COUNCIL/WALSALL,30/09/2018,RESOURCES & TRANSFORMATION,BLAKEMORE FOODSERVICE,09/07/2018,H59620180711QSDBNWMJB-1,108.02,CA MEADOW VIEW JMI PRIMARY SCH-DISPOSABLES-PROVISIONS,CATERERS,GPC
WALSALL COUNCIL,HTTP://OPENDATACOMMUNITIES.ORG/ID/METROPOLITAN-DISTRICT-COUNCIL/WALSALL,30/09/2018,RESOURCES & TRANSFORMATION,BLAKEMORE FOODSERVICE,09/07/2018,H59620180711RBEJUGVWP-1,108.02,CA CASTLEFORT JMI SCHOOL-DISPOSABLES-PROVISIONS,CATERERS,GPC
WALSALL COUNCIL,HTTP://OPENDATACOMMUNITIES.ORG/ID/METROPOLITAN-DISTRICT-COUNCIL/WALSALL,30/09/2018,RESOURCES & TRANSFORMATION,ALLPAY MOTO (CALLPAY/I,09/07/2018,H59620180711REMORFSUM-1,178.31,WALSALL CRISIS SUPPORT SCHEME-MISC FEES AND EXPENSES,"ORGANIZATIONS, CHARITABLE AND SOCIAL SERVICE",GPC
WALSALL COUNCIL,HTTP://OPENDATACOMMUNITIES.ORG/ID/METROPOLITAN-DISTRICT-COUNCIL/WALSALL,30/09/2018,RESOURCES & TRANSFORMATION,NOBISCO LIMITED,09/07/2018,H59620180711RKBRXXXOX-1,45.71,CA CASTLEFORT JMI SCHOOL-DISPOSABLES-PROVISIONS,OTHER INDUSTRIAL SUPPLIES,GPC
WALSALL COUNCIL,HTTP://OPENDATACOMMUNITIES.ORG/ID/METROPOLITAN-DISTRICT-COUNCIL/WALSALL,30/09/2018,CHILDRENS SERVICES,BANNER GROUP LTD,09/07/2018,H59620180711RNHWPIHSH-1,2.89,SAFEGUARDING & FAMILY SUPPORT-STATIONERY & GENERAL SUPPLIES-,"OFFICE, SCHOOL SUPPLY, AND STATIONERY STORES",GPC
WALSALL COUNCIL,HTTP://OPENDATACOMMUNITIES.ORG/ID/METROPOLITAN-DISTRICT-COUNCIL/WALSALL,30/09/2018,CHILDRENS SERVICES,ASDA SUPERSTORE,09/07/2018,H59620180711ROHFUPUJM-1,42.50,REDRUTH ROAD-NEW-FURNITURE & EQUIPMENT,GROCERY STORES AND SUPERMARKETS,GPC
WALSALL COUNCIL,HTTP://OPENDATACOMMUNITIES.ORG/ID/METROPOLITAN-DISTRICT-COUNCIL/WALSALL,30/09/2018,RESOURCES & TRANSFORMATION,BLAKEMORE FOODSERVICE,09/07/2018,H59620180711RZDRJRAPX-1,285.13,CA RADLEYS PRIMARY SCHOOL-FROZEN FOODS-PROVISIONS,CATERERS,GPC
WALSALL COUNCIL,HTTP://OPENDATACOMMUNITIES.ORG/ID/METROPOLITAN-DISTRICT-COUNCIL/WALSALL,30/09/2018,RESOURCES & TRANSFORMATION,BLAKEMORE FOODSERVICE,09/07/2018,H59620180711RZDRJRAPX-2,33.31,CA RADLEYS PRIMARY SCHOOL-FROZEN FOODS-PROVISIONS,CATERERS,GPC
WALSALL COUNCIL,HTTP://OPENDATACOMMUNITIES.ORG/ID/METROPOLITAN-DISTRICT-COUNCIL/WALSALL,30/09/2018,CHILDRENS SERVICES,TRAINLINE,09/07/2018,H59620180711SJDUPDNQK-1,28.75,SAFEGUARDING & FAMILY SUPPORT-OFFICER/STAFF-PUBLIC TRANSPORT,PASSENGER RAILWAYS,GPC
WALSALL COUNCIL,HTTP://OPENDATACOMMUNITIES.ORG/ID/METROPOLITAN-DISTRICT-COUNCIL/WALSALL,30/09/2018,RESOURCES & TRANSFORMATION,BLAKEMORE FOODSERVICE,09/07/2018,H59620180711SKVSBXPWH-1,24.98,CA BIRCHILLS CE PRIMARY COMMUN-FROZEN FOODS-PROVISIONS,CATERERS,GPC
WALSALL COUNCIL,HTTP://OPENDATACOMMUNITIES.ORG/ID/METROPOLITAN-DISTRICT-COUNCIL/WALSALL,30/09/2018,RESOURCES & TRANSFORMATION,BLAKEMORE FOODSERVICE,09/07/2018,H59620180711SKVSBXPWH-2,323.34,CA BIRCHILLS CE PRIMARY COMMUN-FROZEN FOODS-PROVISIONS,CATERERS,GPC
WALSALL COUNCIL,HTTP://OPENDATACOMMUNITIES.ORG/ID/METROPOLITAN-DISTRICT-COUNCIL/WALSALL,30/09/2018,CHILDRENS SERVICES,THE RANGE,09/07/2018,H59620180711SREXEVNWT-1,23.92,GENERAL SUPPLIES LH-GENERAL MATERIALS,DEPARTMENT STORES,GPC
WALSALL COUNCIL,HTTP://OPENDATACOMMUNITIES.ORG/ID/METROPOLITAN-DISTRICT-COUNCIL/WALSALL,30/09/2018,ECONOMY & ENVIRONMENT,TRAINLINE,09/07/2018,H59620180711TDWPDYXMQ-1,177.50,ERDF TA PROGRAMME 2016-18 SEED-OFFICER/STAFF-PUBLIC TRANSPORT,PASSENGER RAILWAYS,GPC
WALSALL COUNCIL,HTTP://OPENDATACOMMUNITIES.ORG/ID/METROPOLITAN-DISTRICT-COUNCIL/WALSALL,30/09/2018,RESOURCES & TRANSFORMATION,W M MORRISON PLC,09/07/2018,H59620180711TFTFODDSU-1,13.00,CA CASTLEFORT JMI SCHOOL-FRUIT & VEGETABLES OTHER-PROVI,GROCERY STORES AND SUPERMARKETS,GPC
WALSALL COUNCIL,HTTP://OPENDATACOMMUNITIES.ORG/ID/METROPOLITAN-DISTRICT-COUNCIL/WALSALL,30/09/2018,RESOURCES & TRANSFORMATION,BLAKEMORE FOODSERVICE,09/07/2018,H59620180711TVLWOPXEC-1,399.52,CA ST JOHNS C.E. PRIMARY SCHOO-FROZEN FOODS-PROVISIONS,CATERERS,GPC
WALSALL COUNCIL,HTTP://OPENDATACOMMUNITIES.ORG/ID/METROPOLITAN-DISTRICT-COUNCIL/WALSALL,30/09/2018,RESOURCES & TRANSFORMATION,BLAKEMORE FOODSERVICE,09/07/2018,H59620180711TVLWOPXEC-2,16.66,CA ST JOHNS C.E. PRIMARY SCHOO-FROZEN FOODS-PROVISIONS,CATERERS,GPC
WALSALL COUNCIL,HTTP://OPENDATACOMMUNITIES.ORG/ID/METROPOLITAN-DISTRICT-COUNCIL/WALSALL,30/09/2018,ECONOMY & ENVIRONMENT,AMAZON UK MARKETPLACE,09/07/2018,H59620180711UBMUYRFGH-1,10.14,FLEET-GENERAL MATERIALS,BOOK STORES,GPC
WALSALL COUNCIL,HTTP://OPENDATACOMMUNITIES.ORG/ID/METROPOLITAN-DISTRICT-COUNCIL/WALSALL,30/09/2018,CHILDRENS SERVICES,FLYBE BKYWBL,09/07/2018,H59620180711UDXITQAKK-1,110.96,LOOKED AFTER CHILDRENS SOCIAL -OTHER-TRAVEL ALLOWANCES,AIRLINES AND AIR CARRIERS,GPC
WALSALL COUNCIL,HTTP://OPENDATACOMMUNITIES.ORG/ID/METROPOLITAN-DISTRICT-COUNCIL/WALSALL,30/09/2018,CHILDRENS SERVICES,HOME BARGAINS,09/07/2018,H59620180711UJWFAAKUY-1,9.80,"CENTRAL & EAST LOCALITY - SCHO-CROCKERY,HARDWARE & DISPOSABLE",HARDWARE STORES,GPC
WALSALL COUNCIL,HTTP://OPENDATACOMMUNITIES.ORG/ID/METROPOLITAN-DISTRICT-COUNCIL/WALSALL,30/09/2018,CHILDRENS SERVICES,HOME BARGAINS,09/07/2018,H59620180711UJWFAAKUY-2,40.09,CENTRAL & EAST LOCALITY - SCHO-FURNITURE & EQUIPMENT,HARDWARE STORES,GPC
WALSALL COUNCIL,HTTP://OPENDATACOMMUNITIES.ORG/ID/METROPOLITAN-DISTRICT-COUNCIL/WALSALL,30/09/2018,RESOURCES & TRANSFORMATION,BLAKEMORE FOODSERVICE,09/07/2018,H59620180711UKKDSIVBR-1,108.02,CA ST MICHAELS C.E. PRIMARY SC-DISPOSABLES-PROVISIONS,CATERERS,GPC
WALSALL COUNCIL,HTTP://OPENDATACOMMUNITIES.ORG/ID/METROPOLITAN-DISTRICT-COUNCIL/WALSALL,30/09/2018,RESOURCES & TRANSFORMATION,BLAKEMORE FOODSERVICE,09/07/2018,H59620180711ULTGWKOKQ-1,-24.94,CA OLD HALL SPECIAL SCHOOL-FROZEN FOODS-PROVISIONS,CATERERS,GPC
WALSALL COUNCIL,HTTP://OPENDATACOMMUNITIES.ORG/ID/METROPOLITAN-DISTRICT-COUNCIL/WALSALL,30/09/2018,CHILDRENS SERVICES,W M MORRISON PLC,09/07/2018,H59620180711UNWIDLKDG-1,46.30,PELSALL VILLAGE SCHOOL-FOOD AND BEVERAGES-PROVISIONS,GROCERY STORES AND SUPERMARKETS,GPC
WALSALL COUNCIL,HTTP://OPENDATACOMMUNITIES.ORG/ID/METROPOLITAN-DISTRICT-COUNCIL/WALSALL,30/09/2018,CHILDRENS SERVICES,W M MORRISON PLC,09/07/2018,H59620180711UNWIDLKDG-2,8.87,PELSALL VILLAGE SCHOOL-FOOD AND BEVERAGES-PROVISIONS,GROCERY STORES AND SUPERMARKETS,GPC
WALSALL COUNCIL,HTTP://OPENDATACOMMUNITIES.ORG/ID/METROPOLITAN-DISTRICT-COUNCIL/WALSALL,30/09/2018,CHILDRENS SERVICES,BANNER GROUP LTD,09/07/2018,H59620180711UNXLJFOXP-1,13.54,SCHOOL IMPROVEMENT-ACCESS TEAM-STATIONERY & GENERAL SUPPLIES-,"OFFICE, SCHOOL SUPPLY, AND STATIONERY STORES",GPC
WALSALL COUNCIL,HTTP://OPENDATACOMMUNITIES.ORG/ID/METROPOLITAN-DISTRICT-COUNCIL/WALSALL,30/09/2018,CHILDRENS SERVICES,O2,09/07/2018,H59620180711URMUZWKUU-1,21.72,ADMIN-TELEPHONES MOBILE/PAGERS-TELEP,TELECOMMUNICATION SERVICES,GPC
WALSALL COUNCIL,HTTP://OPENDATACOMMUNITIES.ORG/ID/METROPOLITAN-DISTRICT-COUNCIL/WALSALL,30/09/2018,CHILDRENS SERVICES,ALDI 95 772,09/07/2018,H59620180711UWOPPMILI-1,9.92,SPINDLETREE-FOOD AND BEVERAGES-PROVISIONS,GROCERY STORES AND SUPERMARKETS,GPC
WALSALL COUNCIL,HTTP://OPENDATACOMMUNITIES.ORG/ID/METROPOLITAN-DISTRICT-COUNCIL/WALSALL,30/09/2018,RESOURCES & TRANSFORMATION,A F BLAKEMORE CASH&CARRY,09/07/2018,H59620180711VBUHDXSPV-1,88.54,TOWN HALL RESTAURANT BISTRO-FROZEN FOODS-PROVISIONS,GROCERY STORES AND SUPERMARKETS,GPC
WALSALL COUNCIL,HTTP://OPENDATACOMMUNITIES.ORG/ID/METROPOLITAN-DISTRICT-COUNCIL/WALSALL,30/09/2018,CHILDRENS SERVICES,REGISTRARS OFFICE,09/07/2018,H59620180711VVGESBCCT-1,11.00,LOOKED AFTER CHILDRENS SOCIAL -MISC FEES AND EXPENSES,OTHER SCHOOLS AND EDUCATIONAL SERVICES,GPC
WALSALL COUNCIL,HTTP://OPENDATACOMMUNITIES.ORG/ID/METROPOLITAN-DISTRICT-COUNCIL/WALSALL,30/09/2018,RESOURCES & TRANSFORMATION,NOBISCO LIMITED,09/07/2018,H59620180711VXSJUFMJM-1,50.93,CA MOORCROFT WOOD-DISPOSABLES-PROVISIONS,OTHER INDUSTRIAL SUPPLIES,GPC
WALSALL COUNCIL,HTTP://OPENDATACOMMUNITIES.ORG/ID/METROPOLITAN-DISTRICT-COUNCIL/WALSALL,30/09/2018,CHILDRENS SERVICES,TRAVELODGE GB0000,09/07/2018,H59620180711WABBQQGUE-1,-193.50,SAFEGUARDING & FAMILY SUPPORT-HOTEL ACCOMMODATION-EMPLOYEES,TRAVELODGE,GPC
WALSALL COUNCIL,HTTP://OPENDATACOMMUNITIES.ORG/ID/METROPOLITAN-DISTRICT-COUNCIL/WALSALL,30/09/2018,RESOURCES & TRANSFORMATION,BLAKEMORE FOODSERVICE,09/07/2018,H59620180711XLMMAADKE-1,149.36,CA KINGSHILL SCHOOL-FROZEN FOODS-PROVISIONS,CATERERS,GPC
WALSALL COUNCIL,HTTP://OPENDATACOMMUNITIES.ORG/ID/METROPOLITAN-DISTRICT-COUNCIL/WALSALL,30/09/2018,RESOURCES & TRANSFORMATION,BLAKEMORE FOODSERVICE,09/07/2018,H59620180711XNRCVLPDL-1,199.71,CA LINDENS PRIMARY SCHOOL-DRY FOODS-PROVISIONS,CATERERS,GPC
WALSALL COUNCIL,HTTP://OPENDATACOMMUNITIES.ORG/ID/METROPOLITAN-DISTRICT-COUNCIL/WALSALL,30/09/2018,RESOURCES & TRANSFORMATION,BLAKEMORE FOODSERVICE,09/07/2018,H59620180711XNRCVLPDL-2,230.40,CA LINDENS PRIMARY SCHOOL-DRY FOODS-PROVISIONS,CATERERS,GPC
WALSALL COUNCIL,HTTP://OPENDATACOMMUNITIES.ORG/ID/METROPOLITAN-DISTRICT-COUNCIL/WALSALL,30/09/2018,RESOURCES & TRANSFORMATION,BLAKEMORE FOODSERVICE,09/07/2018,H59620180711YBSNGIPBP-1,108.02,CA LEIGHSWOOD PRIMARY SCHOOL-DISPOSABLES-PROVISIONS,CATERERS,GPC
WALSALL COUNCIL,HTTP://OPENDATACOMMUNITIES.ORG/ID/METROPOLITAN-DISTRICT-COUNCIL/WALSALL,30/09/2018,CHILDRENS SERVICES,AMAZON UK RETAIL,09/07/2018,H59620180711YKLVPADEY-1,9.98,LEARNING ENVIRONMENT-GENERAL MATERIALS,OTHER DIRECT MARKETING-OTHER DIRECT MARKETERS,GPC
WALSALL COUNCIL,HTTP://OPENDATACOMMUNITIES.ORG/ID/METROPOLITAN-DISTRICT-COUNCIL/WALSALL,30/09/2018,CHILDRENS SERVICES,PREMIER INN44015565,09/07/2018,H59620180712CINLEIQBZ-1,-120.00,CHILD PROTECTION & REVIEW SERV-HOTEL ACCOMMODATION-EMPLOYEES,PREMIER INN,GPC
WALSALL COUNCIL,HTTP://OPENDATACOMMUNITIES.ORG/ID/METROPOLITAN-DISTRICT-COUNCIL/WALSALL,30/09/2018,ECONOMY & ENVIRONMENT,PREMIER INN 44535095,09/07/2018,H59620180712HIHDQTISP-1,66.50,STRATEGIC TRANSPORTATION-MISC FEES AND EXPENSES,PREMIER INN,GPC
WALSALL COUNCIL,HTTP://OPENDATACOMMUNITIES.ORG/ID/METROPOLITAN-DISTRICT-COUNCIL/WALSALL,30/09/2018,CHILDRENS SERVICES,PREMIER INN44015565,09/07/2018,H59620180712VOVFWSYFT-1,120.00,CHILD PROTECTION & REVIEW SERV-HOTEL ACCOMMODATION-EMPLOYEES,PREMIER INN,GPC
WALSALL COUNCIL,HTTP://OPENDATACOMMUNITIES.ORG/ID/METROPOLITAN-DISTRICT-COUNCIL/WALSALL,30/09/2018,CHILDRENS SERVICES - SCHOOLS,AMAZON SVCS EU-UK AMAZON.,09/07/2018,H59620180712YXKQHPBVN-1,20.99,ICT LEARNING RESOURCES-GENERAL MATERIALS,BOOK STORES,GPC
WALSALL COUNCIL,HTTP://OPENDATACOMMUNITIES.ORG/ID/METROPOLITAN-DISTRICT-COUNCIL/WALSALL,30/09/2018,ECONOMY & ENVIRONMENT,WEST COAST TRAINS,10/07/2018,H59620180712BEXYYSPVC-1,12.00,CENTRAL SUPPORT SERVICES LEISU-OTHER-TRAVEL ALLOWANCES,AUTOMOBILE PARKING LOTS AND GARAGES,GPC
WALSALL COUNCIL,HTTP://OPENDATACOMMUNITIES.ORG/ID/METROPOLITAN-DISTRICT-COUNCIL/WALSALL,30/09/2018,CHILDRENS SERVICES,WALSALL STN T/O,10/07/2018,H59620180712BQAZCWYEW-1,124.80,LOOKED AFTER CHILDRENS SOCIAL -SUPPORT UNDER SECTION 23 OF TH,PASSENGER RAILWAYS,GPC
WALSALL COUNCIL,HTTP://OPENDATACOMMUNITIES.ORG/ID/METROPOLITAN-DISTRICT-COUNCIL/WALSALL,30/09/2018,RESOURCES & TRANSFORMATION,JOHAL DAIRIES LTD,10/07/2018,H59620180712CKYFLYYQB-1,165.54,CA BIRCHILLS CE PRIMARY COMMUN-MISC DAIRY PRODUCTS-PROVISIONS,OTHER NONDURABLE GOODS,GPC
WALSALL COUNCIL,HTTP://OPENDATACOMMUNITIES.ORG/ID/METROPOLITAN-DISTRICT-COUNCIL/WALSALL,30/09/2018,RESOURCES & TRANSFORMATION,CHICKEN JOES LTD,10/07/2018,H59620180712CLSWIWMCB-1,87.92,CA BARCROFT D/C-FROZEN FOODS-PROVISIONS,CATERERS,GPC
WALSALL COUNCIL,HTTP://OPENDATACOMMUNITIES.ORG/ID/METROPOLITAN-DISTRICT-COUNCIL/WALSALL,30/09/2018,ECONOMY & ENVIRONMENT,KOO SALES & SERVICES LTD,10/07/2018,H59620180712CQZGLQEBJ-1,126.00,BLOXWICH LEISURE CENTRE-GENERAL MATERIALS,SWIMMING POOLS-SALES AND SUPPLIES,GPC
WALSALL COUNCIL,HTTP://OPENDATACOMMUNITIES.ORG/ID/METROPOLITAN-DISTRICT-COUNCIL/WALSALL,30/09/2018,CHILDRENS SERVICES,AMAZON UK RETAIL,10/07/2018,H59620180712DRIRPSASC-1,36.48,EARLY YEARS DEPARTMENT-GENERAL MATERIALS,OTHER DIRECT MARKETING-OTHER DIRECT MARKETERS,GPC
WALSALL COUNCIL,HTTP://OPENDATACOMMUNITIES.ORG/ID/METROPOLITAN-DISTRICT-COUNCIL/WALSALL,30/09/2018,CHILDRENS SERVICES,WWW.BUY-STATIONERY.CO.,10/07/2018,H59620180712DRTRGTMFF-1,325.20,"ST FRANCIS OF ASSISI CATHOLIC -REPAIRS,ALTERATIONS & MAINTENA","OFFICE, SCHOOL SUPPLY, AND STATIONERY STORES",GPC
WALSALL COUNCIL,HTTP://OPENDATACOMMUNITIES.ORG/ID/METROPOLITAN-DISTRICT-COUNCIL/WALSALL,30/09/2018,RESOURCES & TRANSFORMATION,JOHAL DAIRIES LTD,10/07/2018,H59620180712EUGOIWCTX-1,31.34,CA LINDENS PRIMARY SCHOOL-MISC DAIRY PRODUCTS-PROVISIONS,OTHER NONDURABLE GOODS,GPC
WALSALL COUNCIL,HTTP://OPENDATACOMMUNITIES.ORG/ID/METROPOLITAN-DISTRICT-COUNCIL/WALSALL,30/09/2018,CHILDRENS SERVICES,JEWELLERY AND GIFT,10/07/2018,H59620180712EWDDOMBVC-1,44.00,ADMINISTRATIVE SUPPLIES-GENERAL MATERIALS,"CLOCK, JEWELRY, WATCH, AND SILVERWARE STORE",GPC
WALSALL COUNCIL,HTTP://OPENDATACOMMUNITIES.ORG/ID/METROPOLITAN-DISTRICT-COUNCIL/WALSALL,30/09/2018,RESOURCES & TRANSFORMATION,JOHAL DAIRIES LTD,10/07/2018,H59620180712FCMDPBLVJ-1,6.43,CA MEADOW VIEW JMI PRIMARY SCH-MISC DAIRY PRODUCTS-PROVISIONS,OTHER NONDURABLE GOODS,GPC
WALSALL COUNCIL,HTTP://OPENDATACOMMUNITIES.ORG/ID/METROPOLITAN-DISTRICT-COUNCIL/WALSALL,30/09/2018,RESOURCES & TRANSFORMATION,JOHAL DAIRIES LTD,10/07/2018,H59620180712FCRPGPBOY-1,2.63,CA RADLEYS PRIMARY SCHOOL-MISC DAIRY PRODUCTS-PROVISIONS,OTHER NONDURABLE GOODS,GPC
WALSALL COUNCIL,HTTP://OPENDATACOMMUNITIES.ORG/ID/METROPOLITAN-DISTRICT-COUNCIL/WALSALL,30/09/2018,RESOURCES & TRANSFORMATION,JOHAL DAIRIES LTD,10/07/2018,H59620180712FQICBWBFR-1,25.85,CA ELMORE GREEN PRIMARY SCHOOL-MISC DAIRY PRODUCTS-PROVISIONS,OTHER NONDURABLE GOODS,GPC
WALSALL COUNCIL,HTTP://OPENDATACOMMUNITIES.ORG/ID/METROPOLITAN-DISTRICT-COUNCIL/WALSALL,30/09/2018,CHILDRENS SERVICES,BAKER ROSS LTD,10/07/2018,H59620180712FRSRHKPHK-1,219.23,CENTRAL & EAST LOCALITY - SCHO-GENERAL MATERIALS,"ARTIST SUPPLY STORES, CRAFT SHOPS",GPC
WALSALL COUNCIL,HTTP://OPENDATACOMMUNITIES.ORG/ID/METROPOLITAN-DISTRICT-COUNCIL/WALSALL,30/09/2018,RESOURCES & TRANSFORMATION,CHICKEN JOES LTD,10/07/2018,H59620180712FUFJDUWRY-1,50.58,CA MOORCROFT WOOD-FROZEN FOODS-PROVISIONS,CATERERS,GPC
WALSALL COUNCIL,HTTP://OPENDATACOMMUNITIES.ORG/ID/METROPOLITAN-DISTRICT-COUNCIL/WALSALL,30/09/2018,RESOURCES & TRANSFORMATION,JOHAL DAIRIES LTD,10/07/2018,H59620180712GILFLFHCX-1,30.96,CA COOPER JORDAN CE PRIMARY SC-MISC DAIRY PRODUCTS-PROVISIONS,OTHER NONDURABLE GOODS,GPC
WALSALL COUNCIL,HTTP://OPENDATACOMMUNITIES.ORG/ID/METROPOLITAN-DISTRICT-COUNCIL/WALSALL,30/09/2018,ECONOMY & ENVIRONMENT,EDEN FARM,10/07/2018,H59620180712GPCOYBSNR-1,340.10,BLOXWICH LEISURE CENTRE-FOOD AND BEVERAGES-PROVISIONS,MISCELLANEOUS FOOD STORES & CONVENIENCE STORES,GPC
WALSALL COUNCIL,HTTP://OPENDATACOMMUNITIES.ORG/ID/METROPOLITAN-DISTRICT-COUNCIL/WALSALL,30/09/2018,ECONOMY & ENVIRONMENT,WALSALL WOOD,10/07/2018,H59620180712GXUOWAZBW-1,14.99,INFRASTRUCTURE MAINTENANCE-GENERAL MATERIALS,LUMBER & BUILDING MATERIALS STORES,GPC
WALSALL COUNCIL,HTTP://OPENDATACOMMUNITIES.ORG/ID/METROPOLITAN-DISTRICT-COUNCIL/WALSALL,30/09/2018,RESOURCES & TRANSFORMATION,CHICKEN JOES LTD,10/07/2018,H59620180712GYBHLMURJ-1,46.04,CA BEACON PRIMARY SCHOOL-FROZEN FOODS-PROVISIONS,CATERERS,GPC
WALSALL COUNCIL,HTTP://OPENDATACOMMUNITIES.ORG/ID/METROPOLITAN-DISTRICT-COUNCIL/WALSALL,30/09/2018,RESOURCES & TRANSFORMATION,CHICKEN JOES LTD,10/07/2018,H59620180712HJQBUDKUR-1,68.70,CA BROWNHILLS WEST PRIMARY SCH-FROZEN FOODS-PROVISIONS,CATERERS,GPC
WALSALL COUNCIL,HTTP://OPENDATACOMMUNITIES.ORG/ID/METROPOLITAN-DISTRICT-COUNCIL/WALSALL,30/09/2018,CHILDRENS SERVICES,AMAZON UK RETAIL,10/07/2018,H59620180712IAPYZQIHP-1,25.60,EARLY YEARS DEPARTMENT-GENERAL MATERIALS,OTHER DIRECT MARKETING-OTHER DIRECT MARKETERS,GPC
WALSALL COUNCIL,HTTP://OPENDATACOMMUNITIES.ORG/ID/METROPOLITAN-DISTRICT-COUNCIL/WALSALL,30/09/2018,RESOURCES & TRANSFORMATION,JOHAL DAIRIES LTD,10/07/2018,H59620180712ISPWEQIOI-1,11.83,CA BEACON PRIMARY SCHOOL-MISC DAIRY PRODUCTS-PROVISIONS,OTHER NONDURABLE GOODS,GPC
WALSALL COUNCIL,HTTP://OPENDATACOMMUNITIES.ORG/ID/METROPOLITAN-DISTRICT-COUNCIL/WALSALL,30/09/2018,RESOURCES & TRANSFORMATION,CHICKEN JOES LTD,10/07/2018,H59620180712JDFTLQJEO-1,51.57,CA LEIGHSWOOD PRIMARY SCHOOL-FROZEN FOODS-PROVISIONS,CATERERS,GPC
WALSALL COUNCIL,HTTP://OPENDATACOMMUNITIES.ORG/ID/METROPOLITAN-DISTRICT-COUNCIL/WALSALL,30/09/2018,RESOURCES & TRANSFORMATION,JOHAL DAIRIES LTD,10/07/2018,H59620180712JFBNKWIPX-1,25.39,CA ST BERNADETTES CATHOLIC PRI-MISC DAIRY PRODUCTS-PROVISIONS,OTHER NONDURABLE GOODS,GPC
WALSALL COUNCIL,HTTP://OPENDATACOMMUNITIES.ORG/ID/METROPOLITAN-DISTRICT-COUNCIL/WALSALL,30/09/2018,RESOURCES & TRANSFORMATION,JOHAL DAIRIES LTD,10/07/2018,H59620180712JRMFBQYOQ-1,8.60,CA ST BERNADETTES CATHOLIC PRI-MISC DAIRY PRODUCTS-PROVISIONS,OTHER NONDURABLE GOODS,GPC
WALSALL COUNCIL,HTTP://OPENDATACOMMUNITIES.ORG/ID/METROPOLITAN-DISTRICT-COUNCIL/WALSALL,30/09/2018,CHILDRENS SERVICES,ARGOS RETAIL GROUP,10/07/2018,H59620180712JWPPQUAFO-1,49.99,SAFEGUARDING & FAMILY SUPPORT-SECTION 1/17CHILD CARE ACT 198,DISCOUNT STORES,GPC
WALSALL COUNCIL,HTTP://OPENDATACOMMUNITIES.ORG/ID/METROPOLITAN-DISTRICT-COUNCIL/WALSALL,30/09/2018,RESOURCES & TRANSFORMATION,CHICKEN JOES LTD,10/07/2018,H59620180712JXXCIXGRR-1,41.16,CA MEADOW VIEW JMI PRIMARY SCH-FROZEN FOODS-PROVISIONS,CATERERS,GPC
WALSALL COUNCIL,HTTP://OPENDATACOMMUNITIES.ORG/ID/METROPOLITAN-DISTRICT-COUNCIL/WALSALL,30/09/2018,RESOURCES & TRANSFORMATION,JOHAL DAIRIES LTD,10/07/2018,H59620180712JZDYFILMR-1,27.36,CA RUSHALL JMI SCHOOL-MISC DAIRY PRODUCTS-PROVISIONS,OTHER NONDURABLE GOODS,GPC
WALSALL COUNCIL,HTTP://OPENDATACOMMUNITIES.ORG/ID/METROPOLITAN-DISTRICT-COUNCIL/WALSALL,30/09/2018,CHILDRENS SERVICES,AMAZON EU AMAZON.CO.UK,10/07/2018,H59620180712KHEIBDFEO-1,24.99,ROSEDALE C.E. PRIMARY SCHOOL-EXTERNAL TRAINING-OTHER,MISCELLANEOUS AND SPECIALTY RETAIL STORES,GPC
WALSALL COUNCIL,HTTP://OPENDATACOMMUNITIES.ORG/ID/METROPOLITAN-DISTRICT-COUNCIL/WALSALL,30/09/2018,CHILDRENS SERVICES,VIRGIN TRAINS,10/07/2018,H59620180712KOSYMQLQF-1,5.60,WORKFORCE DEVELOPMENT-TRAVEL ALLOWANCE-ALLOWANCES TO,PASSENGER RAILWAYS,GPC
WALSALL COUNCIL,HTTP://OPENDATACOMMUNITIES.ORG/ID/METROPOLITAN-DISTRICT-COUNCIL/WALSALL,30/09/2018,CHILDRENS SERVICES,JOHAL DAIRIES LTD,10/07/2018,H59620180712KULVQOWEE-1,5.70,CONTACT SESSIONAL STAFF-MISC DAIRY PRODUCTS-PROVISIONS,OTHER NONDURABLE GOODS,GPC
WALSALL COUNCIL,HTTP://OPENDATACOMMUNITIES.ORG/ID/METROPOLITAN-DISTRICT-COUNCIL/WALSALL,30/09/2018,RESOURCES & TRANSFORMATION,JOHAL DAIRIES LTD,10/07/2018,H59620180712KWXVPUUNL-1,12.96,TOWN HALL RESTAURANT BISTRO-MISC DAIRY PRODUCTS-PROVISIONS,OTHER NONDURABLE GOODS,GPC
WALSALL COUNCIL,HTTP://OPENDATACOMMUNITIES.ORG/ID/METROPOLITAN-DISTRICT-COUNCIL/WALSALL,30/09/2018,RESOURCES & TRANSFORMATION,CHICKEN JOES LTD,10/07/2018,H59620180712KYCYTNPQX-1,25.46,CA CASTLEFORT JMI SCHOOL-FROZEN FOODS-PROVISIONS,CATERERS,GPC
WALSALL COUNCIL,HTTP://OPENDATACOMMUNITIES.ORG/ID/METROPOLITAN-DISTRICT-COUNCIL/WALSALL,30/09/2018,RESOURCES & TRANSFORMATION,AMAZON UK MARKETPLACE,10/07/2018,H59620180712LTODOJKLG-1,6.80,TENANCY SERVICE-HEALTH & SAFETY-MATERIALS,BOOK STORES,GPC
WALSALL COUNCIL,HTTP://OPENDATACOMMUNITIES.ORG/ID/METROPOLITAN-DISTRICT-COUNCIL/WALSALL,30/09/2018,RESOURCES & TRANSFORMATION,JOHAL DAIRIES LTD,10/07/2018,H59620180712LVPFMBIWW-1,39.00,CA MOORCROFT WOOD-MISC DAIRY PRODUCTS-PROVISIONS,OTHER NONDURABLE GOODS,GPC
WALSALL COUNCIL,HTTP://OPENDATACOMMUNITIES.ORG/ID/METROPOLITAN-DISTRICT-COUNCIL/WALSALL,30/09/2018,RESOURCES & TRANSFORMATION,AMAZON UK MARKETPLACE,10/07/2018,H59620180712MPHMLOMEJ-1,4.59,TENANCY SERVICE-HEALTH & SAFETY-MATERIALS,BOOK STORES,GPC
WALSALL COUNCIL,HTTP://OPENDATACOMMUNITIES.ORG/ID/METROPOLITAN-DISTRICT-COUNCIL/WALSALL,30/09/2018,RESOURCES & TRANSFORMATION,CHICKEN JOES LTD,10/07/2018,H59620180712MTMNLGBSB-1,86.28,CA ELMORE GREEN PRIMARY SCHOOL-FROZEN FOODS-PROVISIONS,CATERERS,GPC
WALSALL COUNCIL,HTTP://OPENDATACOMMUNITIES.ORG/ID/METROPOLITAN-DISTRICT-COUNCIL/WALSALL,30/09/2018,RESOURCES & TRANSFORMATION,JOHAL DAIRIES LTD,10/07/2018,H59620180712MTPOCEAXT-1,32.96,CA BUSILL JONES PRIMARY SCHOOL-MISC DAIRY PRODUCTS-PROVISIONS,OTHER NONDURABLE GOODS,GPC
WALSALL COUNCIL,HTTP://OPENDATACOMMUNITIES.ORG/ID/METROPOLITAN-DISTRICT-COUNCIL/WALSALL,30/09/2018,RESOURCES & TRANSFORMATION,JOHAL DAIRIES LTD,10/07/2018,H59620180712MYJWIBUDV-1,29.24,CA BARCROFT D/C-MISC DAIRY PRODUCTS-PROVISIONS,OTHER NONDURABLE GOODS,GPC
WALSALL COUNCIL,HTTP://OPENDATACOMMUNITIES.ORG/ID/METROPOLITAN-DISTRICT-COUNCIL/WALSALL,30/09/2018,CHILDRENS SERVICES,W M MORRISONS.COM,10/07/2018,H59620180712NLGVBVEIF-1,4.50,BLUEBELLS-FOOD AND BEVERAGES-PROVISIONS,GROCERY STORES AND SUPERMARKETS,GPC
WALSALL COUNCIL,HTTP://OPENDATACOMMUNITIES.ORG/ID/METROPOLITAN-DISTRICT-COUNCIL/WALSALL,30/09/2018,CHILDRENS SERVICES,W M MORRISONS.COM,10/07/2018,H59620180712NLGVBVEIF-2,65.28,BLUEBELLS-FOOD AND BEVERAGES-PROVISIONS,GROCERY STORES AND SUPERMARKETS,GPC
WALSALL COUNCIL,HTTP://OPENDATACOMMUNITIES.ORG/ID/METROPOLITAN-DISTRICT-COUNCIL/WALSALL,30/09/2018,RESOURCES & TRANSFORMATION,JOHAL DAIRIES LTD,10/07/2018,H59620180712NQAYROIPH-1,13.82,CA JANE LANE SPECIAL SCHOOL-MISC DAIRY PRODUCTS-PROVISIONS,OTHER NONDURABLE GOODS,GPC
WALSALL COUNCIL,HTTP://OPENDATACOMMUNITIES.ORG/ID/METROPOLITAN-DISTRICT-COUNCIL/WALSALL,30/09/2018,RESOURCES & TRANSFORMATION,JOHAL DAIRIES LTD,10/07/2018,H59620180712NSMTROTXK-1,4.30,CA KINGSHILL SCHOOL-MISC DAIRY PRODUCTS-PROVISIONS,OTHER NONDURABLE GOODS,GPC
WALSALL COUNCIL,HTTP://OPENDATACOMMUNITIES.ORG/ID/METROPOLITAN-DISTRICT-COUNCIL/WALSALL,30/09/2018,RESOURCES & TRANSFORMATION,JOHAL DAIRIES LTD,10/07/2018,H59620180712NUTFNRMME-1,2.73,CA CROFT COMMUNITY PRIMARY SCH-MISC DAIRY PRODUCTS-PROVISIONS,OTHER NONDURABLE GOODS,GPC
WALSALL COUNCIL,HTTP://OPENDATACOMMUNITIES.ORG/ID/METROPOLITAN-DISTRICT-COUNCIL/WALSALL,30/09/2018,RESOURCES & TRANSFORMATION,JOHAL DAIRIES LTD,10/07/2018,H59620180712OCHNVMUAJ-1,32.17,CA ST MICHAELS C.E. PRIMARY SC-MISC DAIRY PRODUCTS-PROVISIONS,OTHER NONDURABLE GOODS,GPC
